Workbook

Sheet loginscreen

Sheet Inicio
B4: N° RUC:
B6: NOMBRE DEL NEGOCIO: | D6: IGLESIA ESTRELLA DE BELÉN
B8: LEMA: | D8: EL SHADAI
B10: DIRECCIÓN: | D10: SAN MARCOS
B12: CATEGORÍA FISCAL:
B14: TELÉFONO:
B16: E-MAIL:
B18: PÁGINA WEB:

Sheet Usuarios
A3: LISTA DE USUARIOS QUE FIGURARÁN EN LOS ESTADOS FINANCIEROS
B6: FUNCIÓN | D6: NOMBRE DE USUARIO
B7: Elaborado por: | D7: Berta María Mora Alvarado
B8: Revisado por:
B9: Autorizado por: | D9: Socorro Sandoval
A18: Autorizado por:
A19: Revisado por:
A20: Elaborado por:

Sheet Catalogo
A3: Crear aquí su Plan Contable
B6: COD. CTA. | C6: NOMBRE DE LA CUENTA | D6: TIPO | E6: NATURALEZA | F6: USAR EN
B7: 100000 | C7: ACTIVOS | D7: RUBRO | E7: D | F7: BG
B8: 110000 | C8: ACTIVOS CORRIENTES | D8: CLASE | E8: D | F8: BG
B9: 110100 | C9: CAJA | D9: PRINCIPAL | E9: D | F9: BG
B10: 110101 | C10: CAJA GENERAL | D10: DETALLE | E10: D | F10: BG
B11: 110102 | C11: CAJA CHICA | D11: DETALLE | E11: D | F11: BG
B12: 110200 | C12: BANCOS | D12: PRINCIPAL | E12: D | F12: BG
B13: 110201 | C13: BANCO 1|CTA CTE 1| NIO | D13: DETALLE | E13: D | F13: BG
B14: 110202 | C14: BANCO 1|CTA CTE 1|USD | D14: DETALLE | E14: D | F14: BG
B15: 110300 | C15: CUENTAS POR COBRAR | D15: PRINCIPAL | E15: D | F15: BG
B16: 110301 | C16: CLIENTES | D16: DETALLE | E16: D | F16: BG
B17: 110302 | C17: EMPLEADOS | D17: DETALLE | E17: D | F17: BG
B18: 110400 | C18: INVENTARIOS | D18: PRINCIPAL | E18: D | F18: BG
B19: 110401 | C19: ALIMENTOS | D19: DETALLE | E19: D | F19: BG
B20: 110402 | C20: MATERIAS PRIMAS | D20: DETALLE | E20: D | F20: BG
B21: 110403 | C21: BEBIDAS | D21: DETALLE | E21: D | F21: BG
B22: 110500 | C22: IMPUESTOS ANTICIPADOS | D22: PRINCIPAL | E22: D | F22: BG
B23: 110501 | C23: IVA ACREDITABLE | D23: DETALLE | E23: D | F23: BG
B24: 110502 | C24: IR ANTICIPADO | D24: PRINCIPAL | E24: D | F24: BG
B25: 110600 | C25: MATERIALES Y SUMINISTROS | D25: DETALLE | E25: D | F25: BG
B26: 110601 | C26: PRODUCTOS HIGIÉNICOS Y DE LIMPIEZA | D26: DETALLE | E26: D | F26: BG
B27: 110602 | C27: INSUMOS MÉDICOS | D27: DETALLE | E27: D | F27: BG
B28: 110603 | C28: HERRAMIENTAS Y ENSERES | D28: DETALLE | E28: D | F28: BG
B29: 110700 | C29: MATERIAL DE RESPOSICIÓN PERIÓDICA | D29: PRINCIPAL | E29: D | F29: BG
B30: 110701 | C30: UTENSILIOS | D30: DETALLE | E30: D | F30: BG
B31: 110800 | C31: PAPELERÍA Y ÚTILES DE OFICINA | D31: PRINCIPAL | E31: D | F31: BG
B32: 110801 | C32: PAPELERÍA | D32: DETALLE | E32: D | F32: BG
B33: 110802 | C33: ÚTILES DE OFICINA | D33: DETALLE | E33: D | F33: BG
B34: 120000 | C34: ACTIVOS NO CORRIENTES | D34: CLASE | E34: D | F34: BG
B35: 120100 | C35: TERRENOS | D35: PRINCIPAL | E35: D | F35: BG
B36: 120101 | C36: TERRENO | D36: DETALLE | E36: D | F36: BG
B37: 120200 | C37: EDIFICIOS | D37: CLASE | E37: D | F37: BG
B38: 120201 | C38: EDIFICIO DEL TEMPLO | D38: DETALLE | E38: D | F38: BG
B39: 120202 | C39: CASA PASTORAL | D39: DETALLE | E39: D | F39: BG
B40: 120300 | C40: EQUIPO | D40: PRINCIPAL | E40: D | F40: BG
B41: 120301 | C41: EQUIPO RODANTE | D41: DETALLE | E41: D | F41: BG
B42: 120302 | C42: EQUIPO DE REFRIGERACIÓN | D42: DETALLE | E42: D | F42: BG
B43: 120303 | C43: EQUIPO DE COCINA | D43: DETALLE | E43: D | F43: BG
B44: 120304 | C44: EQUIPO DE OFICINA | D44: DETALLE | E44: D | F44: BG
B45: 120305 | C45: EQUIPO DE AUDIO Y VIDEO | D45: DETALLE | E45: D | F45: BG
B46: 120400 | C46: MOBILIARIO | D46: PRINCIPAL | E46: D | F46: BG
B47: 120401 | C47: MOBILIARIO | D47: DETALLE | E47: D | F47: BG
B48: 120500 | C48: HERRAMIENTAS Y ENSERES | D48: PRINCIPAL | E48: D | F48: BG
B49: 120501 | C49: HERRAMIENTAS DE LIMPIEZA | D49: DETALLE | E49: D | F49: BG
B50: 120502 | C50: HERRAMIENTAS DE JARDINERIA | D50: DETALLE | E50: D | F50: BG
B51: 120600 | C51: ACCESORIOS Y REPUESTOS VARIOS | D51: PRINCIPAL | E51: D | F51: BG
B52: 120601 | C52: ACCESORIOS DE EQUIPOS ELECTRONICOS | D52: DETALLE | E52: D | F52: BG
B53: 120602 | C53: REPUESTOS AUTOMOTRICES | D53: DETALLE | E53: D | F53: BG
B54: 130000 | C54: DEPRECIACIÓN ACUMULADA | D54: CLASE | E54: H | F54: BG
B55: 130100 | C55: DEPREC. ACUM. DE EDIFICIOS | D55: PRINCIPAL | E55: H | F55: BG
B56: 130101 | C56: DEPREC. ACUM. EDIFICIO 1 | D56: DETALLE | E56: H | F56: BG
B57: 130200 | C57: DEPREC. ACUM. DE EQUIPO | D57: PRINCIPAL | E57: H | F57: BG
B58: 130201 | C58: DEPREC. ACUM. EQUIPO RODANTE | D58: DETALLE | E58: H | F58: BG
B59: 130202 | C59: DEPREC. ACUM. EQUIPO DE REFRIGERACIÓN | D59: DETALLE | E59: H | F59: BG
B60: 130203 | C60: DERPEC. ACUM. EQUIPO DE COCINA | D60: DETALLE | E60: H | F60: BG
B61: 130204 | C61: DEPREC. ACUM. EQUIPO DE OFICINA | D61: DETALLE | E61: H | F61: BG
B62: 130300 | C62: DEPREC. ACUM. DE MOBILIARIO | D62: PRINCIPAL | E62: H | F62: BG
B63: 130301 | C63: DEPREC. ACUM. DE MOBILIARIO | D63: DETALLE | E63: H | F63: BG
B64: 130400 | C64: DEPREC. ACUM. DE HERRAMIENTAS Y ENSERES | D64: PRINCIPAL | E64: H | F64: BG
B65: 130401 | C65: DEPREC. ACUM. HERRAMIENTAS DE LIMPIEZA | D65: DETALLE | E65: H | F65: BG
B66: 130402 | C66: DEPREC. ACUM. HERRAMIENTAS DE JARDINERÍA | D66: DETALLE | E66: H | F66: BG
B67: 200000 | C67: PASIVOS | D67: RUBRO | E67: H | F67: BG
B68: 210000 | C68: PASIVOS CORRIENTES | D68: CLASE | E68: H | F68: BG
B69: 210100 | C69: PROVEEDORES | D69: PRINCIPAL | E69: H | F69: BG
B70: 210101 | C70: PROVEEDOR A | D70: DETALLE | E70: H | F70: BG
B71: 210200 | C71: DOCUMENTOS POR PAGAR | D71: PRINCIPAL | E71: H | F71: BG
B72: 210201 | C72: DOCUMENTOS COMERCIALES | D72: DETALLE | E72: H | F72: BG
B73: 210202 | C73: DOCUMENTOS BANCARIOS | D73: DETALLE | E73: H | F73: BG
B74: 210300 | C74: RETENCIONES POR PAGAR | D74: PRINCIPAL | E74: H | F74: BG
B75: 210301 | C75: INSS LABORAL POR PAGAR | D75: DETALLE | E75: H | F75: BG
B76: 210302 | C76: RETENCIONES EN LA FUENTE | D76: DETALLE | E76: H | F76: BG
B77: 210303 | C77: RETENCIÓN 1% POR PAGAR | D77: DETALLE | E77: H | F77: BG
B78: 210304 | C78: RETENCION 10% POR PAGAR | D78: DETALLE | E78: H | F78: BG
B79: 210400 | C79: OBLIGACIONES PATRONALES POR PAGAR | D79: PRINCIPAL | E79: H | F79: BG
B80: 210401 | C80: INSS PATRONAL POR PAGAR | D80: DETALLE | E80: H | F80: BG
B81: 210402 | C81: INATEC POR PAGAR | D81: DETALLE | E81: H | F81: BG
B82: 210500 | C82: ACREEDORES DIVERSOS | D82: PRINCIPAL | E82: H | F82: BG
B83: 210501 | C83: DISSUR | D83: DETALLE | E83: H | F83: BG
B84: 210502 | C84: ENACAL | D84: DETALLE | E84: H | F84: BG
B85: 210503 | C85: TELECOMUNICACIONES | D85: DETALLE | E85: H | F85: BG
B86: 210600 | C86: GASTOS ACUMULADOS POR PAGAR | D86: PRINCIPAL | E86: H | F86: BG
B87: 210601 | C87: VACACIONES POR PAGAR | D87: DETALLE | E87: H | F87: BG
B88: 210602 | C88: DÉCIMO TERCER MES POR PAGAR | D88: DETALLE | E88: H | F88: BG
B89: 210603 | C89: INDEMNIZACIONES POR PAGAR | D89: DETALLE | E89: H | F89: BG
B90: 210700 | C90: IMPUESTOS POR PAGAR | D90: PRINCIPAL | E90: H | F90: BG
B91: 210701 | C91: IR POR PAGAR | D91: DETALLE | E91: H | F91: BG
B92: 210702 | C92: IVA POR PAGAR | D92: DETALLE | E92: H | F92: BG
B93: 220000 | C93: PASIVOS NO CORRIENTES | D93: CLASE | E93: H | F93: BG
B94: 220100 | C94: DOCUMENTOS POR PAGAR | D94: PRINCIPAL | E94: H | F94: BG
B95: 220101 | C95: DOCUMENTOS COMERCIALES | D95: DETALLE | E95: H | F95: BG
B96: 220102 | C96: DOCUMENTOS BANCARIOS | D96: DETALLE | E96: H | F96: BG
B97: 300000 | C97: PATRIMONIO | D97: RUBRO | E97: H | F97: BG
B98: 310000 | C98: FONDO DE LA IGLESIA | D98: CLASE | E98: H | F98: BG
B99: 310100 | C99: FONDO INICIAL | D99: PRINCIPAL | E99: H | F99: BG
B100: 310101 | C100: APORTES DE MIEMBROS | D100: DETALLE | E100: H | F100: BG
B101: 310200 | C101: FONDOS ACUMULADOS | D101: PRINCIPAL | E101: H | F101: BG
B102: 310201 | C102: FONDOS DE PERÍODOS ANTERIORES | D102: DETALLE | E102: H | F102: BG
B103: 310300 | C103: FONDOS DEL PERÍODO | D103: PRINCIPAL | E103: H | F103: BG
B104: 310301 | C104: FONDOS DEL PERÍODO | D104: DETALLE | E104: H | F104: BG
B105: 400000 | C105: INGRESOS | D105: RUBRO | E105: H | F105: ER
B106: 410000 | C106: INGRESOS EN EFECTIVO | D106: CLASE | E106: H | F106: ER
B107: 410100 | C107: OFRENDAS GENERALES | D107: PRINCIPAL | E107: H | F107: ER
B108: 410101 | C108: OFRENDAS DE MIEMBROS | D108: DETALLE | E108: H | F108: ER
B109: 410102 | C109: OFRENDAS DE PARTICULARES | D109: DETALLE | E109: H | F109: ER
B110: 410200 | C110: OTROS APORTES DE MIEMBROS | D110: PRINCIPAL | E110: H | F110: ER
B111: 410201 | C111: APORTES PARA GASTOS BASICOS | D111: DETALLE | E111: H | F111: ER
B112: 410202 | C112: APORTES PARA ACTIVIDADES VARIAS | D112: DETALLE | E112: H | F112: ER
B113: 410203 | C113: BEBIDAS NATURALES | D113: DETALLE | E113: H | F113: ER
B114: 410204 | C114: BEBIDAS ALCOHOLICAS | D114: DETALLE | E114: H | F114: ER
B115: 410300 | C115: DONACIONES | D115: PRINCIPAL | E115: H | F115: ER
B116: 410301 | C116: DONACIONES GENERALES | D116: DETALLE | E116: H | F116: ER
B117: 410400 | C117: DIEZMOS | D117: PRINCIPAL | E117: H | F117: ER
B118: 410401 | C118: DIEZMOS DE MIEMBROS | D118: DETALLE | E118: H | F118: ER
B119: 410402 | C119: DIEZMOS DE PARTICULARES | D119: DETALLE | E119: H | F119: ER
B120: 500000 | C120: COSTOS | D120: RUBRO | E120: D | F120: ER
B121: 510000 | C121: COSTO DE VENTAS | D121: CLASE | E121: D | F121: ER
B122: 510100 | C122: COSTO DE ALIMENTOS | D122: PRINCIPAL | E122: D | F122: ER
B123: 510101 | C123: COSTO DE ALIMENTOS | D123: DETALLE | E123: D | F123: ER
B124: 510102 | C124: COSTO DE DULCES Y REPOSTERIAS | D124: DETALLE | E124: D | F124: ER
B125: 510200 | C125: COSTO DE BEBIDAS | D125: PRINCIPAL | E125: D | F125: ER
B126: 510201 | C126: COSTO DE BEBIDAS GASEOSAS | D126: DETALLE | E126: D | F126: ER
B127: 510202 | C127: COSTO DE BEBIDAS ENLATADAS | D127: DETALLE | E127: D | F127: ER
B128: 510203 | C128: COSTO DE BEBIDAS NATURALES | D128: DETALLE | E128: D | F128: ER
B129: 510204 | C129: COSTO DE BEBIDAS ALCOHOLICAS | D129: DETALLE | E129: D | F129: ER
B130: 510300 | C130: COSTO DE OTROS PRODUCTOS | D130: PRINCIPAL | E130: D | F130: ER
B131: 510301 | C131: COSTO DE CIGARRILLOS | D131: DETALLE | E131: D | F131: ER
B132: 600000 | C132: GASTOS | D132: RUBRO | E132: D | F132: ER
B133: 610000 | C133: GASTOS OPERATIVOS | D133: CLASE | E133: D | F133: ER
B134: 610100 | C134: GASTOS BASICOS | D134: PRINCIPAL | E134: D | F134: ER
B135: 610101 | C135: GASTO EN ENERGIA ELECTRICA | D135: DETALLE | E135: D | F135: ER
B136: 610102 | C136: GASTO EN AGUA POTABLE | D136: DETALLE | E136: D | F136: ER
B137: 610200 | C137: GASTOS DE MANTENIMIENTO | D137: PRINCIPAL | E137: D | F137: ER
B138: 610201 | C138: MANTENIMIENTO DE CERCAS | D138: DETALLE | E138: D | F138: ER
B139: 610202 | C139: MANTENIMIENTO DE EDIFICIOS | D139: DETALLE | E139: D | F139: ER
B140: 610203 | C140: MANTENIMIENTO DE ABANICOS | D140: DETALLE | E140: D | F140: ER
B141: 610204 | C141: MANTENIMIENTO DE INSTRUMENTOS | D141: DETALLE | E141: D | F141: ER
B142: 610205 | C142: MANTENIMIENTO DE MOBILIARIO | D142: DETALLE | E142: D | F142: ER
B143: 610300 | C143: GASTOS DE REPRESENTACION | D143: PRINCIPAL | E143: D | F143: ER
B144: 610301 | C144: OFRENDA MISIONERA | D144: DETALLE | E144: D | F144: ER
B145: 610302 | C145: APORTE PARA LA UNIDAD PASTORAL | D145: DETALLE | E145: D | F145: ER
B146: 610303 | C146: VIATICOS ALIMENTACIÓN Y TRANSPORTE | D146: DETALLE | E146: D | F146: ER
B147: 610304 | C147: CELEBRACIÓN DÍAS FESTIVOS | D147: DETALLE | E147: D | F147: ER
B148: 610400 | C148: MATERIALES Y SUMINISTROS | D148: PRINCIPAL | E148: D | F148: ER
B149: 610401 | C149: SUMINISTROS CEREMONIALES | D149: DETALLE | E149: D | F149: ER
B150: 610402 | C150: UTILES PARA ESCUELA DOMINCAL | D150: DETALLE | E150: D | F150: ER
B151: 610403 | C151: ACCESORIOS PARA ORNATO | D151: DETALLE | E151: D | F151: ER
B152: 610500 | C152: GASTO SOCIAL Y CELEBRACIONES | D152: PRINCIPAL | E152: D | F152: ER
B153: 610501 | C153: INSUMOS MÉDICOS A MIEMBROS | D153: DETALLE | E153: D | F153: ER
B154: 610502 | C154: INSUMOS MÉDICOS A PARTICULARES | D154: DETALLE | E154: D | F154: ER
B155: 610503 | C155: CELEBRACIÓN FIESTA PARA NIÑOS | D155: DETALLE | E155: D | F155: ER
B156: 620000 | C156: OTROS GASTOS | D156: CLASE | E156: D | F156: ER
B157: 620100 | C157: LIQUIDACIÓN DE DIEZMOS | D157: PRINCIPAL | E157: D | F157: ER
B158: 620101 | C158: DIEZMOS PARA EL PASTOR | D158: DETALLE | E158: D | F158: ER
B159: 620102 | C159: DIEZMOS DE DIEZMOS | D159: DETALLE | E159: D | F159: ER
B160: 700000 | C160: PRODUCTOS | D160: RUBRO | E160: H | F160: ER
B161: 710000 | C161: PRODUCTOS FINANCIEROS | D161: CLASE | E161: H | F161: ER
B162: 710100 | C162: PRODUCTOS BANCARIOS | D162: PRINCIPAL | E162: H | F162: ER
B163: 710101 | C163: INTERESES DEPOSITOS BANCARIOS | D163: DETALLE | E163: H | F163: ER
B164: 710200 | C164: REVALORIZACIÓN MONETARIA | D164: PRINCIPAL | E164: H | F164: ER
B165: 710201 | C165: GANANCIA CAMBIARIA | D165: DETALLE | E165: H | F165: ER
B166: 800000 | C166: IMPUESTOS | D166: RUBRO | E166: D | F166: ER
B167: 810000 | C167: IMPUESTOS SOBRE LA RENTA | D167: CLASE | E167: D | F167: ER
B168: 810100 | C168: IMPUESTO SOBRE LA RENTA 30% | D168: PRINCIPAL | E168: D | F168: ER
B169: 810101 | C169: IMPUESTO SOBRE LA RENTA 30% | D169: DETALLE | E169: D | F169: ER

Sheet Principales
A3: Hojas de resumen - Anexos de Estados Financieros
A5: CODIGO | B5: NOMBRE DE LA CUENTA | N5: INSTRUCCIONES
A6: 110000 | B6: ACTIVOS CORRIENTES | N6: Seleccione el código de la cuenta que desea consultar y luego haga clic en: "Ver resumen"
A7: 120000 | B7: ACTIVOS NO CORRIENTES
A8: 120200 | B8: EDIFICIOS
A9: 130000 | B9: DEPRECIACIÓN ACUMULADA
A10: 210000 | B10: PASIVOS CORRIENTES
A11: 220000 | B11: PASIVOS NO CORRIENTES
A12: 310000 | B12: CAPITAL SOCIAL
A13: 410000 | B13: VENTAS DE CONTADO
A14: 510000 | B14: COSTO DE VENTAS
A15: 610000 | B15: GASTOS OPERATIVOS
A16: 620000 | B16: GASTOS FINANCIEROS
A17: 710000 | B17: PRODUCTOS FINANCIEROS
A18: 810000 | B18: IMPUESTOS SOBRE LA RENTA

Sheet Asientos
A4: ASIENTO N° | B4: 117 | E4: Total Débitos: | F4: =ROUND(SUM(E9:E97), 2) -> 0
A6: FECHA: | E6: Total Créditos: | F6: =ROUND(SUM(F9:F97), 2) -> 0
E7: Diferencia | F7: =ABS(total_debitos-total_creditos) -> 0
A8: CÓD. CTA. | B8: DOC # | C8: NOMBRE DE LA CUENTA | D8: CONCEPTO | E8: DEBE | F8: HABER
C9: =IF(A9<>"", VLOOKUP(A9, plan_cuentas, 2, FALSE), "") -> 
C73: =IF(A73<>"", VLOOKUP(A73, plan_cuentas, 2, FALSE), "") -> 
C84: =IF(A84<>"", VLOOKUP(A84, plan_cuentas, 2, FALSE), "") -> 
C102: =IF(A102<>"", VLOOKUP(A102, plan_cuentas, 2, FALSE), "") -> 
C134: =IF(A134<>"", VLOOKUP(A134, plan_cuentas, 2, FALSE), "") -> 
C166: =IF(A166<>"", VLOOKUP(A166, plan_cuentas, 2, FALSE), "") -> 

Sheet Reportes
A3: Seleccione un reporte para visualizar
B6: LISTA DE INFORMES DISPONIBLES | H6: DEFINA POR FAVOR LA FECHA DEL PERÍODO
B7: 4 | C7: Balanza Consolidada. | I7: Desde | K7: Hasta
B8: 4 | C8: Estado de Resultados. | I8: 2016-10-02 | K8: 2016-10-29
B9: 4 | C9: Balance General. | I9: =DATE(YEAR(final_before), MONTH(final_before), 1) -> 2016-10-01 | K9: =fecha_inicial-1 -> 2016-10-01
B10: 4 | C10: Flujo de Caja

Sheet Bancos
A1: CODIGO | B1: NOMBRE DE LA CUENTA | C1: NUM CK
A2: 110201 | B2: BANCO 1|CTA CTE 1| NIO | C2: 0
A3: 110202 | B3: BANCO 1|CTA CTE 1|USD | C3: 0

Sheet Registros
B1: Registros de Diario
A2: N° ASIENTO | B2: FECHA | C2: COD_CTA | D2: DOC # | E2: NOMBRE DE LA CUENTA | F2: CONCEPTO | G2: DEBITOS | H2: CREDITOS | I2: PRINCIPAL
A3: 1 | B3: 2016-03-31 | C3: 110101 | E3: =IF(C3<>"", VLOOKUP(C3, plan_cuentas, 2, FALSE), "") -> CAJA GENERAL | F3: SALDO FINAL DE LA CUENTA MARZO | G3: 2569.45 | I3: 110100
A4: 1 | B4: 2016-03-31 | C4: 310101 | E4: APORTES DE MIEMBROS | F4: SALDO FINAL DE LA CUENTA MARZO | H4: 2569.45 | I4: 310100
A5: 2 | B5: 2016-04-02 | C5: 110101 | E5: CAJA GENERAL | F5: OFRENDA GENERAL DEL DÍA | G5: 40 | I5: 110100
A6: 2 | B6: 2016-04-02 | C6: 410101 | E6: OFRENDAS DE MIEMBROS | F6: OFRENDA GENERAL DEL DÍA | H6: 40 | I6: 410100
A7: 3 | B7: 2016-04-03 | C7: 110101 | E7: CAJA GENERAL | F7: OFRENDA GENERAL DEL DÍA | G7: 186.5 | I7: 110100
A8: 3 | B8: 2016-04-03 | C8: 410101 | E8: OFRENDAS DE MIEMBROS | F8: OFRENDA GENERAL DEL DÍA | H8: 186.5 | I8: 410100
A9: 4 | B9: 2016-04-07 | C9: 110101 | E9: CAJA GENERAL | F9: OFRENDA GENERAL DEL DÍA | G9: 49 | I9: 110100
A10: 4 | B10: 2016-04-07 | C10: 410101 | E10: OFRENDAS DE MIEMBROS | F10: OFRENDA GENERAL DEL DÍA | H10: 49 | I10: 410100
A11: 5 | B11: 2016-04-09 | C11: 110101 | E11: CAJA GENERAL | F11: OFRENDA GENERAL DEL DÍA | G11: 47.5 | I11: 110100
A12: 5 | B12: 2016-04-09 | C12: 410101 | E12: OFRENDAS DE MIEMBROS | F12: OFRENDA GENERAL DEL DÍA | H12: 47.5 | I12: 410100
A13: 6 | B13: 2016-04-10 | C13: 110101 | E13: CAJA GENERAL | F13: OFRENDA GENERAL DEL DÍA | G13: 86 | I13: 110100
A14: 6 | B14: 2016-04-10 | C14: 410101 | E14: OFRENDAS DE MIEMBROS | F14: OFRENDA GENERAL DEL DÍA | H14: 86 | I14: 410100
A15: 7 | B15: 2016-04-10 | C15: 110101 | E15: CAJA GENERAL | F15: APORTES PARA GASTOS BÁSICOS | G15: 20 | I15: 110100
A16: 7 | B16: 2016-04-10 | C16: 410201 | E16: APORTES PARA GASTOS BASICOS | F16: HERMANA INMER CRUZ | H16: 20 | I16: 410200
A17: 8 | B17: 2016-04-12 | C17: 110101 | E17: CAJA GENERAL | F17: OFRENDA GENERAL DEL DÍA | G17: 47 | I17: 110100
A18: 8 | B18: 2016-04-12 | C18: 410101 | E18: OFRENDAS DE MIEMBROS | F18: OFRENDA GENERAL DEL DÍA | H18: 47 | I18: 410100
A19: 9 | B19: 2016-04-19 | C19: 110101 | E19: CAJA GENERAL | F19: OFRENDA GENERAL DEL DÍA | G19: 87 | I19: 110100
A20: 9 | B20: 2016-04-19 | C20: 410101 | E20: OFRENDAS DE MIEMBROS | F20: OFRENDA GENERAL DEL DÍA | H20: 87 | I20: 410100
A21: 10 | B21: 2016-04-19 | C21: 110101 | E21: CAJA GENERAL | F21: DIEZMOS HERMANA INMER CRUZ | G21: 30 | I21: 110100
A22: 10 | B22: 2016-04-19 | C22: 410401 | E22: DIEZMOS DE MIEMBROS | F22: HERMANA INMER CRUZ | H22: 30 | I22: 410400
A23: 11 | B23: 2016-04-22 | C23: 110101 | E23: CAJA GENERAL | F23: OFRENDA GENERAL DEL DÍA | G23: 133.5 | I23: 110100
A24: 11 | B24: 2016-04-22 | C24: 410101 | E24: OFRENDAS DE MIEMBROS | F24: OFRENDA GENERAL DEL DÍA | H24: 133.5 | I24: 410100
A25: 12 | B25: 2016-04-22 | C25: 110101 | E25: CAJA GENERAL | F25: DIEZMOS HERMANA FELIPA | G25: 50 | I25: 110100
A26: 12 | B26: 2016-04-22 | C26: 410401 | E26: DIEZMOS DE MIEMBROS | F26: HERMANA FELIPA | H26: 50 | I26: 410400
A27: 13 | B27: 2016-04-23 | C27: 110101 | E27: CAJA GENERAL | F27: OFRENDA GENERAL DEL DÍA | G27: 318.05 | I27: 110100
A28: 13 | B28: 2016-04-23 | C28: 410101 | E28: OFRENDAS DE MIEMBROS | F28: OFRENDA GENERAL DEL DÍA | H28: 318.05 | I28: 410100
A29: 14 | B29: 2016-04-26 | C29: 110101 | E29: CAJA GENERAL | F29: OFRENDA GENERAL DEL DÍA | G29: 30 | I29: 110100
A30: 14 | B30: 2016-04-26 | C30: 410101 | E30: OFRENDAS DE MIEMBROS | F30: OFRENDA GENERAL DEL DÍA | H30: 30 | I30: 410100
A31: 15 | B31: 2016-04-26 | C31: 110101 | E31: CAJA GENERAL | F31: DIEZMOS VARIOS | G31: 430 | I31: 110100
A32: 15 | B32: 2016-04-26 | C32: 410401 | E32: DIEZMOS DE MIEMBROS | F32: HERMANA BERTA MARÍA MORA ALVARADO | H32: 140 | I32: 410400
A33: 15 | B33: 2016-04-26 | C33: 410401 | E33: DIEZMOS DE MIEMBROS | F33: HERMANA DIEGA CARRILLO | H33: 290 | I33: 410400
A34: 15 | B34: 2016-04-26 | C34: 620101 | E34: DIEZMOS PARA EL PASTOR | F34: ANTICIPO DE DIEZMOS | G34: 261 | I34: 620100
A35: 15 | B35: 2016-04-26 | C35: 110101 | E35: CAJA GENERAL | F35: ANTICIPO DE DIEZMOS | H35: 261 | I35: 110100
A36: 16 | B36: 2016-04-28 | C36: 610302 | E36: APORTE PARA LA UNIDAD PASTORAL | F36: APORTE DE ENERO - ABRIL | G36: 80 | I36: 610300
A37: 16 | B37: 2016-04-28 | C37: 610303 | E37: VIATICOS ALIMENTACIÓN Y TRANSPORTE | F37: VIAJE HERMANA DIEGA A ALTAGRACIA | G37: 50 | I37: 610300
A38: 16 | B38: 2016-04-28 | C38: 110101 | E38: CAJA GENERAL | F38: GASTOS VARIOS | H38: 130 | I38: 110100
A39: 17 | B39: 2016-04-30 | C39: 610101 | E39: GASTO EN ENERGIA ELECTRICA | F39: ENERGÍA ELÉCTRICA DEL MES DE MARZO 2016 | G39: 50.22 | I39: 610100
A40: 17 | B40: 2016-04-30 | C40: 110101 | E40: CAJA GENERAL | F40: ENERGÍA ELÉCTRICA DEL MES DE MARZO 2016 | H40: 50.22 | I40: 110100
A41: 18 | B41: 2016-04-30 | C41: 110101 | E41: CAJA GENERAL | F41: AJUSTE POR DEVALUACIÓN | G41: 3.82 | I41: 110100
A42: 18 | B42: 2016-04-30 | C42: 410101 | E42: OFRENDAS DE MIEMBROS | F42: AJUSTE POR DEVALUACIÓN | H42: 3.82 | I42: 410100
A43: 19 | B43: 2016-04-30 | C43: 620101 | E43: DIEZMOS PARA EL PASTOR | F43: DIEZMOS REMANENTES DEL MES DE ABRIL 2016 | G43: 198 | I43: 620100
A44: 19 | B44: 2016-04-30 | C44: 620102 | E44: DIEZMOS DE DIEZMOS | F44: DIEZMOS DEL MES DE ABRIL 2016 | G44: 51 | I44: 620100
A45: 19 | B45: 2016-04-30 | C45: 610301 | E45: OFRENDA MISIONERA | F45: OFRENDA MISIONERA DE ABRIL 2016 | G45: 50 | I45: 610300
A46: 19 | B46: 2016-04-30 | C46: 110101 | E46: CAJA GENERAL | F46: GASTOS VARIOS | H46: 299 | I46: 110100
A47: 20 | B47: 2016-05-01 | C47: 110101 | E47: CAJA GENERAL | F47: OFRENDA GENERAL DEL DÍA | G47: 37 | I47: 110100
A48: 20 | B48: 2016-05-01 | C48: 410101 | E48: OFRENDAS DE MIEMBROS | F48: OFRENDA GENERAL DEL DÍA | H48: 37 | I48: 410100
A49: 21 | B49: 2016-05-03 | C49: 110101 | E49: CAJA GENERAL | F49: OFRENDA GENERAL DEL DÍA | G49: 45 | I49: 110100
A50: 21 | B50: 2016-05-03 | C50: 410101 | E50: OFRENDAS DE MIEMBROS | F50: OFRENDA GENERAL DEL DÍA | H50: 45 | I50: 410100
A51: 22 | B51: 2016-05-08 | C51: 110101 | E51: CAJA GENERAL | F51: OFRENDA GENERAL DEL DÍA | G51: 35 | I51: 110100
A52: 22 | B52: 2016-05-08 | C52: 410101 | E52: OFRENDAS DE MIEMBROS | F52: OFRENDA GENERAL DEL DÍA | H52: 35 | I52: 410100
A53: 23 | B53: 2016-05-10 | C53: 110101 | E53: CAJA GENERAL | F53: OFRENDA GENERAL DEL DÍA | G53: 110 | I53: 110100
A54: 23 | B54: 2016-05-10 | C54: 410101 | E54: OFRENDAS DE MIEMBROS | F54: OFRENDA GENERAL DEL DÍA Y DIEZMOS | H54: 30 | I54: 410100
A55: 23 | B55: 2016-05-10 | C55: 410401 | E55: DIEZMOS DE MIEMBROS | F55: HERMANA BERTA MARIA MORA | H55: 80 | I55: 410400
A56: 24 | B56: 2016-05-14 | C56: 110101 | E56: CAJA GENERAL | F56: OFRENDA GENERAL DEL DÍA Y DIEZMOS | G56: 75 | I56: 110100
A57: 24 | B57: 2016-05-14 | C57: 410101 | E57: OFRENDAS DE MIEMBROS | F57: OFRENDA GENERAL DEL DÍA | H57: 25 | I57: 410100
A58: 24 | B58: 2016-05-14 | C58: 410401 | E58: DIEZMOS DE MIEMBROS | F58: HERMANA CANDELARIA | H58: 50 | I58: 410400
A59: 25 | B59: 2016-05-15 | C59: 110101 | E59: CAJA GENERAL | F59: OFRENDA GENERAL DEL DÍA | G59: 44.5 | I59: 110100
A60: 25 | B60: 2016-05-15 | C60: 410101 | E60: OFRENDAS DE MIEMBROS | F60: OFRENDA GENERAL DEL DÍA | H60: 44.5 | I60: 410100
A61: 26 | B61: 2016-05-17 | C61: 610401 | E61: SUMINISTROS CEREMONIALES | F61: COMPRA DE ACEITE PARA UNGIR | G61: 36 | I61: 610400
A62: 26 | B62: 2016-05-17 | C62: 610202 | E62: MANTENIMIENTO DE EDIFICIOS | F62: COMPRA DOS BOLSAS DE CEMENTO + TRANSPORTE | G62: 610 | I62: 610200
A63: 26 | B63: 2016-05-17 | C63: 610101 | E63: GASTO EN ENERGIA ELECTRICA | F63: FACTURA DEL MES DE ABRIL 2016 | G63: 50.42 | I63: 610100
A64: 26 | B64: 2016-05-17 | C64: 610102 | E64: GASTO EN AGUA POTABLE | F64: FACTURA DEL MES DE MAYO 2016 | G64: 36.33 | I64: 610100
A65: 26 | B65: 2016-05-17 | C65: 110101 | E65: CAJA GENERAL | F65: PAGOS VARIOS | H65: 732.75 | I65: 110100
A66: 27 | B66: 2016-05-20 | C66: 110101 | E66: CAJA GENERAL | F66: OFRENDA GENERAL DEL DÍA | G66: 10 | I66: 110100
A67: 27 | B67: 2016-05-20 | C67: 410101 | E67: =IF(C67<>"", VLOOKUP(C67, plan_cuentas, 2, FALSE), "") -> OFRENDAS DE MIEMBROS | F67: OFRENDA GENERAL DEL DÍA | H67: 10 | I67: 410100
A68: 27 | B68: 2016-05-20 | C68: 610202 | E68: MANTENIMIENTO DE EDIFICIOS | F68: COMPRA DE 1 BOLSA DE CEMENTO | G68: 290 | I68: 610200
A69: 27 | B69: 2016-05-20 | C69: 610202 | E69: MANTENIMIENTO DE EDIFICIOS | F69: MANO DE OBRA CONSTRUCCIÓN ACERA | G69: 350 | I69: 610200
A70: 27 | B70: 2016-05-20 | C70: 610501 | E70: INSUMOS MÉDICOS A MIEMBROS | F70: COMPRA SPRAY PARA HERMANA NURIA | G70: 165 | I70: 610500
A71: 27 | B71: 2016-05-20 | C71: 110101 | E71: CAJA GENERAL | F71: COMPRA SPRAY PARA HERMANA NURIA | H71: 805 | I71: 110100
A72: 28 | B72: 2016-05-22 | C72: 110101 | E72: CAJA GENERAL | F72: OFRENDA GENERAL DEL DÍA | G72: 92.5 | I72: 110100
A73: 28 | B73: 2016-05-22 | C73: 410101 | E73: OFRENDAS DE MIEMBROS | F73: OFRENDA GENERAL DEL DÍA | H73: 92.5 | I73: 410100
A74: 29 | B74: 2016-05-23 | C74: 610203 | E74: MANTENIMIENTO DE ABANICOS | F74: PAGO POR LIMPIEZA DE ABANICOS | G74: 200 | I74: 610200
A75: 29 | B75: 2016-05-23 | C75: 110101 | E75: CAJA GENERAL | F75: PAGO POR LIMPIEZA DE ABANICOS | H75: 200 | I75: 110100
A76: 30 | B76: 2016-05-28 | C76: 610303 | E76: VIATICOS ALIMENTACIÓN Y TRANSPORTE | F76: PAGO TRANSPORTE PARA CULTO UNIDO | G76: 49 | I76: 610300
A77: 30 | B77: 2016-05-28 | C77: 110101 | E77: CAJA GENERAL | F77: PAGO TRANSPORTE PARA CULTO UNIDO | H77: 49 | I77: 110100
A78: 31 | B78: 2016-05-28 | C78: 620101 | E78: DIEZMOS PARA EL PASTOR | F78: PAGO DE DIEZMOS AL PASTOR | G78: 117 | I78: 620100
A79: 31 | B79: 2016-05-28 | C79: 620102 | E79: DIEZMOS DE DIEZMOS | F79: PAGO DE DIEZMOS DE DIEZMOS | G79: 13 | I79: 620100
A80: 31 | B80: 2016-05-28 | C80: 610301 | E80: OFRENDA MISIONERA | F80: OFRENDA MISIONERA DEL MES DE MAYO 2016 | G80: 50 | I80: 610300
A81: 31 | B81: 2016-05-28 | C81: 610302 | E81: APORTE PARA LA UNIDAD PASTORAL | F81: APORTE PARA LA UNIDAD PASTORAL DE MAYO 2016 | G81: 20 | I81: 610300
A82: 31 | B82: 2016-05-28 | C82: 110101 | E82: CAJA GENERAL | F82: PAGOS VARIOS | H82: 200 | I82: 110100
A83: 31 | B83: 2016-05-28 | C83: 110101 | E83: CAJA GENERAL | F83: APORTE PARA GASTOS BÁSICOS HERMANA SILVIA | G83: 20 | I83: 110100
A84: 31 | B84: 2016-05-28 | C84: 410201 | E84: APORTES PARA GASTOS BASICOS | F84: HERMANA SILVIA | H84: 20 | I84: 410200
A85: 31 | B85: 2016-05-28 | C85: 110101 | E85: CAJA GENERAL | F85: OFRENDA GENERAL DEL DÍA | G85: 4.35 | I85: 110100
A86: 31 | B86: 2016-05-28 | C86: 410101 | E86: OFRENDAS DE MIEMBROS | F86: OFRENDA GENERAL DEL DÍA | H86: 4.35 | I86: 410100
A87: 32 | B87: 2016-06-02 | C87: 110101 | E87: CAJA GENERAL | F87: OFRENDA DEL DÍA | G87: 57.5 | I87: 110100
A88: 32 | B88: 2016-06-02 | C88: 410101 | E88: OFRENDAS DE MIEMBROS | F88: OFRENDA DEL DÍA | H88: 57.5 | I88: 410100
A89: 33 | B89: 2016-06-02 | C89: 110101 | E89: CAJA GENERAL | F89: DIEZMOS VARIOS | G89: 100 | I89: 110100
A90: 33 | B90: 2016-06-02 | C90: 410401 | E90: DIEZMOS DE MIEMBROS | F90: HERMANA MARI LUZ | H90: 20 | I90: 410400
A91: 33 | B91: 2016-06-02 | C91: 410401 | E91: DIEZMOS DE MIEMBROS | F91: HERMANO FRANCISCO MENDOZA | H91: 80 | I91: 410400
A92: 34 | B92: 2016-06-05 | C92: 110101 | E92: CAJA GENERAL | F92: OFRENDA DEL DÍA | G92: 50 | I92: 110100
A93: 34 | B93: 2016-06-05 | C93: 410101 | E93: OFRENDAS DE MIEMBROS | F93: OFRENDA DEL DÍA | H93: 50 | I93: 410100
A94: 35 | B94: 2016-06-07 | C94: 110101 | E94: CAJA GENERAL | F94: OFRENDA GENERAL DEL DÍA Y DIEZMOS | G94: 397.5 | I94: 110100
A95: 35 | B95: 2016-06-07 | C95: 610304 | E95: CELEBRACIÓN DÍAS FESTIVOS | F95: CELEBRACIÓN DÍA DEL NIÑO | G95: 200 | I95: 610300
A96: 35 | B96: 2016-06-07 | C96: 110101 | E96: CAJA GENERAL | F96: CELEBRACIÓN DÍA DEL NIÑO | H96: 200 | I96: 110100
A97: 35 | B97: 2016-06-07 | C97: 410101 | E97: OFRENDAS DE MIEMBROS | F97: OFRENDA GENERAL DEL DÍA | H97: 227.5 | I97: 410100
A98: 35 | B98: 2016-06-07 | C98: 410401 | E98: DIEZMOS DE MIEMBROS | F98: HERMANA BERTA MARÍA MORA | H98: 170 | I98: 410400
A99: 36 | B99: 2016-06-08 | C99: 110101 | E99: CAJA GENERAL | F99: DIEZMOS HERMANA GLADIS | G99: 90 | I99: 110100
A100: 36 | B100: 2016-06-08 | C100: 410401 | E100: DIEZMOS DE MIEMBROS | F100: HERMANA GLADYS | H100: 90 | I100: 410400
A101: 37 | B101: 2016-06-09 | C101: 110101 | E101: CAJA GENERAL | F101: OFRENDA DEL DÍA | G101: 500 | I101: 110100
A102: 37 | B102: 2016-06-09 | C102: 410102 | E102: OFRENDAS DE PARTICULARES | F102: OFRENDA DEL DÍA | H102: 500 | I102: 410100
A103: 38 | B103: 2016-06-10 | C103: 110101 | E103: CAJA GENERAL | F103: OFRENDA DEL DÍA Y APORTE PARA GASTOS BÁSICOS | G103: =32+20 -> 52 | I103: 110100
A104: 38 | B104: 2016-06-10 | C104: 610202 | E104: MANTENIMIENTO DE EDIFICIOS | F104: COMPRA DE LLAVE DE AGUA POTABLE | G104: 70 | I104: 610200
A105: 38 | B105: 2016-06-10 | C105: 610303 | E105: VIATICOS ALIMENTACIÓN Y TRANSPORTE | F105: HERMANA SOCORRO VIAJE A REUNIÓN | G105: 50 | I105: 610300
A106: 38 | B106: 2016-06-10 | C106: 410101 | E106: OFRENDAS DE MIEMBROS | F106: OFRENDA DEL DÍA | H106: 32 | I106: 410100
A107: 38 | B107: 2016-06-10 | C107: 410201 | E107: APORTES PARA GASTOS BASICOS | F107: HERMANA SILVIA | H107: 20 | I107: 410200
A108: 38 | B108: 2016-06-10 | C108: 110101 | E108: CAJA GENERAL | F108: GASTOS VARIOS | H108: 120 | I108: 110100
A109: 39 | B109: 2016-06-12 | C109: 110101 | E109: CAJA GENERAL | F109: OFRENDA GENERAL DEL DÍA | G109: 55 | I109: 110100
A110: 39 | B110: 2016-06-12 | C110: 410101 | E110: OFRENDAS DE MIEMBROS | F110: OFRENDA GENERAL DEL DÍA | H110: 55 | I110: 410100
A111: 40 | B111: 2016-06-14 | C111: 110101 | E111: CAJA GENERAL | F111: OFRENDA DEL DÍA Y DIEZMOS | G111: =81+60 -> 141 | I111: 110100
A112: 40 | B112: 2016-06-14 | C112: 610101 | E112: GASTO EN ENERGIA ELECTRICA | F112: FACTURA DEL MES DE MAYO DE 2016 | G112: 47.95 | I112: 610100
A113: 40 | B113: 2016-06-14 | C113: 620101 | E113: DIEZMOS PARA EL PASTOR | F113: ANTICIPO DE DIEZMOS AL PASTOR | G113: 54 | I113: 620100
A114: 40 | B114: 2016-06-14 | C114: 110101 | E114: CAJA GENERAL | F114: GASTOS VARIOS | H114: 101.95 | I114: 110100
A115: 40 | B115: 2016-06-14 | C115: 410101 | E115: OFRENDAS DE MIEMBROS | F115: OFRENDA GENERAL DEL DÍA | H115: 81 | I115: 410100
A116: 40 | B116: 2016-06-14 | C116: 410401 | E116: DIEZMOS DE MIEMBROS | F116: HERMANA FELIPA | H116: 60 | I116: 410400
A117: 41 | B117: 2016-06-15 | C117: 610202 | E117: MANTENIMIENTO DE EDIFICIOS | F117: PAGO MANO DE OBRA CONSTRUCCIÓN DE ACERA | G117: 100 | I117: 610200
A118: 41 | B118: 2016-06-15 | C118: 610303 | E118: VIATICOS ALIMENTACIÓN Y TRANSPORTE | F118: VIÁTICO HERMANA SOCORRO PARA REUNIÓN | G118: 70 | I118: 610300
A119: 41 | B119: 2016-06-15 | C119: 110101 | E119: CAJA GENERAL | F119: GASTOS VARIOS | H119: 170 | I119: 110100
A120: 42 | B120: 2016-06-16 | C120: 110101 | E120: CAJA GENERAL | F120: OFRENDA GENERAL DEL DÍA | G120: 35 | I120: 110100
A121: 42 | B121: 2016-06-16 | C121: 410101 | E121: OFRENDAS DE MIEMBROS | F121: OFRENDA GENERAL DEL DÍA | H121: 35 | I121: 410100
A122: 43 | B122: 2016-06-17 | C122: 610202 | E122: MANTENIMIENTO DE EDIFICIOS | F122: COMPRA DE CERRADURA PUERTA CASA PASTORAL | G122: 330 | I122: 610200
A123: 43 | B123: 2016-06-17 | C123: 610202 | E123: MANTENIMIENTO DE EDIFICIOS | F123: MANO DE OBRA ALBAÑIL CONSTRUCCIÓN ACERA | G123: 150 | I123: 610200
A124: 43 | B124: 2016-06-17 | C124: 610202 | E124: MANTENIMIENTO DE EDIFICIOS | F124: PAGO DE CERRAJERO | G124: 100 | I124: 610200
A125: 43 | B125: 2016-06-17 | C125: 110101 | E125: CAJA GENERAL | F125: GASTOS VARIOS | H125: 580 | I125: 110100
A126: 44 | B126: 2016-06-19 | C126: 110101 | E126: CAJA GENERAL | F126: OFRENDA GENERAL DEL DÍA | G126: 34 | I126: 110100
A127: 44 | B127: 2016-06-19 | C127: 410101 | E127: OFRENDAS DE MIEMBROS | F127: OFRENDA GENERAL DEL DÍA | H127: 34 | I127: 410100
A128: 45 | B128: 2016-06-20 | C128: 110101 | E128: CAJA GENERAL | F128: DIEZMOS HERMANA INMER CRUZ | G128: 40 | I128: 110100
A129: 45 | B129: 2016-06-20 | C129: 410401 | E129: DIEZMOS DE MIEMBROS | F129: HERMANA ÍNMER CRUZ | H129: 40 | I129: 410400
A130: 46 | B130: 2016-06-25 | C130: 110101 | E130: CAJA GENERAL | F130: DIEZMOS VARIOS | G130: =70+500+47 -> 617 | I130: 110100
A131: 46 | B131: 2016-06-25 | C131: 620101 | E131: =IF(C131<>"", VLOOKUP(C131, plan_cuentas, 2, FALSE), "") -> DIEZMOS PARA EL PASTOR | F131: ANTICIPO DE DIEZMOS A HERMANA SOCORRO | G131: 513 | I131: 620100
A132: 46 | B132: 2016-06-25 | C132: 410401 | E132: DIEZMOS DE MIEMBROS | F132: HERMANO FRANCISCO MENDOZA | H132: 70 | I132: 410400
A133: 46 | B133: 2016-06-25 | C133: 410401 | E133: DIEZMOS DE MIEMBROS | F133: HERMANA FRANCISCA MENDOZA | H133: 500 | I133: 410400
A134: 46 | B134: 2016-06-25 | C134: 410401 | E134: DIEZMOS DE MIEMBROS | F134: HERMANA LUISA GABRIELA MORA | H134: 47 | I134: 410400
A135: 46 | B135: 2016-06-25 | C135: 110101 | E135: CAJA GENERAL | F135: ANTICIPO DE DIEZMOS A HERMANA SOCORRO | H135: 513 | I135: 110100
A136: 47 | B136: 2016-06-25 | C136: 110101 | E136: CAJA GENERAL | F136: OFRENDA DEL DÍA | G136: 11.95 | I136: 110100
A137: 47 | B137: 2016-06-25 | C137: 410101 | E137: OFRENDAS DE MIEMBROS | F137: OFRENDA DEL DÍA | H137: 11.95 | I137: 410100
A138: 48 | B138: 2016-06-25 | C138: 620101 | E138: DIEZMOS PARA EL PASTOR | F138: LIQUIDACIÓN DE DIEZMOS REMANENTES | G138: 402 | I138: 620100
A139: 48 | B139: 2016-06-25 | C139: 620102 | E139: DIEZMOS DE DIEZMOS | F139: LIQUIDACIÓN DE DIEZMOS DE DIEZMOS | G139: 108 | I139: 620100
A140: 48 | B140: 2016-06-25 | C140: 610301 | E140: OFRENDA MISIONERA | F140: OFRENDA MISIONERA MAYO 2016 | G140: 50 | I140: 610300
A141: 48 | B141: 2016-06-25 | C141: 610302 | E141: APORTE PARA LA UNIDAD PASTORAL | F141: APORTE PARA LA UNIDAD PASTORAL | G141: 20 | I141: 610300
A142: 48 | B142: 2016-06-25 | C142: 110101 | E142: CAJA GENERAL | F142: GASTOS VARIOS | H142: 580 | I142: 110100
A143: 49 | B143: 2016-06-26 | C143: 110101 | E143: CAJA GENERAL | F143: OFRENDA DEL DÍA Y VIÁTICOS HNA. CANDA | G143: 123.5 | I143: 110100
A144: 49 | B144: 2016-06-26 | C144: 610303 | E144: VIATICOS ALIMENTACIÓN Y TRANSPORTE | F144: VIÁTICOS HNA. DIEGA VISITA MÉDICA | G144: 60 | I144: 610300
A145: 49 | B145: 2016-06-26 | C145: 410101 | E145: OFRENDAS DE MIEMBROS | F145: OFRENDA DEL DÍA | H145: 23.5 | I145: 410100
A146: 49 | B146: 2016-06-26 | C146: 410401 | E146: DIEZMOS DE MIEMBROS | F146: HERMANA CANDA | H146: 100 | I146: 410400
A147: 49 | B147: 2016-06-26 | C147: 110101 | E147: CAJA GENERAL | F147: VIÁTICOS HNA. DIEGA VISITA MÉDICA | H147: 60 | I147: 110100
A148: 50 | B148: 2016-06-28 | C148: 110101 | E148: CAJA GENERAL | F148: OFRENDA DEL DÍA Y APORTES PARA GAST. BÁSICOS | G148: 43 | I148: 110100
A149: 50 | B149: 2016-06-28 | C149: 410101 | E149: OFRENDAS DE MIEMBROS | F149: OFRENDA DEL DÍA | H149: 33 | I149: 410100
A150: 50 | B150: 2016-06-28 | C150: 410201 | E150: APORTES PARA GASTOS BASICOS | F150: HERMANA INMER | H150: 10 | I150: 410200
A151: 51 | B151: 2016-07-03 | C151: 110101 | E151: CAJA GENERAL | F151: OFRENDA DEL DÍA Y DIEZMOS HNA. GLADYS | G151: 107 | I151: 110100
A152: 51 | B152: 2016-07-03 | C152: 410101 | E152: OFRENDAS DE MIEMBROS | F152: OFRENDA DEL DÍA | H152: 67 | I152: 410100
A153: 51 | B153: 2016-07-03 | C153: 410401 | E153: DIEZMOS DE MIEMBROS | F153: HERMANA GLADYS | H153: 40 | I153: 410400
A154: 52 | B154: 2016-07-05 | C154: 110101 | E154: CAJA GENERAL | F154: OFRENDA DEL DÍA | G154: 53 | I154: 110100
A155: 52 | B155: 2016-07-05 | C155: 410101 | E155: OFRENDAS DE MIEMBROS | F155: OFRENDA DEL DÍA | H155: 53 | I155: 410100
A156: 53 | B156: 2016-07-06 | C156: 610202 | E156: MANTENIMIENTO DE EDIFICIOS | F156: REPELLO FINO PARED CASA PASTORAL | G156: 200 | I156: 610200
A157: 53 | B157: 2016-07-06 | C157: 110101 | E157: CAJA GENERAL | F157: REPELLO FINO PARED CASA PASTORAL | H157: 200 | I157: 110100
A158: 54 | B158: 2016-07-07 | C158: 110101 | E158: CAJA GENERAL | F158: OFRENDA DEL DÍA | G158: 70 | I158: 110100
A159: 54 | B159: 2016-07-07 | C159: 410101 | E159: OFRENDAS DE MIEMBROS | F159: OFRENDA DEL DÍA | H159: 70 | I159: 410100
A160: 55 | B160: 2016-07-10 | C160: 110101 | E160: CAJA GENERAL | F160: OFRENDA DEL DÍA | G160: 31 | I160: 110100
A161: 55 | B161: 2016-07-10 | C161: 410101 | E161: OFRENDAS DE MIEMBROS | F161: OFRENDA DEL DÍA | H161: 31 | I161: 410100
A162: 56 | B162: 2016-07-13 | C162: 110101 | E162: CAJA GENERAL | F162: DIEZMOS HNA. CANDA | G162: 20 | I162: 110100
A163: 56 | B163: 2016-07-13 | C163: 410401 | E163: DIEZMOS DE MIEMBROS | F163: HNA. CANDA | H163: 20 | I163: 410400
A164: 57 | B164: 2016-07-14 | C164: 110101 | E164: CAJA GENERAL | F164: OFRENDA DEL DÍA Y DIEZMOS | G164: 637 | I164: 110100
A165: 57 | B165: 2016-07-14 | C165: 410101 | E165: OFRENDAS DE MIEMBROS | F165: OFRENDA DEL DÍA | H165: 68 | I165: 410100
A166: 57 | B166: 2016-07-14 | C166: 410401 | E166: DIEZMOS DE MIEMBROS | F166: HERMANA JUANA AURORA | H166: 569 | I166: 410400
A167: 58 | B167: 2016-07-15 | C167: 110101 | E167: CAJA GENERAL | F167: DIEZMOS HNA. GLADYS | G167: 51 | I167: 110100
A168: 58 | B168: 2016-07-15 | C168: 410401 | E168: DIEZMOS DE MIEMBROS | F168: HNA. GLADYS | H168: 51 | I168: 410400
A169: 59 | B169: 2016-07-17 | C169: 110101 | E169: CAJA GENERAL | F169: OFRENDA DEL DÍA | G169: 23 | I169: 110100
A170: 59 | B170: 2016-07-17 | C170: 410101 | E170: OFRENDAS DE MIEMBROS | F170: OFRENDA DEL DÍA | H170: 23 | I170: 410100
A171: 60 | B171: 2016-07-18 | C171: 110101 | E171: CAJA GENERAL | F171: DIEZMOS HNA. GLADYS | G171: 40 | I171: 110100
A172: 60 | B172: 2016-07-18 | C172: 410401 | E172: DIEZMOS DE MIEMBROS | F172: HNA. GLADYS | H172: 40 | I172: 410400
A173: 61 | B173: 2016-07-19 | C173: 110101 | E173: CAJA GENERAL | F173: OFRENDA DEL DÍA | G173: 140 | I173: 110100
A174: 61 | B174: 2016-07-19 | C174: 410101 | E174: OFRENDAS DE MIEMBROS | F174: OFRENDA DEL DÍA | H174: 140 | I174: 410100
A175: 62 | B175: 2016-07-21 | C175: 110101 | E175: CAJA GENERAL | F175: OFRENDAS DEL DÍA Y DIEZMOS | G175: =65.5+225+225+200+120 -> 835.5 | I175: 110100
A176: 62 | B176: 2016-07-21 | C176: 610101 | E176: GASTO EN ENERGIA ELECTRICA | F176: JUNIO DE 2016 | G176: 50.52 | I176: 610100
A177: 62 | B177: 2016-07-21 | C177: 610102 | E177: GASTO EN AGUA POTABLE | F177: JUNIO Y JULIO 2016 | G177: 43.1 | I177: 610100
A178: 62 | B178: 2016-07-21 | C178: 410101 | E178: OFRENDAS DE MIEMBROS | F178: OFRENDAS DEL DÍA | H178: 65.5 | I178: 410100
A179: 62 | B179: 2016-07-21 | C179: 410401 | E179: DIEZMOS DE MIEMBROS | F179: HNO. BISMARCK | H179: 225 | I179: 410400
A180: 62 | B180: 2016-07-21 | C180: 410401 | E180: DIEZMOS DE MIEMBROS | F180: HNO. ULISES | H180: 225 | I180: 410400
A181: 62 | B181: 2016-07-21 | C181: 410401 | E181: DIEZMOS DE MIEMBROS | F181: HNO. FRANCISCO MENDOZA | H181: 200 | I181: 410400
A182: 62 | B182: 2016-07-21 | C182: 410401 | E182: DIEZMOS DE MIEMBROS | F182: HNA. BERTA MARÍA MORA | H182: 120 | I182: 410400
A183: 62 | B183: 2016-07-21 | C183: 110101 | E183: CAJA GENERAL | F183: GASTOS AGUA JUNIO Y JULIO Y LUZ JUNIO | H183: 93.62 | I183: 110100
A184: 63 | B184: 2016-07-21 | C184: 620101 | E184: DIEZMOS PARA EL PASTOR | F184: ANTICIPO DE DIEZMOS AL PASTOR | G184: 585 | I184: 620100
A185: 63 | B185: 2016-07-21 | C185: 110101 | E185: CAJA GENERAL | F185: ANTICIPO DE DIEZMOS AL PASTOR | H185: 585 | I185: 110100
A186: 64 | B186: 2016-07-23 | C186: 110101 | E186: CAJA GENERAL | F186: OFRENDA DEL DÍA Y DIEZMOS | G186: 130 | I186: 110100
A187: 64 | B187: 2016-07-23 | C187: 410101 | E187: OFRENDAS DE MIEMBROS | F187: OFRENDA DEL DÍA | H187: 20 | I187: 410100
A188: 64 | B188: 2016-07-23 | C188: 410401 | E188: DIEZMOS DE MIEMBROS | F188: HNA. GELYN | H188: 110 | I188: 410400
A189: 65 | B189: 2016-07-24 | C189: 110101 | E189: CAJA GENERAL | F189: OFRENDA DEL DÍA | G189: 53 | I189: 110100
A190: 65 | B190: 2016-07-24 | C190: 610303 | E190: VIATICOS ALIMENTACIÓN Y TRANSPORTE | F190: HERMANA SOCORRO REUNIÓN PASTORAL | G190: 60 | I190: 610300
A191: 65 | B191: 2016-07-24 | C191: 410101 | E191: OFRENDAS DE MIEMBROS | F191: OFRENDA DEL DÍA | H191: 53 | I191: 410100
A192: 65 | B192: 2016-07-24 | C192: 110101 | E192: CAJA GENERAL | F192: VIÁTICOS HNA. SOCORRO REUNIÓN PASTORAL | H192: 60 | I192: 110100
A193: 66 | B193: 2016-07-25 | C193: 110101 | E193: CAJA GENERAL | F193: HERMANA CANDA | G193: 20 | I193: 110100
A194: 66 | B194: 2016-07-25 | C194: 410401 | E194: DIEZMOS DE MIEMBROS | F194: HERMANA CANDA | H194: 20 | I194: 410400
A195: 67 | B195: 2016-07-26 | C195: 110101 | E195: =IF(C195<>"", VLOOKUP(C195, plan_cuentas, 2, FALSE), "") -> CAJA GENERAL | F195: OFRENDA DEL DÍA Y APORTE GASTOS BÁSICOS | G195: 150 | I195: 110100
A196: 67 | B196: 2016-07-26 | C196: 410201 | E196: APORTES PARA GASTOS BASICOS | F196: HERMANA DIEGA | H196: 50 | I196: 410200
A197: 67 | B197: 2016-07-26 | C197: 410101 | E197: OFRENDAS DE MIEMBROS | F197: OFRENDA DEL DÍA | H197: 100 | I197: 410100
A198: 68 | B198: 2016-07-28 | C198: 110101 | E198: CAJA GENERAL | F198: OFRENDA DEL DÍA | G198: 45 | I198: 110100
A199: 68 | B199: 2016-07-28 | C199: 410101 | E199: OFRENDAS DE MIEMBROS | F199: OFRENDA DEL DÍA | H199: 45 | I199: 410100
A200: 69 | B200: 2016-07-29 | C200: 610301 | E200: OFRENDA MISIONERA | F200: OFRENDA MISIONERA | G200: 50 | I200: 610300
... 144 more rows

Sheet logins
A1: USUARIO | B1: PASSWORD
A2: yesly | B2: 0106_carrusel
A3: gmartinez | B3: g_martinez

Sheet stock
A1: FECHA | B1: TRANSACCION | C1: ORDEN | D1: CODIGO_PRODUCTO | E1: CONCEPTOS | F1: CANTIDAD | G1: COSTO_UNIT | H1: COSTO_TOTAL
A2: 2016-08-06 | B2: ENTRADA | C2: 1 | D2: 11010101 | E2: COMPRAS | F2: 50 | G2: 8.5 | H2: 425
A3: 2016-08-06 | B3: SALIDA | C3: 1 | D3: 11010101 | E3: VENTAS | F3: -30 | G3: 8.5 | H3: -255
A4: 2016-08-06 | B4: ENTRADA | C4: 2 | D4: 11010101 | E4: COMPRAS | F4: 100 | G4: 7 | H4: 700
A5: 2016-08-06 | B5: SALIDA | C5: 1 | D5: 11010101 | E5: VENTAS | F5: -20 | G5: 8.5 | H5: -170
A6: 2016-08-06 | B6: SALIDA | C6: 2 | D6: 11010101 | E6: VENTAS | F6: -40 | G6: 7 | H6: -280

Sheet productos
A1: CODIGO_PROD | B1: CATEGORIA | C1: GRUPO | D1: DESCRIPCION_DEL_PRODUCTO | E1: PRESENTACION
A2: 11010101 | B2: BEBIDAS | C2: BEBIDAS GASEOSAS | D2: BIG COLA | E2: 500 ML
A3: 11010102 | B3: BEBIDAS | C3: BEBIDAS GASEOSAS | D3: BIG COLA | E3: 1000 ML

Sheet querr1
A1: =bussiness_name -> IGLESIA ESTRELLA DE BELÉN
A2: =UPPER(address) -> SAN MARCOS
A3: ="***** Tel: " & tel & " *****" -> ***** Tel: *****
A4: EXISTENCIAS DE PRODUCTOS POR ORDEN DE PEDIDO
A6: PRODUCTO: | C6: 11010101 | D6: BIG COLA 500 ML
A7: NUMERO DE ORDEN | B7: COSTO UNITARIO | C7: ENTRADAS | D7: SALIDAS | E7: EXISTENCIAS
A8: 1 | B8: 8.5 | C8: 50 | D8: -50 | E8: 0
A9: 2 | B9: 7 | C9: 100 | D9: -40 | E9: 60
A10: **** TOTALES ***** | C10: 150 | D10: -90 | E10: 60

Sheet categorias
A1: CODIGO_CATEGORIA | B1: NOMBRE_CATEGORIA
A2: 110401 | B2: BEBIDAS
A3: 110402 | B3: MATERIAS PRIMAS
A4: 110403 | B4: CIGARRILLOS
A7: CODIGO_CATEGORIA | B7: CODIGO_SUB_CATEGORIA | C7: NOMBRE_SUB_CATEGORIA
A8: 110401 | B8: 11040101 | C8: BEBIDAS NATURALES
A9: 110401 | B9: 11040102 | C9: BEBIDAS GASEOSAS
A10: 110401 | B10: 11040103 | C10: BEBIDAS ALCOHOLICAS
A13: CODIGO_CATEGORIA | B13: CODIGO_SUB_CATEGORIA | C13: NOMBRE_SUB_CATEGORIA
A14: 110402 | B14: 11040201 | C14: CARNES
A15: 110402 | B15: 11040202 | C15: GRANOS
A16: 110402 | B16: 11040203 | C16: CONDIMENTOS
A17: 110402 | B17: 11040204 | C17: FRUTAS, VERDURAS Y VEGETALES
A18: 110402 | B18: 11040205 | C18: AZUCARES Y SALES
A19: 110402 | B19: 11040206 | C19: CEREALES Y POLVOS VARIOS

Sheet cd
A1: FECHA | B1: CUENTA | C1: DIA | D1: NOMBRE DE LA CUENTA | E1: DESCRIPCIÓN DE LA CUENTA | F1: DEBE | G1: HABER
A2: 2016-10-19 | B2: 110101 | C2: =WEEKDAY(A2, 2) -> 3 | D2: =IF(B2<>"", VLOOKUP(B2, plan_cuentas, 2, FALSE), "") -> CAJA GENERAL | E2: OFRENDA DEL DIA | F2: 58
A3: 2016-10-19 | B3: 410101 | C3: 3 | D3: OFRENDAS DE MIEMBROS | E3: OFRENDA DEL DIA | G3: 58
A4: 2016-10-20 | B4: 110101 | C4: 4 | D4: CAJA GENERAL | E4: OFRENDA DEL DIA | F4: 33
A5: 2016-10-20 | B5: 610202 | C5: 4 | D5: MANTENIMIENTO DE EDIFICIOS | E5: COMPRA CERÁMICA PARA LA ACERA DE LA IGLESIA | F5: 600
A6: 2016-10-20 | B6: 410101 | C6: 4 | D6: OFRENDAS DE MIEMBROS | E6: OFRENDA DEL DIA | G6: 33
A7: 2016-10-20 | B7: 110101 | C7: 4 | D7: CAJA GENERAL | E7: COMPRA CERÁMICA PARA LA ACERA DE LA IGLESIA | G7: 600
A8: 2016-10-22 | B8: 110101 | C8: 6 | D8: CAJA GENERAL | E8: DIEZMOS YESLY MORA Y JEREMY MORA | F8: =150+2800 -> 2950
A9: 2016-10-22 | B9: 410401 | C9: 6 | D9: DIEZMOS DE MIEMBROS | E9: YESLY MORA | G9: 2800
A10: 2016-10-22 | B10: 410401 | C10: 6 | D10: DIEZMOS DE MIEMBROS | E10: JEREMY MORA | G10: 150
A11: 2016-10-02 | B11: 110101 | C11: 7 | D11: CAJA GENERAL | E11: OFRENDA DEL DIA Y DIEZMOS | F11: 168.5
A12: 2016-10-02 | B12: 410101 | C12: 7 | D12: OFRENDAS DE MIEMBROS | E12: OFRENDA DEL DIA | G12: 68.5
A13: 2016-10-02 | B13: 410401 | C13: 7 | D13: DIEZMOS DE MIEMBROS | E13: HERMANO RONALDO | G13: 100
A14: 2016-10-03 | B14: 110101 | C14: 1 | D14: CAJA GENERAL | E14: DIEZMOS HEMANO JEREMY MORA | F14: 30
A15: 2016-10-03 | B15: 410401 | C15: 1 | D15: DIEZMOS DE MIEMBROS | E15: JEREMY MORA | G15: 30
A16: 2016-10-06 | B16: 110101 | C16: 4 | D16: CAJA GENERAL | E16: OFRENDA DEL DIA | F16: 25
A17: 2016-10-06 | B17: 410101 | C17: 4 | D17: OFRENDAS DE MIEMBROS | E17: OFRENDA DEL DIA | G17: 25
A18: 2016-10-09 | B18: 110101 | C18: 7 | D18: CAJA GENERAL | E18: OFRENDA DEL DIA | F18: 29
A19: 2016-10-09 | B19: 610101 | C19: 7 | D19: GASTO EN ENERGIA ELECTRICA | E19: ENERGIA ELECTRICA SEPTIEMBRE-2016 | F19: 70.56
A20: 2016-10-09 | B20: 610102 | C20: 7 | D20: GASTO EN AGUA POTABLE | E20: AGUA POTABLE OCTUBRE-2016 | F20: 29.53
A21: 2016-10-09 | B21: 410101 | C21: 7 | D21: OFRENDAS DE MIEMBROS | E21: OFRENDA DEL DIA | G21: 29
A22: 2016-10-09 | B22: 110101 | C22: 7 | D22: CAJA GENERAL | E22: GASTOS BÁSICOS ENERG-SEP/16 Y AGUA-OCT/16 | G22: 100.09
A23: 2016-10-13 | B23: 110101 | C23: 4 | D23: CAJA GENERAL | E23: OFRENDA DEL DIA | F23: 42
A24: 2016-10-13 | B24: 610303 | C24: 4 | D24: VIATICOS ALIMENTACIÓN Y TRANSPORTE | E24: HERMANA SOCORRO, VIAJE A SEMINARIO | F24: 60
A25: 2016-10-13 | B25: 610205 | C25: 4 | D25: MANTENIMIENTO DE MOBILIARIO | E25: MANTENIMIENTO DE ESCAÑOS Y PUERTAS | F25: 80
A26: 2016-10-13 | B26: 610202 | C26: 4 | D26: MANTENIMIENTO DE EDIFICIOS | E26: COMPRA DE DOS CAJAS DE CERÁMICA | F26: 650
A27: 2016-10-13 | B27: 410101 | C27: 4 | D27: OFRENDAS DE MIEMBROS | E27: OFRENDA DEL DIA | G27: 42
A28: 2016-10-13 | B28: 110101 | C28: 4 | D28: CAJA GENERAL | E28: GASTOS VARIOS DEL DÍA | G28: 790
A29: 2016-10-15 | B29: 110101 | C29: 6 | D29: CAJA GENERAL | E29: OFRENDA DEL DIA | F29: 100
A30: 2016-10-15 | B30: 410102 | C30: 6 | D30: OFRENDAS DE PARTICULARES | E30: OFRENDA ORLANDO VELA | G30: 100
A31: 2016-10-16 | B31: 110101 | C31: 7 | D31: CAJA GENERAL | E31: OFRENDA DEL DIA | F31: 34
A32: 2016-10-16 | B32: 410101 | C32: 7 | D32: OFRENDAS DE MIEMBROS | E32: OFRENDA DEL DIA | G32: 34
A33: 2016-10-06 | B33: 110101 | C33: 4 | D33: CAJA GENERAL | E33: APORTES PARA GASTOS BASICOS | F33: 50
A34: 2016-10-06 | B34: 410201 | C34: =WEEKDAY(A34, 2) -> 4 | D34: APORTES PARA GASTOS BASICOS | E34: HERMANA INMER CRUZ | G34: 50
A35: 2016-10-22 | B35: 110101 | C35: 6 | D35: CAJA GENERAL | E35: REVERSIÓN DE GASTOS EN TRASLADO DE CERÁMICA | F35: 200
A36: 2016-10-22 | B36: 610202 | C36: 6 | D36: MANTENIMIENTO DE EDIFICIOS | E36: REVERSIÓN DE GASTOS EN TRASLADO DE CERÁMICA | G36: 200
A37: 2016-10-23 | B37: 110101 | C37: 7 | D37: CAJA GENERAL | E37: OFRENDA DEL DIA | F37: 87
A38: 2016-10-23 | B38: 410101 | C38: 7 | D38: OFRENDAS DE MIEMBROS | E38: OFRENDA DEL DIA | G38: 87
A39: 2016-10-27 | B39: 110101 | C39: 4 | D39: CAJA GENERAL | E39: OFRENDA DEL DIA | F39: 25
A40: 2016-10-27 | B40: 410101 | C40: 4 | D40: OFRENDAS DE MIEMBROS | E40: OFRENDA DEL DIA | G40: 25
A41: 2016-10-27 | B41: 110101 | C41: 4 | D41: CAJA GENERAL | E41: DIEZMOS VARIOS | F41: 120
A42: 2016-10-27 | B42: 410401 | C42: 4 | D42: DIEZMOS DE MIEMBROS | E42: HERMANA CANDA | G42: 20
A43: 2016-10-27 | B43: 410401 | C43: 4 | D43: DIEZMOS DE MIEMBROS | E43: HERMANA BERTA MARIA MORA | G43: 100
A44: 2016-10-28 | B44: 610202 | C44: 5 | D44: MANTENIMIENTO DE EDIFICIOS | E44: COMPRA CERAMICA | F44: 350
A45: 2016-10-28 | B45: 110101 | C45: 5 | D45: CAJA GENERAL | E45: COMPRA CERAMICA | G45: 350
A46: 2016-10-25 | B46: 110101 | C46: 2 | D46: CAJA GENERAL | E46: OFRENDA DEL DIA | F46: 73
A47: 2016-10-25 | B47: 410101 | C47: 2 | D47: OFRENDAS DE MIEMBROS | E47: OFRENDA DEL DIA | G47: 73
A48: 2016-10-29 | B48: 620101 | C48: 6 | D48: DIEZMOS PARA EL PASTOR | E48: DIEZMOS PARA EL PASTOR | F48: 2880
A49: 2016-10-29 | B49: 620102 | C49: 6 | D49: DIEZMOS DE DIEZMOS | E49: DIEZMOS DE DIEZMOS | F49: 320
A50: 2016-10-29 | B50: 610301 | C50: 6 | D50: OFRENDA MISIONERA | E50: OFRENDA MISIONERA OCTUBRE/2016 | F50: 50
A51: 2016-10-29 | B51: 610302 | C51: 6 | D51: APORTE PARA LA UNIDAD PASTORAL | E51: APORTE PARA LA UNIDAD PASTORAL OCT/2016 | F51: 20
A52: 2016-10-29 | B52: 110101 | C52: 6 | D52: CAJA GENERAL | E52: GASTOS VARIOS | G52: 3270
A62: RESUMEN
A63: CUENTAS | B63: DIAS | C63: INGRESO
A64: 410101 | B64: 1 | C64: 0
A65: 410102 | B65: 2 | C65: 73
A66: 410201 | B66: 3 | C66: 58
B67: 4 | C67: 175
B68: 5 | C68: 0
B69: 6 | C69: 300
B70: 7 | C70: 218.5
B71: TOTAL | C71: =SUM(C64:C70) -> 824.5

Sheet D
E1: Proteger
A2: =bussiness_name -> IGLESIA ESTRELLA DE BELÉN
A3: ="RESUMEN CONTABLE DE "&B7 -> RESUMEN CONTABLE DE
A4: ="DEL "&TEXT(fecha_inicial, "DD")&" DE "&UPPER(TEXT(fecha_inicial, "MMMM"))&" DEL " & TEXT(fecha_inicial, "YYYY") & " AL "&TEXT(fecha_final, "DD")&" DE "&UPPER(TEXT(fecha_final, "MMMM"))&" DEL "&TEXT(fecha_final, "YYYY") -> DEL 02 DE OCTUBRE DEL 2016 AL 29 DE OCTUBRE DEL 2016
A5: =address & " *** Tel/Fax: " & tel & " *** " & email -> SAN MARCOS *** Tel/Fax: ***
B7: =UPPER(IF(ISBLANK(A7),"",IFERROR(VLOOKUP(A7,plan_cuentas,2,FALSE),"Código de cuenta incorrecto"))) ->  | D7: ="MOVIMIENTOS DE "&UPPER(TEXT(fecha_final, "MMMM")) -> MOVIMIENTOS DE OCTUBRE
A8: CODIGO | B8: NOMBRE DE LA CUENTA | C8: SALDO INICIAL | D8: DEBITOS | E8: CREDITOS | F8: SALDO FINAL
B11: =IF(A11<>"", IF(ISERROR(VLOOKUP(A11, plan_cuentas,2, FALSE)), "Código de Cuenta Incorrecto", UPPER(VLOOKUP(A11, plan_cuentas, 2, FALSE))), "") ->  | C11: =SUM(C12:C17) -> 0 | D11: =SUM(D12:D17) -> 0 | E11: =SUM(E12:E17) -> 0 | F11: =C11+D11-E11 -> 0
B12: =IF(A12<>"", IF(ISERROR(VLOOKUP(A12, plan_cuentas,2, FALSE)), "Código de Cuenta Incorrecto", UPPER(VLOOKUP(A12, plan_cuentas, 2, FALSE))), "") ->  | C12: =IF(ISBLANK(A12),0,SUMIFS(Registros!G:G,Registros!B:B,"<"&fecha_inicial,Registros!C:C,"="&A12)-IF(ISBLANK(A12),0,SUMIFS(Registros!H:H,Registros!B:B,"<"&fecha_inicial,Registros!C:C,"="&A12))) -> 0 | D12: =IF(ISBLANK(A12),0,SUMIFS(Registros!G:G,Registros!B:B,">="&fecha_inicial, Registros!B:B, "<="&fecha_final,Registros!C:C,"="&A12)) -> 0 | E12: =IF(ISBLANK(A12),0,SUMIFS(Registros!H:H,Registros!B:B,">="&fecha_inicial, Registros!B:B, "<="&fecha_final,Registros!C:C,"="&A12)) -> 0 | F12: =C12+D12-E12 -> 0
B13: =IF(A13<>0, IF(ISERROR(VLOOKUP(A13, plan_cuentas,2, FALSE)), "Código de Cuenta Incorrecto", UPPER(VLOOKUP(A13, plan_cuentas, 2, FALSE))), "") ->  | C13: =IF(ISBLANK(A13),0,SUMIFS(Registros!G:G,Registros!B:B,"<"&fecha_inicial,Registros!C:C,"="&A13)-IF(ISBLANK(A13),0,SUMIFS(Registros!H:H,Registros!B:B,"<"&fecha_inicial,Registros!C:C,"="&A13))) -> 0 | D13: =IF(ISBLANK(A13),0,SUMIFS(Registros!G:G,Registros!B:B,">="&fecha_inicial, Registros!B:B, "<="&fecha_final,Registros!C:C,"="&A13)) -> 0 | E13: =IF(ISBLANK(A13),0,SUMIFS(Registros!H:H,Registros!B:B,">="&fecha_inicial, Registros!B:B, "<="&fecha_final,Registros!C:C,"="&A13)) -> 0 | F13: =C13+D13-E13 -> 0
C14: =IF(ISBLANK(A14),0,SUMIFS(Registros!G:G,Registros!B:B,"<"&fecha_inicial,Registros!C:C,"="&A14)-IF(ISBLANK(A14),0,SUMIFS(Registros!H:H,Registros!B:B,"<"&fecha_inicial,Registros!C:C,"="&A14))) -> 0 | D14: =IF(ISBLANK(A14),0,SUMIFS(Registros!G:G,Registros!B:B,">="&fecha_inicial, Registros!B:B, "<="&fecha_final,Registros!C:C,"="&A14)) -> 0 | E14: =IF(ISBLANK(A14),0,SUMIFS(Registros!H:H,Registros!B:B,">="&fecha_inicial, Registros!B:B, "<="&fecha_final,Registros!C:C,"="&A14)) -> 0 | F14: 0
C15: =IF(ISBLANK(A15),0,SUMIFS(Registros!G:G,Registros!B:B,"<"&fecha_inicial,Registros!C:C,"="&A15)-IF(ISBLANK(A15),0,SUMIFS(Registros!H:H,Registros!B:B,"<"&fecha_inicial,Registros!C:C,"="&A15))) -> 0 | D15: =IF(ISBLANK(A15),0,SUMIFS(Registros!G:G,Registros!B:B,">="&fecha_inicial, Registros!B:B, "<="&fecha_final,Registros!C:C,"="&A15)) -> 0 | E15: =IF(ISBLANK(A15),0,SUMIFS(Registros!H:H,Registros!B:B,">="&fecha_inicial, Registros!B:B, "<="&fecha_final,Registros!C:C,"="&A15)) -> 0 | F15: 0
C16: =IF(ISBLANK(A16),0,SUMIFS(Registros!G:G,Registros!B:B,"<"&fecha_inicial,Registros!C:C,"="&A16)-IF(ISBLANK(A16),0,SUMIFS(Registros!H:H,Registros!B:B,"<"&fecha_inicial,Registros!C:C,"="&A16))) -> 0 | D16: =IF(ISBLANK(A16),0,SUMIFS(Registros!G:G,Registros!B:B,">="&fecha_inicial, Registros!B:B, "<="&fecha_final,Registros!C:C,"="&A16)) -> 0 | E16: =IF(ISBLANK(A16),0,SUMIFS(Registros!H:H,Registros!B:B,">="&fecha_inicial, Registros!B:B, "<="&fecha_final,Registros!C:C,"="&A16)) -> 0 | F16: 0
C17: =IF(ISBLANK(A17),0,SUMIFS(Registros!G:G,Registros!B:B,"<"&fecha_inicial,Registros!C:C,"="&A17)-IF(ISBLANK(A17),0,SUMIFS(Registros!H:H,Registros!B:B,"<"&fecha_inicial,Registros!C:C,"="&A17))) -> 0 | D17: =IF(ISBLANK(A17),0,SUMIFS(Registros!G:G,Registros!B:B,">="&fecha_inicial, Registros!B:B, "<="&fecha_final,Registros!C:C,"="&A17)) -> 0 | E17: =IF(ISBLANK(A17),0,SUMIFS(Registros!H:H,Registros!B:B,">="&fecha_inicial, Registros!B:B, "<="&fecha_final,Registros!C:C,"="&A17)) -> 0 | F17: 0
B18: =IF(A18<>0, IF(ISERROR(VLOOKUP(A18, plan_cuentas,2, FALSE)), "Código de Cuenta Incorrecto", UPPER(VLOOKUP(A18, plan_cuentas, 2, FALSE))), "") ->  | C18: =SUM(C19:C24) -> 0 | D18: =SUM(D19:D24) -> 0 | E18: =SUM(E19:E24) -> 0 | F18: 0
B19: =IF(A19<>"", IF(ISERROR(VLOOKUP(A19, plan_cuentas,2, FALSE)), "Código de Cuenta Incorrecto", UPPER(VLOOKUP(A19, plan_cuentas, 2, FALSE))), "") ->  | C19: =IF(ISBLANK(A19),0,SUMIFS(Registros!G:G,Registros!B:B,"<"&fecha_inicial,Registros!C:C,"="&A19)-IF(ISBLANK(A19),0,SUMIFS(Registros!H:H,Registros!B:B,"<"&fecha_inicial,Registros!C:C,"="&A19))) -> 0 | D19: =IF(ISBLANK(A19),0,SUMIFS(Registros!G:G,Registros!B:B,">="&fecha_inicial, Registros!B:B, "<="&fecha_final,Registros!C:C,"="&A19)) -> 0 | E19: =IF(ISBLANK(A19),0,SUMIFS(Registros!H:H,Registros!B:B,">="&fecha_inicial, Registros!B:B, "<="&fecha_final,Registros!C:C,"="&A19)) -> 0 | F19: 0
C20: =IF(ISBLANK(A20),0,SUMIFS(Registros!G:G,Registros!B:B,"<"&fecha_inicial,Registros!C:C,"="&A20)-IF(ISBLANK(A20),0,SUMIFS(Registros!H:H,Registros!B:B,"<"&fecha_inicial,Registros!C:C,"="&A20))) -> 0 | D20: =IF(ISBLANK(A20),0,SUMIFS(Registros!G:G,Registros!B:B,">="&fecha_inicial, Registros!B:B, "<="&fecha_final,Registros!C:C,"="&A20)) -> 0 | E20: =IF(ISBLANK(A20),0,SUMIFS(Registros!H:H,Registros!B:B,">="&fecha_inicial, Registros!B:B, "<="&fecha_final,Registros!C:C,"="&A20)) -> 0 | F20: 0
C21: =IF(ISBLANK(A21),0,SUMIFS(Registros!G:G,Registros!B:B,"<"&fecha_inicial,Registros!C:C,"="&A21)-IF(ISBLANK(A21),0,SUMIFS(Registros!H:H,Registros!B:B,"<"&fecha_inicial,Registros!C:C,"="&A21))) -> 0 | D21: =IF(ISBLANK(A21),0,SUMIFS(Registros!G:G,Registros!B:B,">="&fecha_inicial, Registros!B:B, "<="&fecha_final,Registros!C:C,"="&A21)) -> 0 | E21: =IF(ISBLANK(A21),0,SUMIFS(Registros!H:H,Registros!B:B,">="&fecha_inicial, Registros!B:B, "<="&fecha_final,Registros!C:C,"="&A21)) -> 0 | F21: 0
C22: =IF(ISBLANK(A22),0,SUMIFS(Registros!G:G,Registros!B:B,"<"&fecha_inicial,Registros!C:C,"="&A22)-IF(ISBLANK(A22),0,SUMIFS(Registros!H:H,Registros!B:B,"<"&fecha_inicial,Registros!C:C,"="&A22))) -> 0 | D22: =IF(ISBLANK(A22),0,SUMIFS(Registros!G:G,Registros!B:B,">="&fecha_inicial, Registros!B:B, "<="&fecha_final,Registros!C:C,"="&A22)) -> 0 | E22: =IF(ISBLANK(A22),0,SUMIFS(Registros!H:H,Registros!B:B,">="&fecha_inicial, Registros!B:B, "<="&fecha_final,Registros!C:C,"="&A22)) -> 0 | F22: 0
C23: =IF(ISBLANK(A23),0,SUMIFS(Registros!G:G,Registros!B:B,"<"&fecha_inicial,Registros!C:C,"="&A23)-IF(ISBLANK(A23),0,SUMIFS(Registros!H:H,Registros!B:B,"<"&fecha_inicial,Registros!C:C,"="&A23))) -> 0 | D23: =IF(ISBLANK(A23),0,SUMIFS(Registros!G:G,Registros!B:B,">="&fecha_inicial, Registros!B:B, "<="&fecha_final,Registros!C:C,"="&A23)) -> 0 | E23: =IF(ISBLANK(A23),0,SUMIFS(Registros!H:H,Registros!B:B,">="&fecha_inicial, Registros!B:B, "<="&fecha_final,Registros!C:C,"="&A23)) -> 0 | F23: 0
C24: =IF(ISBLANK(A24),0,SUMIFS(Registros!G:G,Registros!B:B,"<"&fecha_inicial,Registros!C:C,"="&A24)-IF(ISBLANK(A24),0,SUMIFS(Registros!H:H,Registros!B:B,"<"&fecha_inicial,Registros!C:C,"="&A24))) -> 0 | D24: =IF(ISBLANK(A24),0,SUMIFS(Registros!G:G,Registros!B:B,">="&fecha_inicial, Registros!B:B, "<="&fecha_final,Registros!C:C,"="&A24)) -> 0 | E24: =IF(ISBLANK(A24),0,SUMIFS(Registros!H:H,Registros!B:B,">="&fecha_inicial, Registros!B:B, "<="&fecha_final,Registros!C:C,"="&A24)) -> 0 | F24: 0
B25: =IF(A25<>0, IF(ISERROR(VLOOKUP(A25, plan_cuentas,2, FALSE)), "Código de Cuenta Incorrecto", UPPER(VLOOKUP(A25, plan_cuentas, 2, FALSE))), "") ->  | C25: =SUM(C26:C31) -> 0 | D25: =SUM(D26:D31) -> 0 | E25: =SUM(E26:E31) -> 0 | F25: 0
B26: =IF(A26<>"", IF(ISERROR(VLOOKUP(A26, plan_cuentas,2, FALSE)), "Código de Cuenta Incorrecto", UPPER(VLOOKUP(A26, plan_cuentas, 2, FALSE))), "") ->  | C26: =IF(ISBLANK(A26),0,SUMIFS(Registros!G:G,Registros!B:B,"<"&fecha_inicial,Registros!C:C,"="&A26)-IF(ISBLANK(A26),0,SUMIFS(Registros!H:H,Registros!B:B,"<"&fecha_inicial,Registros!C:C,"="&A26))) -> 0 | D26: =IF(ISBLANK(A26),0,SUMIFS(Registros!G:G,Registros!B:B,">="&fecha_inicial, Registros!B:B, "<="&fecha_final,Registros!C:C,"="&A26)) -> 0 | E26: =IF(ISBLANK(A26),0,SUMIFS(Registros!H:H,Registros!B:B,">="&fecha_inicial, Registros!B:B, "<="&fecha_final,Registros!C:C,"="&A26)) -> 0 | F26: 0
C27: =IF(ISBLANK(A27),0,SUMIFS(Registros!G:G,Registros!B:B,"<"&fecha_inicial,Registros!C:C,"="&A27)-IF(ISBLANK(A27),0,SUMIFS(Registros!H:H,Registros!B:B,"<"&fecha_inicial,Registros!C:C,"="&A27))) -> 0 | D27: =IF(ISBLANK(A27),0,SUMIFS(Registros!G:G,Registros!B:B,">="&fecha_inicial, Registros!B:B, "<="&fecha_final,Registros!C:C,"="&A27)) -> 0 | E27: =IF(ISBLANK(A27),0,SUMIFS(Registros!H:H,Registros!B:B,">="&fecha_inicial, Registros!B:B, "<="&fecha_final,Registros!C:C,"="&A27)) -> 0 | F27: 0
C28: =IF(ISBLANK(A28),0,SUMIFS(Registros!G:G,Registros!B:B,"<"&fecha_inicial,Registros!C:C,"="&A28)-IF(ISBLANK(A28),0,SUMIFS(Registros!H:H,Registros!B:B,"<"&fecha_inicial,Registros!C:C,"="&A28))) -> 0 | D28: =IF(ISBLANK(A28),0,SUMIFS(Registros!G:G,Registros!B:B,">="&fecha_inicial, Registros!B:B, "<="&fecha_final,Registros!C:C,"="&A28)) -> 0 | E28: =IF(ISBLANK(A28),0,SUMIFS(Registros!H:H,Registros!B:B,">="&fecha_inicial, Registros!B:B, "<="&fecha_final,Registros!C:C,"="&A28)) -> 0 | F28: 0
C29: =IF(ISBLANK(A29),0,SUMIFS(Registros!G:G,Registros!B:B,"<"&fecha_inicial,Registros!C:C,"="&A29)-IF(ISBLANK(A29),0,SUMIFS(Registros!H:H,Registros!B:B,"<"&fecha_inicial,Registros!C:C,"="&A29))) -> 0 | D29: =IF(ISBLANK(A29),0,SUMIFS(Registros!G:G,Registros!B:B,">="&fecha_inicial, Registros!B:B, "<="&fecha_final,Registros!C:C,"="&A29)) -> 0 | E29: =IF(ISBLANK(A29),0,SUMIFS(Registros!H:H,Registros!B:B,">="&fecha_inicial, Registros!B:B, "<="&fecha_final,Registros!C:C,"="&A29)) -> 0 | F29: 0
C30: =IF(ISBLANK(A30),0,SUMIFS(Registros!G:G,Registros!B:B,"<"&fecha_inicial,Registros!C:C,"="&A30)-IF(ISBLANK(A30),0,SUMIFS(Registros!H:H,Registros!B:B,"<"&fecha_inicial,Registros!C:C,"="&A30))) -> 0 | D30: =IF(ISBLANK(A30),0,SUMIFS(Registros!G:G,Registros!B:B,">="&fecha_inicial, Registros!B:B, "<="&fecha_final,Registros!C:C,"="&A30)) -> 0 | E30: =IF(ISBLANK(A30),0,SUMIFS(Registros!H:H,Registros!B:B,">="&fecha_inicial, Registros!B:B, "<="&fecha_final,Registros!C:C,"="&A30)) -> 0 | F30: 0
C31: =IF(ISBLANK(A31),0,SUMIFS(Registros!G:G,Registros!B:B,"<"&fecha_inicial,Registros!C:C,"="&A31)-IF(ISBLANK(A31),0,SUMIFS(Registros!H:H,Registros!B:B,"<"&fecha_inicial,Registros!C:C,"="&A31))) -> 0 | D31: =IF(ISBLANK(A31),0,SUMIFS(Registros!G:G,Registros!B:B,">="&fecha_inicial, Registros!B:B, "<="&fecha_final,Registros!C:C,"="&A31)) -> 0 | E31: =IF(ISBLANK(A31),0,SUMIFS(Registros!H:H,Registros!B:B,">="&fecha_inicial, Registros!B:B, "<="&fecha_final,Registros!C:C,"="&A31)) -> 0 | F31: 0
C32: =SUM(C33:C38) -> 0 | D32: =SUM(D33:D38) -> 0 | E32: =SUM(E33:E38) -> 0 | F32: 0
C33: =IF(ISBLANK(A33),0,SUMIFS(Registros!G:G,Registros!B:B,"<"&fecha_inicial,Registros!C:C,"="&A33)-IF(ISBLANK(A33),0,SUMIFS(Registros!H:H,Registros!B:B,"<"&fecha_inicial,Registros!C:C,"="&A33))) -> 0 | D33: =IF(ISBLANK(A33),0,SUMIFS(Registros!G:G,Registros!B:B,">="&fecha_inicial, Registros!B:B, "<="&fecha_final,Registros!C:C,"="&A33)) -> 0 | E33: =IF(ISBLANK(A33),0,SUMIFS(Registros!H:H,Registros!B:B,">="&fecha_inicial, Registros!B:B, "<="&fecha_final,Registros!C:C,"="&A33)) -> 0 | F33: 0
C34: =IF(ISBLANK(A34),0,SUMIFS(Registros!G:G,Registros!B:B,"<"&fecha_inicial,Registros!C:C,"="&A34)-IF(ISBLANK(A34),0,SUMIFS(Registros!H:H,Registros!B:B,"<"&fecha_inicial,Registros!C:C,"="&A34))) -> 0 | D34: =IF(ISBLANK(A34),0,SUMIFS(Registros!G:G,Registros!B:B,">="&fecha_inicial, Registros!B:B, "<="&fecha_final,Registros!C:C,"="&A34)) -> 0 | E34: =IF(ISBLANK(A34),0,SUMIFS(Registros!H:H,Registros!B:B,">="&fecha_inicial, Registros!B:B, "<="&fecha_final,Registros!C:C,"="&A34)) -> 0 | F34: 0
C35: =IF(ISBLANK(A35),0,SUMIFS(Registros!G:G,Registros!B:B,"<"&fecha_inicial,Registros!C:C,"="&A35)-IF(ISBLANK(A35),0,SUMIFS(Registros!H:H,Registros!B:B,"<"&fecha_inicial,Registros!C:C,"="&A35))) -> 0 | D35: =IF(ISBLANK(A35),0,SUMIFS(Registros!G:G,Registros!B:B,">="&fecha_inicial, Registros!B:B, "<="&fecha_final,Registros!C:C,"="&A35)) -> 0 | E35: =IF(ISBLANK(A35),0,SUMIFS(Registros!H:H,Registros!B:B,">="&fecha_inicial, Registros!B:B, "<="&fecha_final,Registros!C:C,"="&A35)) -> 0 | F35: 0
C36: =IF(ISBLANK(A36),0,SUMIFS(Registros!G:G,Registros!B:B,"<"&fecha_inicial,Registros!C:C,"="&A36)-IF(ISBLANK(A36),0,SUMIFS(Registros!H:H,Registros!B:B,"<"&fecha_inicial,Registros!C:C,"="&A36))) -> 0 | D36: =IF(ISBLANK(A36),0,SUMIFS(Registros!G:G,Registros!B:B,">="&fecha_inicial, Registros!B:B, "<="&fecha_final,Registros!C:C,"="&A36)) -> 0 | E36: =IF(ISBLANK(A36),0,SUMIFS(Registros!H:H,Registros!B:B,">="&fecha_inicial, Registros!B:B, "<="&fecha_final,Registros!C:C,"="&A36)) -> 0 | F36: 0
C37: =IF(ISBLANK(A37),0,SUMIFS(Registros!G:G,Registros!B:B,"<"&fecha_inicial,Registros!C:C,"="&A37)-IF(ISBLANK(A37),0,SUMIFS(Registros!H:H,Registros!B:B,"<"&fecha_inicial,Registros!C:C,"="&A37))) -> 0 | D37: =IF(ISBLANK(A37),0,SUMIFS(Registros!G:G,Registros!B:B,">="&fecha_inicial, Registros!B:B, "<="&fecha_final,Registros!C:C,"="&A37)) -> 0 | E37: =IF(ISBLANK(A37),0,SUMIFS(Registros!H:H,Registros!B:B,">="&fecha_inicial, Registros!B:B, "<="&fecha_final,Registros!C:C,"="&A37)) -> 0 | F37: 0
C38: =IF(ISBLANK(A38),0,SUMIFS(Registros!G:G,Registros!B:B,"<"&fecha_inicial,Registros!C:C,"="&A38)-IF(ISBLANK(A38),0,SUMIFS(Registros!H:H,Registros!B:B,"<"&fecha_inicial,Registros!C:C,"="&A38))) -> 0 | D38: =IF(ISBLANK(A38),0,SUMIFS(Registros!G:G,Registros!B:B,">="&fecha_inicial, Registros!B:B, "<="&fecha_final,Registros!C:C,"="&A38)) -> 0 | E38: =IF(ISBLANK(A38),0,SUMIFS(Registros!H:H,Registros!B:B,">="&fecha_inicial, Registros!B:B, "<="&fecha_final,Registros!C:C,"="&A38)) -> 0 | F38: 0
B39: =IF(A39<>0, IF(ISERROR(VLOOKUP(A39, plan_cuentas,2, FALSE)), "Código de Cuenta Incorrecto", UPPER(VLOOKUP(A39, plan_cuentas, 2, FALSE))), "") ->  | C39: =SUM(C40:C45) -> 0 | D39: =SUM(D40:D45) -> 0 | E39: =SUM(E40:E45) -> 0 | F39: 0
C40: =IF(ISBLANK(A40),0,SUMIFS(Registros!G:G,Registros!B:B,"<"&fecha_inicial,Registros!C:C,"="&A40)-IF(ISBLANK(A40),0,SUMIFS(Registros!H:H,Registros!B:B,"<"&fecha_inicial,Registros!C:C,"="&A40))) -> 0 | D40: =IF(ISBLANK(A40),0,SUMIFS(Registros!G:G,Registros!B:B,">="&fecha_inicial, Registros!B:B, "<="&fecha_final,Registros!C:C,"="&A40)) -> 0 | E40: =IF(ISBLANK(A40),0,SUMIFS(Registros!H:H,Registros!B:B,">="&fecha_inicial, Registros!B:B, "<="&fecha_final,Registros!C:C,"="&A40)) -> 0 | F40: 0
C41: =IF(ISBLANK(A41),0,SUMIFS(Registros!G:G,Registros!B:B,"<"&fecha_inicial,Registros!C:C,"="&A41)-IF(ISBLANK(A41),0,SUMIFS(Registros!H:H,Registros!B:B,"<"&fecha_inicial,Registros!C:C,"="&A41))) -> 0 | D41: =IF(ISBLANK(A41),0,SUMIFS(Registros!G:G,Registros!B:B,">="&fecha_inicial, Registros!B:B, "<="&fecha_final,Registros!C:C,"="&A41)) -> 0 | E41: =IF(ISBLANK(A41),0,SUMIFS(Registros!H:H,Registros!B:B,">="&fecha_inicial, Registros!B:B, "<="&fecha_final,Registros!C:C,"="&A41)) -> 0 | F41: 0
C42: =IF(ISBLANK(A42),0,SUMIFS(Registros!G:G,Registros!B:B,"<"&fecha_inicial,Registros!C:C,"="&A42)-IF(ISBLANK(A42),0,SUMIFS(Registros!H:H,Registros!B:B,"<"&fecha_inicial,Registros!C:C,"="&A42))) -> 0 | D42: =IF(ISBLANK(A42),0,SUMIFS(Registros!G:G,Registros!B:B,">="&fecha_inicial, Registros!B:B, "<="&fecha_final,Registros!C:C,"="&A42)) -> 0 | E42: =IF(ISBLANK(A42),0,SUMIFS(Registros!H:H,Registros!B:B,">="&fecha_inicial, Registros!B:B, "<="&fecha_final,Registros!C:C,"="&A42)) -> 0 | F42: 0
C43: =IF(ISBLANK(A43),0,SUMIFS(Registros!G:G,Registros!B:B,"<"&fecha_inicial,Registros!C:C,"="&A43)-IF(ISBLANK(A43),0,SUMIFS(Registros!H:H,Registros!B:B,"<"&fecha_inicial,Registros!C:C,"="&A43))) -> 0 | D43: =IF(ISBLANK(A43),0,SUMIFS(Registros!G:G,Registros!B:B,">="&fecha_inicial, Registros!B:B, "<="&fecha_final,Registros!C:C,"="&A43)) -> 0 | E43: =IF(ISBLANK(A43),0,SUMIFS(Registros!H:H,Registros!B:B,">="&fecha_inicial, Registros!B:B, "<="&fecha_final,Registros!C:C,"="&A43)) -> 0 | F43: 0
C44: =IF(ISBLANK(A44),0,SUMIFS(Registros!G:G,Registros!B:B,"<"&fecha_inicial,Registros!C:C,"="&A44)-IF(ISBLANK(A44),0,SUMIFS(Registros!H:H,Registros!B:B,"<"&fecha_inicial,Registros!C:C,"="&A44))) -> 0 | D44: =IF(ISBLANK(A44),0,SUMIFS(Registros!G:G,Registros!B:B,">="&fecha_inicial, Registros!B:B, "<="&fecha_final,Registros!C:C,"="&A44)) -> 0 | E44: =IF(ISBLANK(A44),0,SUMIFS(Registros!H:H,Registros!B:B,">="&fecha_inicial, Registros!B:B, "<="&fecha_final,Registros!C:C,"="&A44)) -> 0 | F44: 0
C45: =IF(ISBLANK(A45),0,SUMIFS(Registros!G:G,Registros!B:B,"<"&fecha_inicial,Registros!C:C,"="&A45)-IF(ISBLANK(A45),0,SUMIFS(Registros!H:H,Registros!B:B,"<"&fecha_inicial,Registros!C:C,"="&A45))) -> 0 | D45: =IF(ISBLANK(A45),0,SUMIFS(Registros!G:G,Registros!B:B,">="&fecha_inicial, Registros!B:B, "<="&fecha_final,Registros!C:C,"="&A45)) -> 0 | E45: =IF(ISBLANK(A45),0,SUMIFS(Registros!H:H,Registros!B:B,">="&fecha_inicial, Registros!B:B, "<="&fecha_final,Registros!C:C,"="&A45)) -> 0 | F45: 0
B46: =IF(A46<>0, IF(ISERROR(VLOOKUP(A46, plan_cuentas,2, FALSE)), "Código de Cuenta Incorrecto", UPPER(VLOOKUP(A46, plan_cuentas, 2, FALSE))), "") ->  | C46: =SUM(C47:C52) -> 0 | D46: =SUM(D47:D52) -> 0 | E46: =SUM(E47:E52) -> 0 | F46: 0
B47: =IF(A47<>"", IF(ISERROR(VLOOKUP(A47, plan_cuentas,2, FALSE)), "Código de Cuenta Incorrecto", UPPER(VLOOKUP(A47, plan_cuentas, 2, FALSE))), "") ->  | C47: =IF(ISBLANK(A47),0,SUMIFS(Registros!G:G,Registros!B:B,"<"&fecha_inicial,Registros!C:C,"="&A47)-IF(ISBLANK(A47),0,SUMIFS(Registros!H:H,Registros!B:B,"<"&fecha_inicial,Registros!C:C,"="&A47))) -> 0 | D47: =IF(ISBLANK(A47),0,SUMIFS(Registros!G:G,Registros!B:B,">="&fecha_inicial, Registros!B:B, "<="&fecha_final,Registros!C:C,"="&A47)) -> 0 | E47: =IF(ISBLANK(A47),0,SUMIFS(Registros!H:H,Registros!B:B,">="&fecha_inicial, Registros!B:B, "<="&fecha_final,Registros!C:C,"="&A47)) -> 0 | F47: 0
B48: =IF(A48<>0, IF(ISERROR(VLOOKUP(A48, plan_cuentas,2, FALSE)), "Código de Cuenta Incorrecto", UPPER(VLOOKUP(A48, plan_cuentas, 2, FALSE))), "") ->  | C48: =IF(ISBLANK(A48),0,SUMIFS(Registros!G:G,Registros!B:B,"<"&fecha_inicial,Registros!C:C,"="&A48)-IF(ISBLANK(A48),0,SUMIFS(Registros!H:H,Registros!B:B,"<"&fecha_inicial,Registros!C:C,"="&A48))) -> 0 | D48: =IF(ISBLANK(A48),0,SUMIFS(Registros!G:G,Registros!B:B,">="&fecha_inicial, Registros!B:B, "<="&fecha_final,Registros!C:C,"="&A48)) -> 0 | E48: =IF(ISBLANK(A48),0,SUMIFS(Registros!H:H,Registros!B:B,">="&fecha_inicial, Registros!B:B, "<="&fecha_final,Registros!C:C,"="&A48)) -> 0 | F48: 0
B49: =IF(A49<>0, IF(ISERROR(VLOOKUP(A49, plan_cuentas,2, FALSE)), "Código de Cuenta Incorrecto", UPPER(VLOOKUP(A49, plan_cuentas, 2, FALSE))), "") ->  | C49: =IF(ISBLANK(A49),0,SUMIFS(Registros!G:G,Registros!B:B,"<"&fecha_inicial,Registros!C:C,"="&A49)-IF(ISBLANK(A49),0,SUMIFS(Registros!H:H,Registros!B:B,"<"&fecha_inicial,Registros!C:C,"="&A49))) -> 0 | D49: =IF(ISBLANK(A49),0,SUMIFS(Registros!G:G,Registros!B:B,">="&fecha_inicial, Registros!B:B, "<="&fecha_final,Registros!C:C,"="&A49)) -> 0 | E49: =IF(ISBLANK(A49),0,SUMIFS(Registros!H:H,Registros!B:B,">="&fecha_inicial, Registros!B:B, "<="&fecha_final,Registros!C:C,"="&A49)) -> 0 | F49: 0
B50: =IF(A50<>0, IF(ISERROR(VLOOKUP(A50, plan_cuentas,2, FALSE)), "Código de Cuenta Incorrecto", UPPER(VLOOKUP(A50, plan_cuentas, 2, FALSE))), "") ->  | C50: =IF(ISBLANK(A50),0,SUMIFS(Registros!G:G,Registros!B:B,"<"&fecha_inicial,Registros!C:C,"="&A50)-IF(ISBLANK(A50),0,SUMIFS(Registros!H:H,Registros!B:B,"<"&fecha_inicial,Registros!C:C,"="&A50))) -> 0 | D50: =IF(ISBLANK(A50),0,SUMIFS(Registros!G:G,Registros!B:B,">="&fecha_inicial, Registros!B:B, "<="&fecha_final,Registros!C:C,"="&A50)) -> 0 | E50: =IF(ISBLANK(A50),0,SUMIFS(Registros!H:H,Registros!B:B,">="&fecha_inicial, Registros!B:B, "<="&fecha_final,Registros!C:C,"="&A50)) -> 0 | F50: 0
B51: =IF(A51<>0, IF(ISERROR(VLOOKUP(A51, plan_cuentas,2, FALSE)), "Código de Cuenta Incorrecto", UPPER(VLOOKUP(A51, plan_cuentas, 2, FALSE))), "") ->  | C51: =IF(ISBLANK(A51),0,SUMIFS(Registros!G:G,Registros!B:B,"<"&fecha_inicial,Registros!C:C,"="&A51)-IF(ISBLANK(A51),0,SUMIFS(Registros!H:H,Registros!B:B,"<"&fecha_inicial,Registros!C:C,"="&A51))) -> 0 | D51: =IF(ISBLANK(A51),0,SUMIFS(Registros!G:G,Registros!B:B,">="&fecha_inicial, Registros!B:B, "<="&fecha_final,Registros!C:C,"="&A51)) -> 0 | E51: =IF(ISBLANK(A51),0,SUMIFS(Registros!H:H,Registros!B:B,">="&fecha_inicial, Registros!B:B, "<="&fecha_final,Registros!C:C,"="&A51)) -> 0 | F51: 0
B52: =IF(A52<>0, IF(ISERROR(VLOOKUP(A52, plan_cuentas,2, FALSE)), "Código de Cuenta Incorrecto", UPPER(VLOOKUP(A52, plan_cuentas, 2, FALSE))), "") ->  | C52: =IF(ISBLANK(A52),0,SUMIFS(Registros!G:G,Registros!B:B,"<"&fecha_inicial,Registros!C:C,"="&A52)-IF(ISBLANK(A52),0,SUMIFS(Registros!H:H,Registros!B:B,"<"&fecha_inicial,Registros!C:C,"="&A52))) -> 0 | D52: =IF(ISBLANK(A52),0,SUMIFS(Registros!G:G,Registros!B:B,">="&fecha_inicial, Registros!B:B, "<="&fecha_final,Registros!C:C,"="&A52)) -> 0 | E52: =IF(ISBLANK(A52),0,SUMIFS(Registros!H:H,Registros!B:B,">="&fecha_inicial, Registros!B:B, "<="&fecha_final,Registros!C:C,"="&A52)) -> 0 | F52: 0
C53: =SUM(C54:C59) -> 0 | D53: =SUM(D54:D59) -> 0 | E53: =SUM(E54:E59) -> 0 | F53: 0
C54: =IF(ISBLANK(A54),0,SUMIFS(Registros!G:G,Registros!B:B,"<"&fecha_inicial,Registros!C:C,"="&A54)-IF(ISBLANK(A54),0,SUMIFS(Registros!H:H,Registros!B:B,"<"&fecha_inicial,Registros!C:C,"="&A54))) -> 0 | D54: =IF(ISBLANK(A54),0,SUMIFS(Registros!G:G,Registros!B:B,">="&fecha_inicial, Registros!B:B, "<="&fecha_final,Registros!C:C,"="&A54)) -> 0 | E54: =IF(ISBLANK(A54),0,SUMIFS(Registros!H:H,Registros!B:B,">="&fecha_inicial, Registros!B:B, "<="&fecha_final,Registros!C:C,"="&A54)) -> 0 | F54: 0
C55: =IF(ISBLANK(A55),0,SUMIFS(Registros!G:G,Registros!B:B,"<"&fecha_inicial,Registros!C:C,"="&A55)-IF(ISBLANK(A55),0,SUMIFS(Registros!H:H,Registros!B:B,"<"&fecha_inicial,Registros!C:C,"="&A55))) -> 0 | D55: =IF(ISBLANK(A55),0,SUMIFS(Registros!G:G,Registros!B:B,">="&fecha_inicial, Registros!B:B, "<="&fecha_final,Registros!C:C,"="&A55)) -> 0 | E55: =IF(ISBLANK(A55),0,SUMIFS(Registros!H:H,Registros!B:B,">="&fecha_inicial, Registros!B:B, "<="&fecha_final,Registros!C:C,"="&A55)) -> 0 | F55: 0
C56: =IF(ISBLANK(A56),0,SUMIFS(Registros!G:G,Registros!B:B,"<"&fecha_inicial,Registros!C:C,"="&A56)-IF(ISBLANK(A56),0,SUMIFS(Registros!H:H,Registros!B:B,"<"&fecha_inicial,Registros!C:C,"="&A56))) -> 0 | D56: =IF(ISBLANK(A56),0,SUMIFS(Registros!G:G,Registros!B:B,">="&fecha_inicial, Registros!B:B, "<="&fecha_final,Registros!C:C,"="&A56)) -> 0 | E56: =IF(ISBLANK(A56),0,SUMIFS(Registros!H:H,Registros!B:B,">="&fecha_inicial, Registros!B:B, "<="&fecha_final,Registros!C:C,"="&A56)) -> 0 | F56: 0
C57: =IF(ISBLANK(A57),0,SUMIFS(Registros!G:G,Registros!B:B,"<"&fecha_inicial,Registros!C:C,"="&A57)-IF(ISBLANK(A57),0,SUMIFS(Registros!H:H,Registros!B:B,"<"&fecha_inicial,Registros!C:C,"="&A57))) -> 0 | D57: =IF(ISBLANK(A57),0,SUMIFS(Registros!G:G,Registros!B:B,">="&fecha_inicial, Registros!B:B, "<="&fecha_final,Registros!C:C,"="&A57)) -> 0 | E57: =IF(ISBLANK(A57),0,SUMIFS(Registros!H:H,Registros!B:B,">="&fecha_inicial, Registros!B:B, "<="&fecha_final,Registros!C:C,"="&A57)) -> 0 | F57: 0
B58: =IF(A58<>0, IF(ISERROR(VLOOKUP(A58, plan_cuentas,2, FALSE)), "Código de Cuenta Incorrecto", UPPER(VLOOKUP(A58, plan_cuentas, 2, FALSE))), "") ->  | C58: =IF(ISBLANK(A58),0,SUMIFS(Registros!G:G,Registros!B:B,"<"&fecha_inicial,Registros!C:C,"="&A58)-IF(ISBLANK(A58),0,SUMIFS(Registros!H:H,Registros!B:B,"<"&fecha_inicial,Registros!C:C,"="&A58))) -> 0 | D58: =IF(ISBLANK(A58),0,SUMIFS(Registros!G:G,Registros!B:B,">="&fecha_inicial, Registros!B:B, "<="&fecha_final,Registros!C:C,"="&A58)) -> 0 | E58: =IF(ISBLANK(A58),0,SUMIFS(Registros!H:H,Registros!B:B,">="&fecha_inicial, Registros!B:B, "<="&fecha_final,Registros!C:C,"="&A58)) -> 0 | F58: 0
C59: =IF(ISBLANK(A59),0,SUMIFS(Registros!G:G,Registros!B:B,"<"&fecha_inicial,Registros!C:C,"="&A59)-IF(ISBLANK(A59),0,SUMIFS(Registros!H:H,Registros!B:B,"<"&fecha_inicial,Registros!C:C,"="&A59))) -> 0 | D59: =IF(ISBLANK(A59),0,SUMIFS(Registros!G:G,Registros!B:B,">="&fecha_inicial, Registros!B:B, "<="&fecha_final,Registros!C:C,"="&A59)) -> 0 | E59: =IF(ISBLANK(A59),0,SUMIFS(Registros!H:H,Registros!B:B,">="&fecha_inicial, Registros!B:B, "<="&fecha_final,Registros!C:C,"="&A59)) -> 0 | F59: 0
A60: ="SALDO FINAL DE LA CUENTA AL " &TEXT(fecha_final, "dd")&" DE "&UPPER(TEXT(fecha_final, "MMMM"))&" DEL "& TEXT(fecha_final, "YYYY") -> SALDO FINAL DE LA CUENTA AL 29 DE OCTUBRE DEL 2016 | C60: =C11+C18+C25+C46+C32+C39+C53 -> 0 | D60: =D11+D18+D25+D46+D32+D39+D53 -> 0 | E60: =E11+E18+E25+E46+E32+E39+E53 -> 0 | F60: =C60+D60-E60 -> 0
A65: AUTORIZADO POR: | E65: REVISADO POR:
A66: =VLOOKUP(A65, Usuarios!B7:E9, 3, FALSE) -> Socorro Sandoval | E66: =VLOOKUP(E65, Usuarios!B7:E9, 3, FALSE) -> 0

Sheet H
E1: Proteger
A2: =bussiness_name -> IGLESIA ESTRELLA DE BELÉN
A3: ="RESUMEN CONTABLE DE "&B7 -> RESUMEN CONTABLE DE
A4: ="DEL "&TEXT(fecha_inicial, "DD")&" DE "&UPPER(TEXT(fecha_inicial, "MMMM"))&" DEL " & TEXT(fecha_inicial, "YYYY") & " AL "&TEXT(fecha_final, "DD")&" DE "&UPPER(TEXT(fecha_final, "MMMM"))&" DEL "&TEXT(fecha_final, "YYYY") -> DEL 02 DE OCTUBRE DEL 2016 AL 29 DE OCTUBRE DEL 2016
A5: =address & " *** Tel/Fax: " & tel & " *** " & email -> SAN MARCOS *** Tel/Fax: ***
B7: =UPPER(IF(ISBLANK(A7),"",IFERROR(VLOOKUP(A7,plan_cuentas,2,FALSE),"Código de cuenta incorrecto"))) ->  | D7: ="MOVIMIENTOS DE "&UPPER(TEXT(fecha_final, "MMMM")) -> MOVIMIENTOS DE OCTUBRE
A8: CODIGO | B8: NOMBRE DE LA CUENTA | C8: SALDO INICIAL | D8: DEBITOS | E8: CREDITOS | F8: SALDO FINAL
B11: =IF(A11<>"", IF(ISERROR(VLOOKUP(A11, plan_cuentas,2, FALSE)), "Código de Cuenta Incorrecto", UPPER(VLOOKUP(A11, plan_cuentas, 2, FALSE))), "") ->  | C11: =SUM(C12:C17) -> 0 | D11: =SUM(D12:D17) -> 0 | E11: =SUM(E12:E17) -> 0 | F11: =C11+E11-D11 -> 0
B12: =IF(A12<>"", IF(ISERROR(VLOOKUP(A12, plan_cuentas,2, FALSE)), "Código de Cuenta Incorrecto", UPPER(VLOOKUP(A12, plan_cuentas, 2, FALSE))), "") ->  | C12: =IF(ISBLANK(A12),0,SUMIFS(Registros!H:H,Registros!B:B,"<"&fecha_inicial,Registros!C:C,"="&A12)-IF(ISBLANK(A12),0,SUMIFS(Registros!G:G,Registros!B:B,"<"&fecha_inicial,Registros!C:C,"="&A12))) -> 0 | D12: =IF(ISBLANK(A12),0,SUMIFS(Registros!G:G,Registros!B:B,">="&fecha_inicial, Registros!B:B, "<="&fecha_final,Registros!C:C,"="&A12)) -> 0 | E12: =IF(ISBLANK(A12),0,SUMIFS(Registros!H:H,Registros!B:B,">="&fecha_inicial, Registros!B:B, "<="&fecha_final,Registros!C:C,"="&A12)) -> 0 | F12: =C12+E12-D12 -> 0
B13: =IF(A13<>0, IF(ISERROR(VLOOKUP(A13, plan_cuentas,2, FALSE)), "Código de Cuenta Incorrecto", UPPER(VLOOKUP(A13, plan_cuentas, 2, FALSE))), "") ->  | C13: =IF(ISBLANK(A13),0,SUMIFS(Registros!H:H,Registros!B:B,"<"&fecha_inicial,Registros!C:C,"="&A13)-IF(ISBLANK(A13),0,SUMIFS(Registros!G:G,Registros!B:B,"<"&fecha_inicial,Registros!C:C,"="&A13))) -> 0 | D13: =IF(ISBLANK(A13),0,SUMIFS(Registros!G:G,Registros!B:B,">="&fecha_inicial, Registros!B:B, "<="&fecha_final,Registros!C:C,"="&A13)) -> 0 | E13: =IF(ISBLANK(A13),0,SUMIFS(Registros!H:H,Registros!B:B,">="&fecha_inicial, Registros!B:B, "<="&fecha_final,Registros!C:C,"="&A13)) -> 0 | F13: 0
C14: =IF(ISBLANK(A14),0,SUMIFS(Registros!H:H,Registros!B:B,"<"&fecha_inicial,Registros!C:C,"="&A14)-IF(ISBLANK(A14),0,SUMIFS(Registros!G:G,Registros!B:B,"<"&fecha_inicial,Registros!C:C,"="&A14))) -> 0 | D14: =IF(ISBLANK(A14),0,SUMIFS(Registros!G:G,Registros!B:B,">="&fecha_inicial, Registros!B:B, "<="&fecha_final,Registros!C:C,"="&A14)) -> 0 | E14: =IF(ISBLANK(A14),0,SUMIFS(Registros!H:H,Registros!B:B,">="&fecha_inicial, Registros!B:B, "<="&fecha_final,Registros!C:C,"="&A14)) -> 0 | F14: 0
C15: =IF(ISBLANK(A15),0,SUMIFS(Registros!H:H,Registros!B:B,"<"&fecha_inicial,Registros!C:C,"="&A15)-IF(ISBLANK(A15),0,SUMIFS(Registros!G:G,Registros!B:B,"<"&fecha_inicial,Registros!C:C,"="&A15))) -> 0 | D15: =IF(ISBLANK(A15),0,SUMIFS(Registros!G:G,Registros!B:B,">="&fecha_inicial, Registros!B:B, "<="&fecha_final,Registros!C:C,"="&A15)) -> 0 | E15: =IF(ISBLANK(A15),0,SUMIFS(Registros!H:H,Registros!B:B,">="&fecha_inicial, Registros!B:B, "<="&fecha_final,Registros!C:C,"="&A15)) -> 0 | F15: 0
C16: =IF(ISBLANK(A16),0,SUMIFS(Registros!H:H,Registros!B:B,"<"&fecha_inicial,Registros!C:C,"="&A16)-IF(ISBLANK(A16),0,SUMIFS(Registros!G:G,Registros!B:B,"<"&fecha_inicial,Registros!C:C,"="&A16))) -> 0 | D16: =IF(ISBLANK(A16),0,SUMIFS(Registros!G:G,Registros!B:B,">="&fecha_inicial, Registros!B:B, "<="&fecha_final,Registros!C:C,"="&A16)) -> 0 | E16: =IF(ISBLANK(A16),0,SUMIFS(Registros!H:H,Registros!B:B,">="&fecha_inicial, Registros!B:B, "<="&fecha_final,Registros!C:C,"="&A16)) -> 0 | F16: 0
C17: =IF(ISBLANK(A17),0,SUMIFS(Registros!H:H,Registros!B:B,"<"&fecha_inicial,Registros!C:C,"="&A17)-IF(ISBLANK(A17),0,SUMIFS(Registros!G:G,Registros!B:B,"<"&fecha_inicial,Registros!C:C,"="&A17))) -> 0 | D17: =IF(ISBLANK(A17),0,SUMIFS(Registros!G:G,Registros!B:B,">="&fecha_inicial, Registros!B:B, "<="&fecha_final,Registros!C:C,"="&A17)) -> 0 | E17: =IF(ISBLANK(A17),0,SUMIFS(Registros!H:H,Registros!B:B,">="&fecha_inicial, Registros!B:B, "<="&fecha_final,Registros!C:C,"="&A17)) -> 0 | F17: 0
C18: =SUM(C19:C24) -> 0 | D18: =SUM(D19:D24) -> 0 | E18: =SUM(E19:E24) -> 0 | F18: 0
B19: =IF(A19<>"", IF(ISERROR(VLOOKUP(A19, plan_cuentas,2, FALSE)), "Código de Cuenta Incorrecto", UPPER(VLOOKUP(A19, plan_cuentas, 2, FALSE))), "") ->  | C19: =IF(ISBLANK(A19),0,SUMIFS(Registros!H:H,Registros!B:B,"<"&fecha_inicial,Registros!C:C,"="&A19)-IF(ISBLANK(A19),0,SUMIFS(Registros!G:G,Registros!B:B,"<"&fecha_inicial,Registros!C:C,"="&A19))) -> 0 | D19: =IF(ISBLANK(A19),0,SUMIFS(Registros!G:G,Registros!B:B,">="&fecha_inicial, Registros!B:B, "<="&fecha_final,Registros!C:C,"="&A19)) -> 0 | E19: =IF(ISBLANK(A19),0,SUMIFS(Registros!H:H,Registros!B:B,">="&fecha_inicial, Registros!B:B, "<="&fecha_final,Registros!C:C,"="&A19)) -> 0 | F19: 0
C20: =IF(ISBLANK(A20),0,SUMIFS(Registros!H:H,Registros!B:B,"<"&fecha_inicial,Registros!C:C,"="&A20)-IF(ISBLANK(A20),0,SUMIFS(Registros!G:G,Registros!B:B,"<"&fecha_inicial,Registros!C:C,"="&A20))) -> 0 | D20: =IF(ISBLANK(A20),0,SUMIFS(Registros!G:G,Registros!B:B,">="&fecha_inicial, Registros!B:B, "<="&fecha_final,Registros!C:C,"="&A20)) -> 0 | E20: =IF(ISBLANK(A20),0,SUMIFS(Registros!H:H,Registros!B:B,">="&fecha_inicial, Registros!B:B, "<="&fecha_final,Registros!C:C,"="&A20)) -> 0 | F20: 0
C21: =IF(ISBLANK(A21),0,SUMIFS(Registros!H:H,Registros!B:B,"<"&fecha_inicial,Registros!C:C,"="&A21)-IF(ISBLANK(A21),0,SUMIFS(Registros!G:G,Registros!B:B,"<"&fecha_inicial,Registros!C:C,"="&A21))) -> 0 | D21: =IF(ISBLANK(A21),0,SUMIFS(Registros!G:G,Registros!B:B,">="&fecha_inicial, Registros!B:B, "<="&fecha_final,Registros!C:C,"="&A21)) -> 0 | E21: =IF(ISBLANK(A21),0,SUMIFS(Registros!H:H,Registros!B:B,">="&fecha_inicial, Registros!B:B, "<="&fecha_final,Registros!C:C,"="&A21)) -> 0 | F21: 0
C22: =IF(ISBLANK(A22),0,SUMIFS(Registros!H:H,Registros!B:B,"<"&fecha_inicial,Registros!C:C,"="&A22)-IF(ISBLANK(A22),0,SUMIFS(Registros!G:G,Registros!B:B,"<"&fecha_inicial,Registros!C:C,"="&A22))) -> 0 | D22: =IF(ISBLANK(A22),0,SUMIFS(Registros!G:G,Registros!B:B,">="&fecha_inicial, Registros!B:B, "<="&fecha_final,Registros!C:C,"="&A22)) -> 0 | E22: =IF(ISBLANK(A22),0,SUMIFS(Registros!H:H,Registros!B:B,">="&fecha_inicial, Registros!B:B, "<="&fecha_final,Registros!C:C,"="&A22)) -> 0 | F22: 0
C23: =IF(ISBLANK(A23),0,SUMIFS(Registros!H:H,Registros!B:B,"<"&fecha_inicial,Registros!C:C,"="&A23)-IF(ISBLANK(A23),0,SUMIFS(Registros!G:G,Registros!B:B,"<"&fecha_inicial,Registros!C:C,"="&A23))) -> 0 | D23: =IF(ISBLANK(A23),0,SUMIFS(Registros!G:G,Registros!B:B,">="&fecha_inicial, Registros!B:B, "<="&fecha_final,Registros!C:C,"="&A23)) -> 0 | E23: =IF(ISBLANK(A23),0,SUMIFS(Registros!H:H,Registros!B:B,">="&fecha_inicial, Registros!B:B, "<="&fecha_final,Registros!C:C,"="&A23)) -> 0 | F23: 0
C24: =IF(ISBLANK(A24),0,SUMIFS(Registros!H:H,Registros!B:B,"<"&fecha_inicial,Registros!C:C,"="&A24)-IF(ISBLANK(A24),0,SUMIFS(Registros!G:G,Registros!B:B,"<"&fecha_inicial,Registros!C:C,"="&A24))) -> 0 | D24: =IF(ISBLANK(A24),0,SUMIFS(Registros!G:G,Registros!B:B,">="&fecha_inicial, Registros!B:B, "<="&fecha_final,Registros!C:C,"="&A24)) -> 0 | E24: =IF(ISBLANK(A24),0,SUMIFS(Registros!H:H,Registros!B:B,">="&fecha_inicial, Registros!B:B, "<="&fecha_final,Registros!C:C,"="&A24)) -> 0 | F24: 0
C25: =SUM(C26:C31) -> 0 | D25: =SUM(D26:D31) -> 0 | E25: =SUM(E26:E31) -> 0 | F25: 0
B26: =IF(A26<>"", IF(ISERROR(VLOOKUP(A26, plan_cuentas,2, FALSE)), "Código de Cuenta Incorrecto", UPPER(VLOOKUP(A26, plan_cuentas, 2, FALSE))), "") ->  | C26: =IF(ISBLANK(A26),0,SUMIFS(Registros!H:H,Registros!B:B,"<"&fecha_inicial,Registros!C:C,"="&A26)-IF(ISBLANK(A26),0,SUMIFS(Registros!G:G,Registros!B:B,"<"&fecha_inicial,Registros!C:C,"="&A26))) -> 0 | D26: =IF(ISBLANK(A26),0,SUMIFS(Registros!G:G,Registros!B:B,">="&fecha_inicial, Registros!B:B, "<="&fecha_final,Registros!C:C,"="&A26)) -> 0 | E26: =IF(ISBLANK(A26),0,SUMIFS(Registros!H:H,Registros!B:B,">="&fecha_inicial, Registros!B:B, "<="&fecha_final,Registros!C:C,"="&A26)) -> 0 | F26: 0
C27: =IF(ISBLANK(A27),0,SUMIFS(Registros!H:H,Registros!B:B,"<"&fecha_inicial,Registros!C:C,"="&A27)-IF(ISBLANK(A27),0,SUMIFS(Registros!G:G,Registros!B:B,"<"&fecha_inicial,Registros!C:C,"="&A27))) -> 0 | D27: =IF(ISBLANK(A27),0,SUMIFS(Registros!G:G,Registros!B:B,">="&fecha_inicial, Registros!B:B, "<="&fecha_final,Registros!C:C,"="&A27)) -> 0 | E27: =IF(ISBLANK(A27),0,SUMIFS(Registros!H:H,Registros!B:B,">="&fecha_inicial, Registros!B:B, "<="&fecha_final,Registros!C:C,"="&A27)) -> 0 | F27: 0
C28: =IF(ISBLANK(A28),0,SUMIFS(Registros!H:H,Registros!B:B,"<"&fecha_inicial,Registros!C:C,"="&A28)-IF(ISBLANK(A28),0,SUMIFS(Registros!G:G,Registros!B:B,"<"&fecha_inicial,Registros!C:C,"="&A28))) -> 0 | D28: =IF(ISBLANK(A28),0,SUMIFS(Registros!G:G,Registros!B:B,">="&fecha_inicial, Registros!B:B, "<="&fecha_final,Registros!C:C,"="&A28)) -> 0 | E28: =IF(ISBLANK(A28),0,SUMIFS(Registros!H:H,Registros!B:B,">="&fecha_inicial, Registros!B:B, "<="&fecha_final,Registros!C:C,"="&A28)) -> 0 | F28: 0
C29: =IF(ISBLANK(A29),0,SUMIFS(Registros!H:H,Registros!B:B,"<"&fecha_inicial,Registros!C:C,"="&A29)-IF(ISBLANK(A29),0,SUMIFS(Registros!G:G,Registros!B:B,"<"&fecha_inicial,Registros!C:C,"="&A29))) -> 0 | D29: =IF(ISBLANK(A29),0,SUMIFS(Registros!G:G,Registros!B:B,">="&fecha_inicial, Registros!B:B, "<="&fecha_final,Registros!C:C,"="&A29)) -> 0 | E29: =IF(ISBLANK(A29),0,SUMIFS(Registros!H:H,Registros!B:B,">="&fecha_inicial, Registros!B:B, "<="&fecha_final,Registros!C:C,"="&A29)) -> 0 | F29: 0
C30: =IF(ISBLANK(A30),0,SUMIFS(Registros!H:H,Registros!B:B,"<"&fecha_inicial,Registros!C:C,"="&A30)-IF(ISBLANK(A30),0,SUMIFS(Registros!G:G,Registros!B:B,"<"&fecha_inicial,Registros!C:C,"="&A30))) -> 0 | D30: =IF(ISBLANK(A30),0,SUMIFS(Registros!G:G,Registros!B:B,">="&fecha_inicial, Registros!B:B, "<="&fecha_final,Registros!C:C,"="&A30)) -> 0 | E30: =IF(ISBLANK(A30),0,SUMIFS(Registros!H:H,Registros!B:B,">="&fecha_inicial, Registros!B:B, "<="&fecha_final,Registros!C:C,"="&A30)) -> 0 | F30: 0
C31: =IF(ISBLANK(A31),0,SUMIFS(Registros!H:H,Registros!B:B,"<"&fecha_inicial,Registros!C:C,"="&A31)-IF(ISBLANK(A31),0,SUMIFS(Registros!G:G,Registros!B:B,"<"&fecha_inicial,Registros!C:C,"="&A31))) -> 0 | D31: =IF(ISBLANK(A31),0,SUMIFS(Registros!G:G,Registros!B:B,">="&fecha_inicial, Registros!B:B, "<="&fecha_final,Registros!C:C,"="&A31)) -> 0 | E31: =IF(ISBLANK(A31),0,SUMIFS(Registros!H:H,Registros!B:B,">="&fecha_inicial, Registros!B:B, "<="&fecha_final,Registros!C:C,"="&A31)) -> 0 | F31: 0
C32: =SUM(C33:C38) -> 0 | D32: =SUM(D33:D38) -> 0 | E32: =SUM(E33:E38) -> 0 | F32: 0
C33: =IF(ISBLANK(A33),0,SUMIFS(Registros!H:H,Registros!B:B,"<"&fecha_inicial,Registros!C:C,"="&A33)-IF(ISBLANK(A33),0,SUMIFS(Registros!G:G,Registros!B:B,"<"&fecha_inicial,Registros!C:C,"="&A33))) -> 0 | D33: =IF(ISBLANK(A33),0,SUMIFS(Registros!G:G,Registros!B:B,">="&fecha_inicial, Registros!B:B, "<="&fecha_final,Registros!C:C,"="&A33)) -> 0 | E33: =IF(ISBLANK(A33),0,SUMIFS(Registros!H:H,Registros!B:B,">="&fecha_inicial, Registros!B:B, "<="&fecha_final,Registros!C:C,"="&A33)) -> 0 | F33: 0
C34: =IF(ISBLANK(A34),0,SUMIFS(Registros!H:H,Registros!B:B,"<"&fecha_inicial,Registros!C:C,"="&A34)-IF(ISBLANK(A34),0,SUMIFS(Registros!G:G,Registros!B:B,"<"&fecha_inicial,Registros!C:C,"="&A34))) -> 0 | D34: =IF(ISBLANK(A34),0,SUMIFS(Registros!G:G,Registros!B:B,">="&fecha_inicial, Registros!B:B, "<="&fecha_final,Registros!C:C,"="&A34)) -> 0 | E34: =IF(ISBLANK(A34),0,SUMIFS(Registros!H:H,Registros!B:B,">="&fecha_inicial, Registros!B:B, "<="&fecha_final,Registros!C:C,"="&A34)) -> 0 | F34: 0
C35: =IF(ISBLANK(A35),0,SUMIFS(Registros!H:H,Registros!B:B,"<"&fecha_inicial,Registros!C:C,"="&A35)-IF(ISBLANK(A35),0,SUMIFS(Registros!G:G,Registros!B:B,"<"&fecha_inicial,Registros!C:C,"="&A35))) -> 0 | D35: =IF(ISBLANK(A35),0,SUMIFS(Registros!G:G,Registros!B:B,">="&fecha_inicial, Registros!B:B, "<="&fecha_final,Registros!C:C,"="&A35)) -> 0 | E35: =IF(ISBLANK(A35),0,SUMIFS(Registros!H:H,Registros!B:B,">="&fecha_inicial, Registros!B:B, "<="&fecha_final,Registros!C:C,"="&A35)) -> 0 | F35: 0
C36: =IF(ISBLANK(A36),0,SUMIFS(Registros!H:H,Registros!B:B,"<"&fecha_inicial,Registros!C:C,"="&A36)-IF(ISBLANK(A36),0,SUMIFS(Registros!G:G,Registros!B:B,"<"&fecha_inicial,Registros!C:C,"="&A36))) -> 0 | D36: =IF(ISBLANK(A36),0,SUMIFS(Registros!G:G,Registros!B:B,">="&fecha_inicial, Registros!B:B, "<="&fecha_final,Registros!C:C,"="&A36)) -> 0 | E36: =IF(ISBLANK(A36),0,SUMIFS(Registros!H:H,Registros!B:B,">="&fecha_inicial, Registros!B:B, "<="&fecha_final,Registros!C:C,"="&A36)) -> 0 | F36: 0
C37: =IF(ISBLANK(A37),0,SUMIFS(Registros!H:H,Registros!B:B,"<"&fecha_inicial,Registros!C:C,"="&A37)-IF(ISBLANK(A37),0,SUMIFS(Registros!G:G,Registros!B:B,"<"&fecha_inicial,Registros!C:C,"="&A37))) -> 0 | D37: =IF(ISBLANK(A37),0,SUMIFS(Registros!G:G,Registros!B:B,">="&fecha_inicial, Registros!B:B, "<="&fecha_final,Registros!C:C,"="&A37)) -> 0 | E37: =IF(ISBLANK(A37),0,SUMIFS(Registros!H:H,Registros!B:B,">="&fecha_inicial, Registros!B:B, "<="&fecha_final,Registros!C:C,"="&A37)) -> 0 | F37: 0
C38: =IF(ISBLANK(A38),0,SUMIFS(Registros!H:H,Registros!B:B,"<"&fecha_inicial,Registros!C:C,"="&A38)-IF(ISBLANK(A38),0,SUMIFS(Registros!G:G,Registros!B:B,"<"&fecha_inicial,Registros!C:C,"="&A38))) -> 0 | D38: =IF(ISBLANK(A38),0,SUMIFS(Registros!G:G,Registros!B:B,">="&fecha_inicial, Registros!B:B, "<="&fecha_final,Registros!C:C,"="&A38)) -> 0 | E38: =IF(ISBLANK(A38),0,SUMIFS(Registros!H:H,Registros!B:B,">="&fecha_inicial, Registros!B:B, "<="&fecha_final,Registros!C:C,"="&A38)) -> 0 | F38: 0
C39: =SUM(C40:C45) -> 0 | D39: =SUM(D40:D45) -> 0 | E39: =SUM(E40:E45) -> 0 | F39: 0
C40: =IF(ISBLANK(A40),0,SUMIFS(Registros!H:H,Registros!B:B,"<"&fecha_inicial,Registros!C:C,"="&A40)-IF(ISBLANK(A40),0,SUMIFS(Registros!G:G,Registros!B:B,"<"&fecha_inicial,Registros!C:C,"="&A40))) -> 0 | D40: =IF(ISBLANK(A40),0,SUMIFS(Registros!G:G,Registros!B:B,">="&fecha_inicial, Registros!B:B, "<="&fecha_final,Registros!C:C,"="&A40)) -> 0 | E40: =IF(ISBLANK(A40),0,SUMIFS(Registros!H:H,Registros!B:B,">="&fecha_inicial, Registros!B:B, "<="&fecha_final,Registros!C:C,"="&A40)) -> 0 | F40: 0
C41: =IF(ISBLANK(A41),0,SUMIFS(Registros!H:H,Registros!B:B,"<"&fecha_inicial,Registros!C:C,"="&A41)-IF(ISBLANK(A41),0,SUMIFS(Registros!G:G,Registros!B:B,"<"&fecha_inicial,Registros!C:C,"="&A41))) -> 0 | D41: =IF(ISBLANK(A41),0,SUMIFS(Registros!G:G,Registros!B:B,">="&fecha_inicial, Registros!B:B, "<="&fecha_final,Registros!C:C,"="&A41)) -> 0 | E41: =IF(ISBLANK(A41),0,SUMIFS(Registros!H:H,Registros!B:B,">="&fecha_inicial, Registros!B:B, "<="&fecha_final,Registros!C:C,"="&A41)) -> 0 | F41: 0
C42: =IF(ISBLANK(A42),0,SUMIFS(Registros!H:H,Registros!B:B,"<"&fecha_inicial,Registros!C:C,"="&A42)-IF(ISBLANK(A42),0,SUMIFS(Registros!G:G,Registros!B:B,"<"&fecha_inicial,Registros!C:C,"="&A42))) -> 0 | D42: =IF(ISBLANK(A42),0,SUMIFS(Registros!G:G,Registros!B:B,">="&fecha_inicial, Registros!B:B, "<="&fecha_final,Registros!C:C,"="&A42)) -> 0 | E42: =IF(ISBLANK(A42),0,SUMIFS(Registros!H:H,Registros!B:B,">="&fecha_inicial, Registros!B:B, "<="&fecha_final,Registros!C:C,"="&A42)) -> 0 | F42: 0
C43: =IF(ISBLANK(A43),0,SUMIFS(Registros!H:H,Registros!B:B,"<"&fecha_inicial,Registros!C:C,"="&A43)-IF(ISBLANK(A43),0,SUMIFS(Registros!G:G,Registros!B:B,"<"&fecha_inicial,Registros!C:C,"="&A43))) -> 0 | D43: =IF(ISBLANK(A43),0,SUMIFS(Registros!G:G,Registros!B:B,">="&fecha_inicial, Registros!B:B, "<="&fecha_final,Registros!C:C,"="&A43)) -> 0 | E43: =IF(ISBLANK(A43),0,SUMIFS(Registros!H:H,Registros!B:B,">="&fecha_inicial, Registros!B:B, "<="&fecha_final,Registros!C:C,"="&A43)) -> 0 | F43: 0
C44: =IF(ISBLANK(A44),0,SUMIFS(Registros!H:H,Registros!B:B,"<"&fecha_inicial,Registros!C:C,"="&A44)-IF(ISBLANK(A44),0,SUMIFS(Registros!G:G,Registros!B:B,"<"&fecha_inicial,Registros!C:C,"="&A44))) -> 0 | D44: =IF(ISBLANK(A44),0,SUMIFS(Registros!G:G,Registros!B:B,">="&fecha_inicial, Registros!B:B, "<="&fecha_final,Registros!C:C,"="&A44)) -> 0 | E44: =IF(ISBLANK(A44),0,SUMIFS(Registros!H:H,Registros!B:B,">="&fecha_inicial, Registros!B:B, "<="&fecha_final,Registros!C:C,"="&A44)) -> 0 | F44: 0
C45: =IF(ISBLANK(A45),0,SUMIFS(Registros!H:H,Registros!B:B,"<"&fecha_inicial,Registros!C:C,"="&A45)-IF(ISBLANK(A45),0,SUMIFS(Registros!G:G,Registros!B:B,"<"&fecha_inicial,Registros!C:C,"="&A45))) -> 0 | D45: =IF(ISBLANK(A45),0,SUMIFS(Registros!G:G,Registros!B:B,">="&fecha_inicial, Registros!B:B, "<="&fecha_final,Registros!C:C,"="&A45)) -> 0 | E45: =IF(ISBLANK(A45),0,SUMIFS(Registros!H:H,Registros!B:B,">="&fecha_inicial, Registros!B:B, "<="&fecha_final,Registros!C:C,"="&A45)) -> 0 | F45: 0
C46: =SUM(C47:C52) -> 0 | D46: =SUM(D47:D52) -> 0 | E46: =SUM(E47:E52) -> 0 | F46: 0
B47: =IF(A47<>"", IF(ISERROR(VLOOKUP(A47, plan_cuentas,2, FALSE)), "Código de Cuenta Incorrecto", UPPER(VLOOKUP(A47, plan_cuentas, 2, FALSE))), "") ->  | C47: =IF(ISBLANK(A47),0,SUMIFS(Registros!H:H,Registros!B:B,"<"&fecha_inicial,Registros!C:C,"="&A47)-IF(ISBLANK(A47),0,SUMIFS(Registros!G:G,Registros!B:B,"<"&fecha_inicial,Registros!C:C,"="&A47))) -> 0 | D47: =IF(ISBLANK(A47),0,SUMIFS(Registros!G:G,Registros!B:B,">="&fecha_inicial, Registros!B:B, "<="&fecha_final,Registros!C:C,"="&A47)) -> 0 | E47: =IF(ISBLANK(A47),0,SUMIFS(Registros!H:H,Registros!B:B,">="&fecha_inicial, Registros!B:B, "<="&fecha_final,Registros!C:C,"="&A47)) -> 0 | F47: 0
B48: =IF(A48<>0, IF(ISERROR(VLOOKUP(A48, plan_cuentas,2, FALSE)), "Código de Cuenta Incorrecto", UPPER(VLOOKUP(A48, plan_cuentas, 2, FALSE))), "") ->  | C48: =IF(ISBLANK(A48),0,SUMIFS(Registros!H:H,Registros!B:B,"<"&fecha_inicial,Registros!C:C,"="&A48)-IF(ISBLANK(A48),0,SUMIFS(Registros!G:G,Registros!B:B,"<"&fecha_inicial,Registros!C:C,"="&A48))) -> 0 | D48: =IF(ISBLANK(A48),0,SUMIFS(Registros!G:G,Registros!B:B,">="&fecha_inicial, Registros!B:B, "<="&fecha_final,Registros!C:C,"="&A48)) -> 0 | E48: =IF(ISBLANK(A48),0,SUMIFS(Registros!H:H,Registros!B:B,">="&fecha_inicial, Registros!B:B, "<="&fecha_final,Registros!C:C,"="&A48)) -> 0 | F48: 0
B49: =IF(A49<>0, IF(ISERROR(VLOOKUP(A49, plan_cuentas,2, FALSE)), "Código de Cuenta Incorrecto", UPPER(VLOOKUP(A49, plan_cuentas, 2, FALSE))), "") ->  | C49: =IF(ISBLANK(A49),0,SUMIFS(Registros!H:H,Registros!B:B,"<"&fecha_inicial,Registros!C:C,"="&A49)-IF(ISBLANK(A49),0,SUMIFS(Registros!G:G,Registros!B:B,"<"&fecha_inicial,Registros!C:C,"="&A49))) -> 0 | D49: =IF(ISBLANK(A49),0,SUMIFS(Registros!G:G,Registros!B:B,">="&fecha_inicial, Registros!B:B, "<="&fecha_final,Registros!C:C,"="&A49)) -> 0 | E49: =IF(ISBLANK(A49),0,SUMIFS(Registros!H:H,Registros!B:B,">="&fecha_inicial, Registros!B:B, "<="&fecha_final,Registros!C:C,"="&A49)) -> 0 | F49: 0
B50: =IF(A50<>0, IF(ISERROR(VLOOKUP(A50, plan_cuentas,2, FALSE)), "Código de Cuenta Incorrecto", UPPER(VLOOKUP(A50, plan_cuentas, 2, FALSE))), "") ->  | C50: =IF(ISBLANK(A50),0,SUMIFS(Registros!H:H,Registros!B:B,"<"&fecha_inicial,Registros!C:C,"="&A50)-IF(ISBLANK(A50),0,SUMIFS(Registros!G:G,Registros!B:B,"<"&fecha_inicial,Registros!C:C,"="&A50))) -> 0 | D50: =IF(ISBLANK(A50),0,SUMIFS(Registros!G:G,Registros!B:B,">="&fecha_inicial, Registros!B:B, "<="&fecha_final,Registros!C:C,"="&A50)) -> 0 | E50: =IF(ISBLANK(A50),0,SUMIFS(Registros!H:H,Registros!B:B,">="&fecha_inicial, Registros!B:B, "<="&fecha_final,Registros!C:C,"="&A50)) -> 0 | F50: 0
B51: =IF(A51<>0, IF(ISERROR(VLOOKUP(A51, plan_cuentas,2, FALSE)), "Código de Cuenta Incorrecto", UPPER(VLOOKUP(A51, plan_cuentas, 2, FALSE))), "") ->  | C51: =IF(ISBLANK(A51),0,SUMIFS(Registros!H:H,Registros!B:B,"<"&fecha_inicial,Registros!C:C,"="&A51)-IF(ISBLANK(A51),0,SUMIFS(Registros!G:G,Registros!B:B,"<"&fecha_inicial,Registros!C:C,"="&A51))) -> 0 | D51: =IF(ISBLANK(A51),0,SUMIFS(Registros!G:G,Registros!B:B,">="&fecha_inicial, Registros!B:B, "<="&fecha_final,Registros!C:C,"="&A51)) -> 0 | E51: =IF(ISBLANK(A51),0,SUMIFS(Registros!H:H,Registros!B:B,">="&fecha_inicial, Registros!B:B, "<="&fecha_final,Registros!C:C,"="&A51)) -> 0 | F51: 0
B52: =IF(A52<>0, IF(ISERROR(VLOOKUP(A52, plan_cuentas,2, FALSE)), "Código de Cuenta Incorrecto", UPPER(VLOOKUP(A52, plan_cuentas, 2, FALSE))), "") ->  | C52: =IF(ISBLANK(A52),0,SUMIFS(Registros!H:H,Registros!B:B,"<"&fecha_inicial,Registros!C:C,"="&A52)-IF(ISBLANK(A52),0,SUMIFS(Registros!G:G,Registros!B:B,"<"&fecha_inicial,Registros!C:C,"="&A52))) -> 0 | D52: =IF(ISBLANK(A52),0,SUMIFS(Registros!G:G,Registros!B:B,">="&fecha_inicial, Registros!B:B, "<="&fecha_final,Registros!C:C,"="&A52)) -> 0 | E52: =IF(ISBLANK(A52),0,SUMIFS(Registros!H:H,Registros!B:B,">="&fecha_inicial, Registros!B:B, "<="&fecha_final,Registros!C:C,"="&A52)) -> 0 | F52: 0
C53: =SUM(C54:C59) -> 0 | D53: =SUM(D54:D59) -> 0 | E53: =SUM(E54:E59) -> 0 | F53: 0
C54: =IF(ISBLANK(A54),0,SUMIFS(Registros!H:H,Registros!B:B,"<"&fecha_inicial,Registros!C:C,"="&A54)-IF(ISBLANK(A54),0,SUMIFS(Registros!G:G,Registros!B:B,"<"&fecha_inicial,Registros!C:C,"="&A54))) -> 0 | D54: =IF(ISBLANK(A54),0,SUMIFS(Registros!G:G,Registros!B:B,">="&fecha_inicial, Registros!B:B, "<="&fecha_final,Registros!C:C,"="&A54)) -> 0 | E54: =IF(ISBLANK(A54),0,SUMIFS(Registros!H:H,Registros!B:B,">="&fecha_inicial, Registros!B:B, "<="&fecha_final,Registros!C:C,"="&A54)) -> 0 | F54: 0
C55: =IF(ISBLANK(A55),0,SUMIFS(Registros!H:H,Registros!B:B,"<"&fecha_inicial,Registros!C:C,"="&A55)-IF(ISBLANK(A55),0,SUMIFS(Registros!G:G,Registros!B:B,"<"&fecha_inicial,Registros!C:C,"="&A55))) -> 0 | D55: =IF(ISBLANK(A55),0,SUMIFS(Registros!G:G,Registros!B:B,">="&fecha_inicial, Registros!B:B, "<="&fecha_final,Registros!C:C,"="&A55)) -> 0 | E55: =IF(ISBLANK(A55),0,SUMIFS(Registros!H:H,Registros!B:B,">="&fecha_inicial, Registros!B:B, "<="&fecha_final,Registros!C:C,"="&A55)) -> 0 | F55: 0
C56: =IF(ISBLANK(A56),0,SUMIFS(Registros!H:H,Registros!B:B,"<"&fecha_inicial,Registros!C:C,"="&A56)-IF(ISBLANK(A56),0,SUMIFS(Registros!G:G,Registros!B:B,"<"&fecha_inicial,Registros!C:C,"="&A56))) -> 0 | D56: =IF(ISBLANK(A56),0,SUMIFS(Registros!G:G,Registros!B:B,">="&fecha_inicial, Registros!B:B, "<="&fecha_final,Registros!C:C,"="&A56)) -> 0 | E56: =IF(ISBLANK(A56),0,SUMIFS(Registros!H:H,Registros!B:B,">="&fecha_inicial, Registros!B:B, "<="&fecha_final,Registros!C:C,"="&A56)) -> 0 | F56: 0
C57: =IF(ISBLANK(A57),0,SUMIFS(Registros!H:H,Registros!B:B,"<"&fecha_inicial,Registros!C:C,"="&A57)-IF(ISBLANK(A57),0,SUMIFS(Registros!G:G,Registros!B:B,"<"&fecha_inicial,Registros!C:C,"="&A57))) -> 0 | D57: =IF(ISBLANK(A57),0,SUMIFS(Registros!G:G,Registros!B:B,">="&fecha_inicial, Registros!B:B, "<="&fecha_final,Registros!C:C,"="&A57)) -> 0 | E57: =IF(ISBLANK(A57),0,SUMIFS(Registros!H:H,Registros!B:B,">="&fecha_inicial, Registros!B:B, "<="&fecha_final,Registros!C:C,"="&A57)) -> 0 | F57: 0
B58: =IF(A58<>0, IF(ISERROR(VLOOKUP(A58, plan_cuentas,2, FALSE)), "Código de Cuenta Incorrecto", UPPER(VLOOKUP(A58, plan_cuentas, 2, FALSE))), "") ->  | C58: =IF(ISBLANK(A58),0,SUMIFS(Registros!H:H,Registros!B:B,"<"&fecha_inicial,Registros!C:C,"="&A58)-IF(ISBLANK(A58),0,SUMIFS(Registros!G:G,Registros!B:B,"<"&fecha_inicial,Registros!C:C,"="&A58))) -> 0 | D58: =IF(ISBLANK(A58),0,SUMIFS(Registros!G:G,Registros!B:B,">="&fecha_inicial, Registros!B:B, "<="&fecha_final,Registros!C:C,"="&A58)) -> 0 | E58: =IF(ISBLANK(A58),0,SUMIFS(Registros!H:H,Registros!B:B,">="&fecha_inicial, Registros!B:B, "<="&fecha_final,Registros!C:C,"="&A58)) -> 0 | F58: 0
C59: =IF(ISBLANK(A59),0,SUMIFS(Registros!H:H,Registros!B:B,"<"&fecha_inicial,Registros!C:C,"="&A59)-IF(ISBLANK(A59),0,SUMIFS(Registros!G:G,Registros!B:B,"<"&fecha_inicial,Registros!C:C,"="&A59))) -> 0 | D59: =IF(ISBLANK(A59),0,SUMIFS(Registros!G:G,Registros!B:B,">="&fecha_inicial, Registros!B:B, "<="&fecha_final,Registros!C:C,"="&A59)) -> 0 | E59: =IF(ISBLANK(A59),0,SUMIFS(Registros!H:H,Registros!B:B,">="&fecha_inicial, Registros!B:B, "<="&fecha_final,Registros!C:C,"="&A59)) -> 0 | F59: 0
A60: ="SALDO FINAL DE LA CUENTA AL " &TEXT(fecha_final, "dd")&" DE "&UPPER(TEXT(fecha_final, "MMMM"))&" DEL "& TEXT(fecha_final, "YYYY") -> SALDO FINAL DE LA CUENTA AL 29 DE OCTUBRE DEL 2016 | C60: =C11+C18+C25+C46+C32+C39+C53 -> 0 | D60: =D11+D18+D25+D46+D32+D39+D53 -> 0 | E60: =E11+E18+E25+E46+E32+E39+E53 -> 0 | F60: 0
A65: AUTORIZADO POR: | E65: REVISADO POR:
A66: =VLOOKUP(A65, Usuarios!B7:E9, 3, FALSE) -> Socorro Sandoval | E66: =VLOOKUP(E65, Usuarios!B7:E9, 3, FALSE) -> 0

Sheet 01
E1: Proteger
A2: =bussiness_name -> IGLESIA ESTRELLA DE BELÉN
A3: BALANZA CONSOLIDADA DE SALDOS
A4: ="DEL "&TEXT(fecha_inicial, "DD")&" DE "&UPPER(TEXT(fecha_inicial, "MMMM"))&" DEL " & TEXT(fecha_inicial, "YYYY") & " AL "&TEXT(fecha_final, "DD")&" DE "&UPPER(TEXT(fecha_final, "MMMM"))&" DEL "&TEXT(fecha_final, "YYYY") -> DEL 02 DE OCTUBRE DEL 2016 AL 29 DE OCTUBRE DEL 2016
A5: =address & " *** Tel/Fax: " & tel & " *** " & email -> SAN MARCOS *** Tel/Fax: ***
A6: CÓDIGO CUENTA | B6: DESCRIPCIÓN DE LA CUENTA | C6: SALDO INICIAL | E6: MOVIMIENTOS DEL PERIÓDO | G6: SALDO FINAL
C7: DEUDOR | D7: ACREEDOR | E7: DEUDOR | F7: ACREEDOR | G7: DEUDOR | H7: ACREEDOR
A8: 100000 | B8: =IFERROR(IF(A8<>"", VLOOKUP(A8, plan_cuentas,2, FALSE), ""), "CÓDIGO INCORRECTO") -> ACTIVOS | C8: =C9+C26 -> 1233.6 | D8: 0 | E8: 4024.5 | F8: 5110.09 | G8: 148.01 | H8: 0
A9: 110000 | B9: ACTIVOS CORRIENTES | C9: =C10+C15+C19+C23 -> 1233.6 | D9: =D10+D15+D19+D23 -> 0 | E9: 4024.5 | F9: 5110.09 | G9: 148.01 | H9: 0
A10: 110100 | B10: CAJA | C10: =SUM(C11:C12) -> 1233.6 | D10: =SUM(D11:D12) -> 0 | E10: 4024.5 | F10: 5110.09 | G10: 148.01 | H10: 0
A11: 110101 | B11: =IFERROR(IF(A11<>"", VLOOKUP(A11, plan_cuentas,2, FALSE), ""), "CÓDIGO INCORRECTO") -> CAJA GENERAL | C11: =IF(A11<>"",IF(VLOOKUP(A11,plan_cuentas,4,FALSE)="D",SUMIFS(Registros!G:G,Registros!B:B,"<"&fecha_inicial,Registros!C:C,"="&'01'!A11)-SUMIFS(Registros!H:H,Registros!B:B,"<"&fecha_inicial,Registros!C:C,"="&'01'!A11), 0), "") -> 1233.6 | D11: =IF(A11<>"",IF(VLOOKUP(A11,plan_cuentas,4,FALSE)="H",SUMIFS(Registros!H:H,Registros!B:B,"<"&fecha_inicial,Registros!C:C,"="&'01'!A11)-SUMIFS(Registros!G:G,Registros!B:B,"<"&fecha_inicial,Registros!C:C,"="&'01'!A11), 0), "") -> 0 | E11: =IF(A11<>"", SUMIFS(Registros!G:G, Registros!B:B, ">=" & fecha_inicial, Registros!B:B, "<=" & fecha_final, Registros!C:C, "=" &'01'!A11), 0) -> 4024.5 | F11: =IF(A11<>"", SUMIFS(Registros!H:H, Registros!B:B, ">=" & fecha_inicial, Registros!B:B, "<=" & fecha_final, Registros!C:C, "=" &'01'!A11), 0) -> 5110.09 | G11: =IF(A11<>"", IF(VLOOKUP(A11, plan_cuentas, 4, FALSE) = "D", C11+E11-F11, 0), 0) -> 148.01 | H11: =IF(A11<>"", IF(VLOOKUP(A11, plan_cuentas, 4, FALSE) = "H", D11-E11+F11, 0), 0) -> 0
B12: =IFERROR(IF(A12<>"", VLOOKUP(A12, plan_cuentas,2, FALSE), ""), "CÓDIGO INCORRECTO") ->  | C12: =IF(A12<>"",IF(VLOOKUP(A12,plan_cuentas,4,FALSE)="D",SUMIFS(Registros!G:G,Registros!B:B,"<"&fecha_inicial,Registros!C:C,"="&'01'!A12)-SUMIFS(Registros!H:H,Registros!B:B,"<"&fecha_inicial,Registros!C:C,"="&'01'!A12), 0), "") ->  | D12: =IF(A12<>"",IF(VLOOKUP(A12,plan_cuentas,4,FALSE)="H",SUMIFS(Registros!H:H,Registros!B:B,"<"&fecha_inicial,Registros!C:C,"="&'01'!A12)-SUMIFS(Registros!G:G,Registros!B:B,"<"&fecha_inicial,Registros!C:C,"="&'01'!A12), 0), "") ->  | E12: =IF(A12<>"", SUMIFS(Registros!G:G, Registros!B:B, ">=" & fecha_inicial, Registros!B:B, "<=" & fecha_final, Registros!C:C, "=" &'01'!A12), 0) -> 0 | F12: =IF(A12<>"", SUMIFS(Registros!H:H, Registros!B:B, ">=" & fecha_inicial, Registros!B:B, "<=" & fecha_final, Registros!C:C, "=" &'01'!A12), 0) -> 0 | G12: =IF(A12<>"", IF(VLOOKUP(A12, plan_cuentas, 4, FALSE) = "D", C12+E12-F12, 0), 0) -> 0 | H12: =IF(A12<>"", IF(VLOOKUP(A12, plan_cuentas, 4, FALSE) = "H", D12-E12+F12, 0), 0) -> 0
B13: =IFERROR(IF(A13<>"", VLOOKUP(A13, plan_cuentas,2, FALSE), ""), "CÓDIGO INCORRECTO") -> 
B14: =IFERROR(IF(A14<>"", VLOOKUP(A14, plan_cuentas,2, FALSE), ""), "CÓDIGO INCORRECTO") ->  | C14: =IF(A14<>"",IF(VLOOKUP(A14,plan_cuentas,4,FALSE)="D",SUMIFS(Registros!G:G,Registros!B:B,"<"&fecha_inicial,Registros!C:C,"="&'01'!A14)-SUMIFS(Registros!H:H,Registros!B:B,"<"&fecha_inicial,Registros!C:C,"="&'01'!A14), 0), "") ->  | D14: =IF(A14<>"",IF(VLOOKUP(A14,plan_cuentas,4,FALSE)="H",SUMIFS(Registros!H:H,Registros!B:B,"<"&fecha_inicial,Registros!C:C,"="&'01'!A14)-SUMIFS(Registros!G:G,Registros!B:B,"<"&fecha_inicial,Registros!C:C,"="&'01'!A14), 0), "") ->  | E14: =IF(A14<>"", SUMIFS(Registros!G:G, Registros!B:B, ">=" & fecha_inicial, Registros!B:B, "<=" & fecha_final, Registros!C:C, "=" &'01'!A14), 0) -> 0 | F14: =IF(A14<>"", SUMIFS(Registros!H:H, Registros!B:B, ">=" & fecha_inicial, Registros!B:B, "<=" & fecha_final, Registros!C:C, "=" &'01'!A14), 0) -> 0 | G14: =IF(A14<>"", IF(VLOOKUP(A14, plan_cuentas, 4, FALSE) = "D", C14+E14-F14, 0), 0) -> 0 | H14: =IF(A14<>"", IF(VLOOKUP(A14, plan_cuentas, 4, FALSE) = "H", D14-E14+F14, 0), 0) -> 0
A15: 110400 | B15: INVENTARIOS | C15: =SUM(C16:C18) -> 0 | D15: 0 | E15: 0 | F15: 0 | G15: 0 | H15: 0
A16: 110401 | B16: ALIMENTOS | C16: =IF(A16<>"",IF(VLOOKUP(A16,plan_cuentas,4,FALSE)="D",SUMIFS(Registros!G:G,Registros!B:B,"<"&fecha_inicial,Registros!C:C,"="&'01'!A16)-SUMIFS(Registros!H:H,Registros!B:B,"<"&fecha_inicial,Registros!C:C,"="&'01'!A16), 0), "") -> 0 | D16: =IF(A16<>"",IF(VLOOKUP(A16,plan_cuentas,4,FALSE)="H",SUMIFS(Registros!H:H,Registros!B:B,"<"&fecha_inicial,Registros!C:C,"="&'01'!A16)-SUMIFS(Registros!G:G,Registros!B:B,"<"&fecha_inicial,Registros!C:C,"="&'01'!A16), 0), "") -> 0 | E16: =IF(A16<>"", SUMIFS(Registros!G:G, Registros!B:B, ">=" & fecha_inicial, Registros!B:B, "<=" & fecha_final, Registros!C:C, "=" &'01'!A16), 0) -> 0 | F16: =IF(A16<>"", SUMIFS(Registros!H:H, Registros!B:B, ">=" & fecha_inicial, Registros!B:B, "<=" & fecha_final, Registros!C:C, "=" &'01'!A16), 0) -> 0 | G16: =IF(A16<>"", IF(VLOOKUP(A16, plan_cuentas, 4, FALSE) = "D", C16+E16-F16, 0), 0) -> 0 | H16: =IF(A16<>"", IF(VLOOKUP(A16, plan_cuentas, 4, FALSE) = "H", D16-E16+F16, 0), 0) -> 0
A17: 110402 | B17: =IFERROR(IF(A17<>"", VLOOKUP(A17, plan_cuentas,2, FALSE), ""), "CÓDIGO INCORRECTO") -> MATERIAS PRIMAS | C17: =IF(A17<>"",IF(VLOOKUP(A17,plan_cuentas,4,FALSE)="D",SUMIFS(Registros!G:G,Registros!B:B,"<"&fecha_inicial,Registros!C:C,"="&'01'!A17)-SUMIFS(Registros!H:H,Registros!B:B,"<"&fecha_inicial,Registros!C:C,"="&'01'!A17), 0), "") -> 0 | D17: =IF(A17<>"",IF(VLOOKUP(A17,plan_cuentas,4,FALSE)="H",SUMIFS(Registros!H:H,Registros!B:B,"<"&fecha_inicial,Registros!C:C,"="&'01'!A17)-SUMIFS(Registros!G:G,Registros!B:B,"<"&fecha_inicial,Registros!C:C,"="&'01'!A17), 0), "") -> 0 | E17: =IF(A17<>"", SUMIFS(Registros!G:G, Registros!B:B, ">=" & fecha_inicial, Registros!B:B, "<=" & fecha_final, Registros!C:C, "=" &'01'!A17), 0) -> 0 | F17: =IF(A17<>"", SUMIFS(Registros!H:H, Registros!B:B, ">=" & fecha_inicial, Registros!B:B, "<=" & fecha_final, Registros!C:C, "=" &'01'!A17), 0) -> 0 | G17: =IF(A17<>"", IF(VLOOKUP(A17, plan_cuentas, 4, FALSE) = "D", C17+E17-F17, 0), 0) -> 0 | H17: =IF(A17<>"", IF(VLOOKUP(A17, plan_cuentas, 4, FALSE) = "H", D17-E17+F17, 0), 0) -> 0
A18: 110403 | B18: BEBIDAS | C18: =IF(A18<>"",IF(VLOOKUP(A18,plan_cuentas,4,FALSE)="D",SUMIFS(Registros!G:G,Registros!B:B,"<"&fecha_inicial,Registros!C:C,"="&'01'!A18)-SUMIFS(Registros!H:H,Registros!B:B,"<"&fecha_inicial,Registros!C:C,"="&'01'!A18), 0), "") -> 0 | D18: =IF(A18<>"",IF(VLOOKUP(A18,plan_cuentas,4,FALSE)="H",SUMIFS(Registros!H:H,Registros!B:B,"<"&fecha_inicial,Registros!C:C,"="&'01'!A18)-SUMIFS(Registros!G:G,Registros!B:B,"<"&fecha_inicial,Registros!C:C,"="&'01'!A18), 0), "") -> 0 | E18: =IF(A18<>"", SUMIFS(Registros!G:G, Registros!B:B, ">=" & fecha_inicial, Registros!B:B, "<=" & fecha_final, Registros!C:C, "=" &'01'!A18), 0) -> 0 | F18: =IF(A18<>"", SUMIFS(Registros!H:H, Registros!B:B, ">=" & fecha_inicial, Registros!B:B, "<=" & fecha_final, Registros!C:C, "=" &'01'!A18), 0) -> 0 | G18: =IF(A18<>"", IF(VLOOKUP(A18, plan_cuentas, 4, FALSE) = "D", C18+E18-F18, 0), 0) -> 0 | H18: =IF(A18<>"", IF(VLOOKUP(A18, plan_cuentas, 4, FALSE) = "H", D18-E18+F18, 0), 0) -> 0
A19: 110600 | B19: MATERIALES Y SUMINISTROS | C19: =SUM(C20:C22) -> 0 | D19: =SUM(D20:D22) -> 0 | E19: 0 | F19: 0 | G19: 0 | H19: 0
A20: 110601 | B20: PRODUCTOS HIGIÉNICOS Y DE LIMPIEZA | C20: =IF(A20<>"",IF(VLOOKUP(A20,plan_cuentas,4,FALSE)="D",SUMIFS(Registros!G:G,Registros!B:B,"<"&fecha_inicial,Registros!C:C,"="&'01'!A20)-SUMIFS(Registros!H:H,Registros!B:B,"<"&fecha_inicial,Registros!C:C,"="&'01'!A20), 0), "") -> 0 | D20: =IF(A20<>"",IF(VLOOKUP(A20,plan_cuentas,4,FALSE)="H",SUMIFS(Registros!H:H,Registros!B:B,"<"&fecha_inicial,Registros!C:C,"="&'01'!A20)-SUMIFS(Registros!G:G,Registros!B:B,"<"&fecha_inicial,Registros!C:C,"="&'01'!A20), 0), "") -> 0 | E20: =IF(A20<>"", SUMIFS(Registros!G:G, Registros!B:B, ">=" & fecha_inicial, Registros!B:B, "<=" & fecha_final, Registros!C:C, "=" &'01'!A20), 0) -> 0 | F20: =IF(A20<>"", SUMIFS(Registros!H:H, Registros!B:B, ">=" & fecha_inicial, Registros!B:B, "<=" & fecha_final, Registros!C:C, "=" &'01'!A20), 0) -> 0 | G20: =IF(A20<>"", IF(VLOOKUP(A20, plan_cuentas, 4, FALSE) = "D", C20+E20-F20, 0), 0) -> 0 | H20: =IF(A20<>"", IF(VLOOKUP(A20, plan_cuentas, 4, FALSE) = "H", D20-E20+F20, 0), 0) -> 0
A21: 110602 | B21: INSUMOS MÉDICOS | C21: =IF(A21<>"",IF(VLOOKUP(A21,plan_cuentas,4,FALSE)="D",SUMIFS(Registros!G:G,Registros!B:B,"<"&fecha_inicial,Registros!C:C,"="&'01'!A21)-SUMIFS(Registros!H:H,Registros!B:B,"<"&fecha_inicial,Registros!C:C,"="&'01'!A21), 0), "") -> 0 | D21: =IF(A21<>"",IF(VLOOKUP(A21,plan_cuentas,4,FALSE)="H",SUMIFS(Registros!H:H,Registros!B:B,"<"&fecha_inicial,Registros!C:C,"="&'01'!A21)-SUMIFS(Registros!G:G,Registros!B:B,"<"&fecha_inicial,Registros!C:C,"="&'01'!A21), 0), "") -> 0 | E21: =IF(A21<>"", SUMIFS(Registros!G:G, Registros!B:B, ">=" & fecha_inicial, Registros!B:B, "<=" & fecha_final, Registros!C:C, "=" &'01'!A21), 0) -> 0 | F21: =IF(A21<>"", SUMIFS(Registros!H:H, Registros!B:B, ">=" & fecha_inicial, Registros!B:B, "<=" & fecha_final, Registros!C:C, "=" &'01'!A21), 0) -> 0 | G21: 0 | H21: 0
A22: 110603 | B22: HERRAMIENTAS Y ENSERES | C22: =IF(A22<>"",IF(VLOOKUP(A22,plan_cuentas,4,FALSE)="D",SUMIFS(Registros!G:G,Registros!B:B,"<"&fecha_inicial,Registros!C:C,"="&'01'!A22)-SUMIFS(Registros!H:H,Registros!B:B,"<"&fecha_inicial,Registros!C:C,"="&'01'!A22), 0), "") -> 0 | D22: =IF(A22<>"",IF(VLOOKUP(A22,plan_cuentas,4,FALSE)="H",SUMIFS(Registros!H:H,Registros!B:B,"<"&fecha_inicial,Registros!C:C,"="&'01'!A22)-SUMIFS(Registros!G:G,Registros!B:B,"<"&fecha_inicial,Registros!C:C,"="&'01'!A22), 0), "") -> 0 | E22: =IF(A22<>"", SUMIFS(Registros!G:G, Registros!B:B, ">=" & fecha_inicial, Registros!B:B, "<=" & fecha_final, Registros!C:C, "=" &'01'!A22), 0) -> 0 | F22: =IF(A22<>"", SUMIFS(Registros!H:H, Registros!B:B, ">=" & fecha_inicial, Registros!B:B, "<=" & fecha_final, Registros!C:C, "=" &'01'!A22), 0) -> 0 | G22: 0 | H22: 0
A23: 110700 | B23: =IFERROR(IF(A23<>"", VLOOKUP(A23, plan_cuentas,2, FALSE), ""), "CÓDIGO INCORRECTO") -> MATERIAL DE RESPOSICIÓN PERIÓDICA | C23: =SUM(C24:C25) -> 0 | D23: =SUM(D24:D25) -> 0 | E23: 0 | F23: 0 | G23: 0 | H23: =SUM(H24:H25) -> 0
A24: 110701 | B24: UTENSILIOS | C24: =IF(A24<>"",IF(VLOOKUP(A24,plan_cuentas,4,FALSE)="D",SUMIFS(Registros!G:G,Registros!B:B,"<"&fecha_inicial,Registros!C:C,"="&'01'!A24)-SUMIFS(Registros!H:H,Registros!B:B,"<"&fecha_inicial,Registros!C:C,"="&'01'!A24), 0), "") -> 0 | D24: =IF(A24<>"",IF(VLOOKUP(A24,plan_cuentas,4,FALSE)="H",SUMIFS(Registros!H:H,Registros!B:B,"<"&fecha_inicial,Registros!C:C,"="&'01'!A24)-SUMIFS(Registros!G:G,Registros!B:B,"<"&fecha_inicial,Registros!C:C,"="&'01'!A24), 0), "") -> 0 | E24: =IF(A24<>"", SUMIFS(Registros!G:G, Registros!B:B, ">=" & fecha_inicial, Registros!B:B, "<=" & fecha_final, Registros!C:C, "=" &'01'!A24), 0) -> 0 | F24: =IF(A24<>"", SUMIFS(Registros!H:H, Registros!B:B, ">=" & fecha_inicial, Registros!B:B, "<=" & fecha_final, Registros!C:C, "=" &'01'!A24), 0) -> 0 | G24: =IF(A24<>"", IF(VLOOKUP(A24, plan_cuentas, 4, FALSE) = "D", C24+E24-F24, 0), 0) -> 0 | H24: =IF(A24<>"", IF(VLOOKUP(A24, plan_cuentas, 4, FALSE) = "H", D24-E24+F24, 0), 0) -> 0
B25: =IFERROR(IF(A25<>"", VLOOKUP(A25, plan_cuentas,2, FALSE), ""), "CÓDIGO INCORRECTO") ->  | C25: =IF(A25<>"",IF(VLOOKUP(A25,plan_cuentas,4,FALSE)="D",SUMIFS(Registros!G:G,Registros!B:B,"<"&fecha_inicial,Registros!C:C,"="&'01'!A25)-SUMIFS(Registros!H:H,Registros!B:B,"<"&fecha_inicial,Registros!C:C,"="&'01'!A25), 0), "") ->  | D25: =IF(A25<>"",IF(VLOOKUP(A25,plan_cuentas,4,FALSE)="H",SUMIFS(Registros!H:H,Registros!B:B,"<"&fecha_inicial,Registros!C:C,"="&'01'!A25)-SUMIFS(Registros!G:G,Registros!B:B,"<"&fecha_inicial,Registros!C:C,"="&'01'!A25), 0), "") ->  | E25: =IF(A25<>"", SUMIFS(Registros!G:G, Registros!B:B, ">=" & fecha_inicial, Registros!B:B, "<=" & fecha_final, Registros!C:C, "=" &'01'!A25), 0) -> 0 | F25: =IF(A25<>"", SUMIFS(Registros!H:H, Registros!B:B, ">=" & fecha_inicial, Registros!B:B, "<=" & fecha_final, Registros!C:C, "=" &'01'!A25), 0) -> 0 | G25: =IF(A25<>"", IF(VLOOKUP(A25, plan_cuentas, 4, FALSE) = "D", C25+E25-F25, 0), 0) -> 0 | H25: =IF(A25<>"", IF(VLOOKUP(A25, plan_cuentas, 4, FALSE) = "H", D25-E25+F25, 0), 0) -> 0
A26: 120000 | B26: ACTIVOS NO CORRIENTES | C26: =C27+C30+C33+C39+C41+C44 -> 0 | D26: =D27+D30+D33+D39+D41+D44 -> 0 | E26: 0 | F26: 0 | G26: 0 | H26: 0
A27: 120100 | B27: TERRENOS | C27: =SUM(C28:C29) -> 0 | D27: =SUM(D28:D29) -> 0 | E27: 0 | F27: 0 | G27: 0 | H27: 0
A28: 120101 | B28: TERRENO | C28: =IF(A28<>"",IF(VLOOKUP(A28,plan_cuentas,4,FALSE)="D",SUMIFS(Registros!G:G,Registros!B:B,"<"&fecha_inicial,Registros!C:C,"="&'01'!A28)-SUMIFS(Registros!H:H,Registros!B:B,"<"&fecha_inicial,Registros!C:C,"="&'01'!A28), 0), "") -> 0 | D28: =IF(A28<>"",IF(VLOOKUP(A28,plan_cuentas,4,FALSE)="H",SUMIFS(Registros!H:H,Registros!B:B,"<"&fecha_inicial,Registros!C:C,"="&'01'!A28)-SUMIFS(Registros!G:G,Registros!B:B,"<"&fecha_inicial,Registros!C:C,"="&'01'!A28), 0), "") -> 0 | E28: =IF(A28<>"", SUMIFS(Registros!G:G, Registros!B:B, ">=" & fecha_inicial, Registros!B:B, "<=" & fecha_final, Registros!C:C, "=" &'01'!A28), 0) -> 0 | F28: =IF(A28<>"", SUMIFS(Registros!H:H, Registros!B:B, ">=" & fecha_inicial, Registros!B:B, "<=" & fecha_final, Registros!C:C, "=" &'01'!A28), 0) -> 0 | G28: =IF(A28<>"", IF(VLOOKUP(A28, plan_cuentas, 4, FALSE) = "D", C28+E28-F28, 0), 0) -> 0 | H28: =IF(A28<>"", IF(VLOOKUP(A28, plan_cuentas, 4, FALSE) = "H", D28-E28+F28, 0), 0) -> 0
B29: =IFERROR(IF(A29<>"", VLOOKUP(A29, plan_cuentas,2, FALSE), ""), "CÓDIGO INCORRECTO") ->  | C29: =IF(A29<>"",IF(VLOOKUP(A29,plan_cuentas,4,FALSE)="D",SUMIFS(Registros!G:G,Registros!B:B,"<"&fecha_inicial,Registros!C:C,"="&'01'!A29)-SUMIFS(Registros!H:H,Registros!B:B,"<"&fecha_inicial,Registros!C:C,"="&'01'!A29), 0), "") ->  | D29: =IF(A29<>"",IF(VLOOKUP(A29,plan_cuentas,4,FALSE)="H",SUMIFS(Registros!H:H,Registros!B:B,"<"&fecha_inicial,Registros!C:C,"="&'01'!A29)-SUMIFS(Registros!G:G,Registros!B:B,"<"&fecha_inicial,Registros!C:C,"="&'01'!A29), 0), "") ->  | E29: =IF(A29<>"", SUMIFS(Registros!G:G, Registros!B:B, ">=" & fecha_inicial, Registros!B:B, "<=" & fecha_final, Registros!C:C, "=" &'01'!A29), 0) -> 0 | F29: =IF(A29<>"", SUMIFS(Registros!H:H, Registros!B:B, ">=" & fecha_inicial, Registros!B:B, "<=" & fecha_final, Registros!C:C, "=" &'01'!A29), 0) -> 0 | G29: =IF(A29<>"", IF(VLOOKUP(A29, plan_cuentas, 4, FALSE) = "D", C29+E29-F29, 0), 0) -> 0 | H29: =IF(A29<>"", IF(VLOOKUP(A29, plan_cuentas, 4, FALSE) = "H", D29-E29+F29, 0), 0) -> 0
A30: 120200 | B30: EDIFICIOS | C30: =SUM(C31) -> 0 | D30: =SUM(D31) -> 0 | E30: 0 | F30: 0 | G30: 0 | H30: =SUM(H31) -> 0
A31: 120201 | B31: EDIFICIO DEL TEMPLO | C31: =IF(A31<>"",IF(VLOOKUP(A31,plan_cuentas,4,FALSE)="D",SUMIFS(Registros!G:G,Registros!B:B,"<"&fecha_inicial,Registros!C:C,"="&'01'!A31)-SUMIFS(Registros!H:H,Registros!B:B,"<"&fecha_inicial,Registros!C:C,"="&'01'!A31), 0), "") -> 0 | D31: =IF(A31<>"",IF(VLOOKUP(A31,plan_cuentas,4,FALSE)="H",SUMIFS(Registros!H:H,Registros!B:B,"<"&fecha_inicial,Registros!C:C,"="&'01'!A31)-SUMIFS(Registros!G:G,Registros!B:B,"<"&fecha_inicial,Registros!C:C,"="&'01'!A31), 0), "") -> 0 | E31: =IF(A31<>"", SUMIFS(Registros!G:G, Registros!B:B, ">=" & fecha_inicial, Registros!B:B, "<=" & fecha_final, Registros!C:C, "=" &'01'!A31), 0) -> 0 | F31: =IF(A31<>"", SUMIFS(Registros!H:H, Registros!B:B, ">=" & fecha_inicial, Registros!B:B, "<=" & fecha_final, Registros!C:C, "=" &'01'!A31), 0) -> 0 | G31: =IF(A31<>"", IF(VLOOKUP(A31, plan_cuentas, 4, FALSE) = "D", C31+E31-F31, 0), 0) -> 0 | H31: =IF(A31<>"", IF(VLOOKUP(A31, plan_cuentas, 4, FALSE) = "H", D31-E31+F31, 0), 0) -> 0
A32: 120202 | B32: =IFERROR(IF(A32<>"", VLOOKUP(A32, plan_cuentas,2, FALSE), ""), "CÓDIGO INCORRECTO") -> CASA PASTORAL | C32: =IF(A32<>"",IF(VLOOKUP(A32,plan_cuentas,4,FALSE)="D",SUMIFS(Registros!G:G,Registros!B:B,"<"&fecha_inicial,Registros!C:C,"="&'01'!A32)-SUMIFS(Registros!H:H,Registros!B:B,"<"&fecha_inicial,Registros!C:C,"="&'01'!A32), 0), "") -> 0 | D32: =IF(A32<>"",IF(VLOOKUP(A32,plan_cuentas,4,FALSE)="H",SUMIFS(Registros!H:H,Registros!B:B,"<"&fecha_inicial,Registros!C:C,"="&'01'!A32)-SUMIFS(Registros!G:G,Registros!B:B,"<"&fecha_inicial,Registros!C:C,"="&'01'!A32), 0), "") -> 0 | E32: =IF(A32<>"", SUMIFS(Registros!G:G, Registros!B:B, ">=" & fecha_inicial, Registros!B:B, "<=" & fecha_final, Registros!C:C, "=" &'01'!A32), 0) -> 0 | F32: =IF(A32<>"", SUMIFS(Registros!H:H, Registros!B:B, ">=" & fecha_inicial, Registros!B:B, "<=" & fecha_final, Registros!C:C, "=" &'01'!A32), 0) -> 0 | G32: =IF(A32<>"", IF(VLOOKUP(A32, plan_cuentas, 4, FALSE) = "D", C32+E32-F32, 0), 0) -> 0 | H32: =IF(A32<>"", IF(VLOOKUP(A32, plan_cuentas, 4, FALSE) = "H", D32-E32+F32, 0), 0) -> 0
A33: 120300 | B33: EQUIPO | C33: =SUM(C34:C37) -> 0 | D33: =SUM(D34:D37) -> 0 | E33: 0 | F33: 0 | G33: 0 | H33: =SUM(H34:H37) -> 0
A34: 120301 | B34: EQUIPO RODANTE | C34: =IF(A34<>"",IF(VLOOKUP(A34,plan_cuentas,4,FALSE)="D",SUMIFS(Registros!G:G,Registros!B:B,"<"&fecha_inicial,Registros!C:C,"="&'01'!A34)-SUMIFS(Registros!H:H,Registros!B:B,"<"&fecha_inicial,Registros!C:C,"="&'01'!A34), 0), "") -> 0 | D34: =IF(A34<>"",IF(VLOOKUP(A34,plan_cuentas,4,FALSE)="H",SUMIFS(Registros!H:H,Registros!B:B,"<"&fecha_inicial,Registros!C:C,"="&'01'!A34)-SUMIFS(Registros!G:G,Registros!B:B,"<"&fecha_inicial,Registros!C:C,"="&'01'!A34), 0), "") -> 0 | E34: =IF(A34<>"", SUMIFS(Registros!G:G, Registros!B:B, ">=" & fecha_inicial, Registros!B:B, "<=" & fecha_final, Registros!C:C, "=" &'01'!A34), 0) -> 0 | F34: =IF(A34<>"", SUMIFS(Registros!H:H, Registros!B:B, ">=" & fecha_inicial, Registros!B:B, "<=" & fecha_final, Registros!C:C, "=" &'01'!A34), 0) -> 0 | G34: =IF(A34<>"", IF(VLOOKUP(A34, plan_cuentas, 4, FALSE) = "D", C34+E34-F34, 0), 0) -> 0 | H34: =IF(A34<>"", IF(VLOOKUP(A34, plan_cuentas, 4, FALSE) = "H", D34-E34+F34, 0), 0) -> 0
A35: 120302 | B35: EQUIPO DE REFRIGERACIÓN | C35: =IF(A35<>"",IF(VLOOKUP(A35,plan_cuentas,4,FALSE)="D",SUMIFS(Registros!G:G,Registros!B:B,"<"&fecha_inicial,Registros!C:C,"="&'01'!A35)-SUMIFS(Registros!H:H,Registros!B:B,"<"&fecha_inicial,Registros!C:C,"="&'01'!A35), 0), "") -> 0 | D35: =IF(A35<>"",IF(VLOOKUP(A35,plan_cuentas,4,FALSE)="H",SUMIFS(Registros!H:H,Registros!B:B,"<"&fecha_inicial,Registros!C:C,"="&'01'!A35)-SUMIFS(Registros!G:G,Registros!B:B,"<"&fecha_inicial,Registros!C:C,"="&'01'!A35), 0), "") -> 0 | E35: =IF(A35<>"", SUMIFS(Registros!G:G, Registros!B:B, ">=" & fecha_inicial, Registros!B:B, "<=" & fecha_final, Registros!C:C, "=" &'01'!A35), 0) -> 0 | F35: =IF(A35<>"", SUMIFS(Registros!H:H, Registros!B:B, ">=" & fecha_inicial, Registros!B:B, "<=" & fecha_final, Registros!C:C, "=" &'01'!A35), 0) -> 0 | G35: =IF(A35<>"", IF(VLOOKUP(A35, plan_cuentas, 4, FALSE) = "D", C35+E35-F35, 0), 0) -> 0 | H35: =IF(A35<>"", IF(VLOOKUP(A35, plan_cuentas, 4, FALSE) = "H", D35-E35+F35, 0), 0) -> 0
A36: 120303 | B36: =IFERROR(IF(A36<>"", VLOOKUP(A36, plan_cuentas,2, FALSE), ""), "CÓDIGO INCORRECTO") -> EQUIPO DE COCINA | C36: =IF(A36<>"",IF(VLOOKUP(A36,plan_cuentas,4,FALSE)="D",SUMIFS(Registros!G:G,Registros!B:B,"<"&fecha_inicial,Registros!C:C,"="&'01'!A36)-SUMIFS(Registros!H:H,Registros!B:B,"<"&fecha_inicial,Registros!C:C,"="&'01'!A36), 0), "") -> 0 | D36: =IF(A36<>"",IF(VLOOKUP(A36,plan_cuentas,4,FALSE)="H",SUMIFS(Registros!H:H,Registros!B:B,"<"&fecha_inicial,Registros!C:C,"="&'01'!A36)-SUMIFS(Registros!G:G,Registros!B:B,"<"&fecha_inicial,Registros!C:C,"="&'01'!A36), 0), "") -> 0 | E36: =IF(A36<>"", SUMIFS(Registros!G:G, Registros!B:B, ">=" & fecha_inicial, Registros!B:B, "<=" & fecha_final, Registros!C:C, "=" &'01'!A36), 0) -> 0 | F36: =IF(A36<>"", SUMIFS(Registros!H:H, Registros!B:B, ">=" & fecha_inicial, Registros!B:B, "<=" & fecha_final, Registros!C:C, "=" &'01'!A36), 0) -> 0 | G36: =IF(A36<>"", IF(VLOOKUP(A36, plan_cuentas, 4, FALSE) = "D", C36+E36-F36, 0), 0) -> 0 | H36: =IF(A36<>"", IF(VLOOKUP(A36, plan_cuentas, 4, FALSE) = "H", D36-E36+F36, 0), 0) -> 0
A37: 120304 | B37: EQUIPO DE OFICINA | C37: =IF(A37<>"",IF(VLOOKUP(A37,plan_cuentas,4,FALSE)="D",SUMIFS(Registros!G:G,Registros!B:B,"<"&fecha_inicial,Registros!C:C,"="&'01'!A37)-SUMIFS(Registros!H:H,Registros!B:B,"<"&fecha_inicial,Registros!C:C,"="&'01'!A37), 0), "") -> 0 | D37: =IF(A37<>"",IF(VLOOKUP(A37,plan_cuentas,4,FALSE)="H",SUMIFS(Registros!H:H,Registros!B:B,"<"&fecha_inicial,Registros!C:C,"="&'01'!A37)-SUMIFS(Registros!G:G,Registros!B:B,"<"&fecha_inicial,Registros!C:C,"="&'01'!A37), 0), "") -> 0 | E37: =IF(A37<>"", SUMIFS(Registros!G:G, Registros!B:B, ">=" & fecha_inicial, Registros!B:B, "<=" & fecha_final, Registros!C:C, "=" &'01'!A37), 0) -> 0 | F37: =IF(A37<>"", SUMIFS(Registros!H:H, Registros!B:B, ">=" & fecha_inicial, Registros!B:B, "<=" & fecha_final, Registros!C:C, "=" &'01'!A37), 0) -> 0 | G37: =IF(A37<>"", IF(VLOOKUP(A37, plan_cuentas, 4, FALSE) = "D", C37+E37-F37, 0), 0) -> 0 | H37: =IF(A37<>"", IF(VLOOKUP(A37, plan_cuentas, 4, FALSE) = "H", D37-E37+F37, 0), 0) -> 0
A38: 120305 | B38: =IFERROR(IF(A38<>"", VLOOKUP(A38, plan_cuentas,2, FALSE), ""), "CÓDIGO INCORRECTO") -> EQUIPO DE AUDIO Y VIDEO | C38: =IF(A38<>"",IF(VLOOKUP(A38,plan_cuentas,4,FALSE)="D",SUMIFS(Registros!G:G,Registros!B:B,"<"&fecha_inicial,Registros!C:C,"="&'01'!A38)-SUMIFS(Registros!H:H,Registros!B:B,"<"&fecha_inicial,Registros!C:C,"="&'01'!A38), 0), "") -> 0 | D38: =IF(A38<>"",IF(VLOOKUP(A38,plan_cuentas,4,FALSE)="H",SUMIFS(Registros!H:H,Registros!B:B,"<"&fecha_inicial,Registros!C:C,"="&'01'!A38)-SUMIFS(Registros!G:G,Registros!B:B,"<"&fecha_inicial,Registros!C:C,"="&'01'!A38), 0), "") -> 0 | E38: =IF(A38<>"", SUMIFS(Registros!G:G, Registros!B:B, ">=" & fecha_inicial, Registros!B:B, "<=" & fecha_final, Registros!C:C, "=" &'01'!A38), 0) -> 0 | F38: =IF(A38<>"", SUMIFS(Registros!H:H, Registros!B:B, ">=" & fecha_inicial, Registros!B:B, "<=" & fecha_final, Registros!C:C, "=" &'01'!A38), 0) -> 0 | G38: =IF(A38<>"", IF(VLOOKUP(A38, plan_cuentas, 4, FALSE) = "D", C38+E38-F38, 0), 0) -> 0 | H38: =IF(A38<>"", IF(VLOOKUP(A38, plan_cuentas, 4, FALSE) = "H", D38-E38+F38, 0), 0) -> 0
A39: 120400 | B39: MOBILIARIO | C39: =SUM(C40) -> 0 | D39: =SUM(D40) -> 0 | E39: 0 | F39: 0 | G39: 0 | H39: 0
A40: 120401 | B40: MOBILIARIO | C40: =IF(A40<>"",IF(VLOOKUP(A40,plan_cuentas,4,FALSE)="D",SUMIFS(Registros!G:G,Registros!B:B,"<"&fecha_inicial,Registros!C:C,"="&'01'!A40)-SUMIFS(Registros!H:H,Registros!B:B,"<"&fecha_inicial,Registros!C:C,"="&'01'!A40), 0), "") -> 0 | D40: =IF(A40<>"",IF(VLOOKUP(A40,plan_cuentas,4,FALSE)="H",SUMIFS(Registros!H:H,Registros!B:B,"<"&fecha_inicial,Registros!C:C,"="&'01'!A40)-SUMIFS(Registros!G:G,Registros!B:B,"<"&fecha_inicial,Registros!C:C,"="&'01'!A40), 0), "") -> 0 | E40: =IF(A40<>"", SUMIFS(Registros!G:G, Registros!B:B, ">=" & fecha_inicial, Registros!B:B, "<=" & fecha_final, Registros!C:C, "=" &'01'!A40), 0) -> 0 | F40: =IF(A40<>"", SUMIFS(Registros!H:H, Registros!B:B, ">=" & fecha_inicial, Registros!B:B, "<=" & fecha_final, Registros!C:C, "=" &'01'!A40), 0) -> 0 | G40: =IF(A40<>"", IF(VLOOKUP(A40, plan_cuentas, 4, FALSE) = "D", C40+E40-F40, 0), 0) -> 0 | H40: =IF(A40<>"", IF(VLOOKUP(A40, plan_cuentas, 4, FALSE) = "H", D40-E40+F40, 0), 0) -> 0
A41: 120500 | B41: HERRAMIENTAS Y ENSERES | C41: =SUM(C42:C43) -> 0 | D41: =SUM(D42:D43) -> 0 | E41: 0 | F41: 0 | G41: 0 | H41: =SUM(H42:H43) -> 0
A42: 120501 | B42: HERRAMIENTAS DE LIMPIEZA | C42: =IF(A42<>"",IF(VLOOKUP(A42,plan_cuentas,4,FALSE)="D",SUMIFS(Registros!G:G,Registros!B:B,"<"&fecha_inicial,Registros!C:C,"="&'01'!A42)-SUMIFS(Registros!H:H,Registros!B:B,"<"&fecha_inicial,Registros!C:C,"="&'01'!A42), 0), "") -> 0 | D42: =IF(A42<>"",IF(VLOOKUP(A42,plan_cuentas,4,FALSE)="H",SUMIFS(Registros!H:H,Registros!B:B,"<"&fecha_inicial,Registros!C:C,"="&'01'!A42)-SUMIFS(Registros!G:G,Registros!B:B,"<"&fecha_inicial,Registros!C:C,"="&'01'!A42), 0), "") -> 0 | E42: =IF(A42<>"", SUMIFS(Registros!G:G, Registros!B:B, ">=" & fecha_inicial, Registros!B:B, "<=" & fecha_final, Registros!C:C, "=" &'01'!A42), 0) -> 0 | F42: =IF(A42<>"", SUMIFS(Registros!H:H, Registros!B:B, ">=" & fecha_inicial, Registros!B:B, "<=" & fecha_final, Registros!C:C, "=" &'01'!A42), 0) -> 0 | G42: =IF(A42<>"", IF(VLOOKUP(A42, plan_cuentas, 4, FALSE) = "D", C42+E42-F42, 0), 0) -> 0 | H42: =IF(A42<>"", IF(VLOOKUP(A42, plan_cuentas, 4, FALSE) = "H", D42-E42+F42, 0), 0) -> 0
A43: 120502 | B43: HERRAMIENTAS DE JARDINERIA | C43: =IF(A43<>"",IF(VLOOKUP(A43,plan_cuentas,4,FALSE)="D",SUMIFS(Registros!G:G,Registros!B:B,"<"&fecha_inicial,Registros!C:C,"="&'01'!A43)-SUMIFS(Registros!H:H,Registros!B:B,"<"&fecha_inicial,Registros!C:C,"="&'01'!A43), 0), "") -> 0 | D43: =IF(A43<>"",IF(VLOOKUP(A43,plan_cuentas,4,FALSE)="H",SUMIFS(Registros!H:H,Registros!B:B,"<"&fecha_inicial,Registros!C:C,"="&'01'!A43)-SUMIFS(Registros!G:G,Registros!B:B,"<"&fecha_inicial,Registros!C:C,"="&'01'!A43), 0), "") -> 0 | E43: =IF(A43<>"", SUMIFS(Registros!G:G, Registros!B:B, ">=" & fecha_inicial, Registros!B:B, "<=" & fecha_final, Registros!C:C, "=" &'01'!A43), 0) -> 0 | F43: =IF(A43<>"", SUMIFS(Registros!H:H, Registros!B:B, ">=" & fecha_inicial, Registros!B:B, "<=" & fecha_final, Registros!C:C, "=" &'01'!A43), 0) -> 0 | G43: =IF(A43<>"", IF(VLOOKUP(A43, plan_cuentas, 4, FALSE) = "D", C43+E43-F43, 0), 0) -> 0 | H43: =IF(A43<>"", IF(VLOOKUP(A43, plan_cuentas, 4, FALSE) = "H", D43-E43+F43, 0), 0) -> 0
A44: 120600 | B44: ACCESORIOS Y REPUESTOS VARIOS | C44: =SUM(C45:C47) -> 0 | D44: =SUM(D45:D47) -> 0 | E44: 0 | F44: 0 | G44: 0 | H44: 0
A45: 120601 | B45: ACCESORIOS DE EQUIPOS ELECTRONICOS | C45: =IF(A45<>"",IF(VLOOKUP(A45,plan_cuentas,4,FALSE)="D",SUMIFS(Registros!G:G,Registros!B:B,"<"&fecha_inicial,Registros!C:C,"="&'01'!A45)-SUMIFS(Registros!H:H,Registros!B:B,"<"&fecha_inicial,Registros!C:C,"="&'01'!A45), 0), "") -> 0 | D45: =IF(A45<>"",IF(VLOOKUP(A45,plan_cuentas,4,FALSE)="H",SUMIFS(Registros!H:H,Registros!B:B,"<"&fecha_inicial,Registros!C:C,"="&'01'!A45)-SUMIFS(Registros!G:G,Registros!B:B,"<"&fecha_inicial,Registros!C:C,"="&'01'!A45), 0), "") -> 0 | E45: =IF(A45<>"", SUMIFS(Registros!G:G, Registros!B:B, ">=" & fecha_inicial, Registros!B:B, "<=" & fecha_final, Registros!C:C, "=" &'01'!A45), 0) -> 0 | F45: =IF(A45<>"", SUMIFS(Registros!H:H, Registros!B:B, ">=" & fecha_inicial, Registros!B:B, "<=" & fecha_final, Registros!C:C, "=" &'01'!A45), 0) -> 0 | G45: =IF(A45<>"", IF(VLOOKUP(A45, plan_cuentas, 4, FALSE) = "D", C45+E45-F45, 0), 0) -> 0 | H45: =IF(A45<>"", IF(VLOOKUP(A45, plan_cuentas, 4, FALSE) = "H", D45-E45+F45, 0), 0) -> 0
A46: 120602 | B46: REPUESTOS AUTOMOTRICES | C46: =IF(A46<>"",IF(VLOOKUP(A46,plan_cuentas,4,FALSE)="D",SUMIFS(Registros!G:G,Registros!B:B,"<"&fecha_inicial,Registros!C:C,"="&'01'!A46)-SUMIFS(Registros!H:H,Registros!B:B,"<"&fecha_inicial,Registros!C:C,"="&'01'!A46), 0), "") -> 0 | D46: =IF(A46<>"",IF(VLOOKUP(A46,plan_cuentas,4,FALSE)="H",SUMIFS(Registros!H:H,Registros!B:B,"<"&fecha_inicial,Registros!C:C,"="&'01'!A46)-SUMIFS(Registros!G:G,Registros!B:B,"<"&fecha_inicial,Registros!C:C,"="&'01'!A46), 0), "") -> 0 | E46: =IF(A46<>"", SUMIFS(Registros!G:G, Registros!B:B, ">=" & fecha_inicial, Registros!B:B, "<=" & fecha_final, Registros!C:C, "=" &'01'!A46), 0) -> 0 | F46: =IF(A46<>"", SUMIFS(Registros!H:H, Registros!B:B, ">=" & fecha_inicial, Registros!B:B, "<=" & fecha_final, Registros!C:C, "=" &'01'!A46), 0) -> 0 | G46: =IF(A46<>"", IF(VLOOKUP(A46, plan_cuentas, 4, FALSE) = "D", C46+E46-F46, 0), 0) -> 0 | H46: =IF(A46<>"", IF(VLOOKUP(A46, plan_cuentas, 4, FALSE) = "H", D46-E46+F46, 0), 0) -> 0
A48: 130000 | B48: DEPRECIACIÓN ACUMULADA | C48: =C49+C51+C56+C58 -> 0 | D48: =D49+D51 -> 0 | E48: 0 | F48: 0 | G48: 0 | H48: 0
A49: 130100 | B49: DEPREC. ACUM. DE EDIFICIOS | C49: =SUM(C50) -> 0 | D49: 0 | E49: 0 | F49: 0 | G49: 0 | H49: 0
A50: 130101 | B50: DEPREC. ACUM. EDIFICIO 1 | C50: =IF(A50<>"",IF(VLOOKUP(A50,plan_cuentas,4,FALSE)="D",SUMIFS(Registros!G:G,Registros!B:B,"<"&fecha_inicial,Registros!C:C,"="&'01'!A50)-SUMIFS(Registros!H:H,Registros!B:B,"<"&fecha_inicial,Registros!C:C,"="&'01'!A50), 0), "") -> 0 | D50: =IF(A50<>"",IF(VLOOKUP(A50,plan_cuentas,4,FALSE)="H",SUMIFS(Registros!H:H,Registros!B:B,"<"&fecha_inicial,Registros!C:C,"="&'01'!A50)-SUMIFS(Registros!G:G,Registros!B:B,"<"&fecha_inicial,Registros!C:C,"="&'01'!A50), 0), "") -> 0 | E50: =IF(A50<>"", SUMIFS(Registros!G:G, Registros!B:B, ">=" & fecha_inicial, Registros!B:B, "<=" & fecha_final, Registros!C:C, "=" &'01'!A50), 0) -> 0 | F50: =IF(A50<>"", SUMIFS(Registros!H:H, Registros!B:B, ">=" & fecha_inicial, Registros!B:B, "<=" & fecha_final, Registros!C:C, "=" &'01'!A50), 0) -> 0 | G50: =IF(A50<>"", IF(VLOOKUP(A50, plan_cuentas, 4, FALSE) = "D", C50+E50-F50, 0), 0) -> 0 | H50: =IF(A50<>"", IF(VLOOKUP(A50, plan_cuentas, 4, FALSE) = "H", D50-E50+F50, 0), 0) -> 0
A51: 130200 | B51: DEPREC. ACUM. DE EQUIPO | C51: =SUM(C52:C55) -> 0 | D51: =SUM(D52:D55) -> 0 | E51: 0 | F51: 0 | G51: 0 | H51: =SUM(H52:H55) -> 0
A52: 130201 | B52: DEPREC. ACUM. EQUIPO RODANTE | C52: =IF(A52<>"",IF(VLOOKUP(A52,plan_cuentas,4,FALSE)="D",SUMIFS(Registros!G:G,Registros!B:B,"<"&fecha_inicial,Registros!C:C,"="&'01'!A52)-SUMIFS(Registros!H:H,Registros!B:B,"<"&fecha_inicial,Registros!C:C,"="&'01'!A52), 0), "") -> 0 | D52: =IF(A52<>"",IF(VLOOKUP(A52,plan_cuentas,4,FALSE)="H",SUMIFS(Registros!H:H,Registros!B:B,"<"&fecha_inicial,Registros!C:C,"="&'01'!A52)-SUMIFS(Registros!G:G,Registros!B:B,"<"&fecha_inicial,Registros!C:C,"="&'01'!A52), 0), "") -> 0 | E52: =IF(A52<>"", SUMIFS(Registros!G:G, Registros!B:B, ">=" & fecha_inicial, Registros!B:B, "<=" & fecha_final, Registros!C:C, "=" &'01'!A52), 0) -> 0 | F52: =IF(A52<>"", SUMIFS(Registros!H:H, Registros!B:B, ">=" & fecha_inicial, Registros!B:B, "<=" & fecha_final, Registros!C:C, "=" &'01'!A52), 0) -> 0 | G52: =IF(A52<>"", IF(VLOOKUP(A52, plan_cuentas, 4, FALSE) = "D", C52+E52-F52, 0), 0) -> 0 | H52: =IF(A52<>"", IF(VLOOKUP(A52, plan_cuentas, 4, FALSE) = "H", D52-E52+F52, 0), 0) -> 0
A53: 130202 | B53: =IFERROR(IF(A53<>"", VLOOKUP(A53, plan_cuentas,2, FALSE), ""), "CÓDIGO INCORRECTO") -> DEPREC. ACUM. EQUIPO DE REFRIGERACIÓN | C53: =IF(A53<>"",IF(VLOOKUP(A53,plan_cuentas,4,FALSE)="D",SUMIFS(Registros!G:G,Registros!B:B,"<"&fecha_inicial,Registros!C:C,"="&'01'!A53)-SUMIFS(Registros!H:H,Registros!B:B,"<"&fecha_inicial,Registros!C:C,"="&'01'!A53), 0), "") -> 0 | D53: =IF(A53<>"",IF(VLOOKUP(A53,plan_cuentas,4,FALSE)="H",SUMIFS(Registros!H:H,Registros!B:B,"<"&fecha_inicial,Registros!C:C,"="&'01'!A53)-SUMIFS(Registros!G:G,Registros!B:B,"<"&fecha_inicial,Registros!C:C,"="&'01'!A53), 0), "") -> 0 | E53: =IF(A53<>"", SUMIFS(Registros!G:G, Registros!B:B, ">=" & fecha_inicial, Registros!B:B, "<=" & fecha_final, Registros!C:C, "=" &'01'!A53), 0) -> 0 | F53: =IF(A53<>"", SUMIFS(Registros!H:H, Registros!B:B, ">=" & fecha_inicial, Registros!B:B, "<=" & fecha_final, Registros!C:C, "=" &'01'!A53), 0) -> 0 | G53: =IF(A53<>"", IF(VLOOKUP(A53, plan_cuentas, 4, FALSE) = "D", C53+E53-F53, 0), 0) -> 0 | H53: =IF(A53<>"", IF(VLOOKUP(A53, plan_cuentas, 4, FALSE) = "H", D53-E53+F53, 0), 0) -> 0
A54: 130203 | B54: DERPEC. ACUM. EQUIPO DE COCINA | C54: =IF(A54<>"",IF(VLOOKUP(A54,plan_cuentas,4,FALSE)="D",SUMIFS(Registros!G:G,Registros!B:B,"<"&fecha_inicial,Registros!C:C,"="&'01'!A54)-SUMIFS(Registros!H:H,Registros!B:B,"<"&fecha_inicial,Registros!C:C,"="&'01'!A54), 0), "") -> 0 | D54: =IF(A54<>"",IF(VLOOKUP(A54,plan_cuentas,4,FALSE)="H",SUMIFS(Registros!H:H,Registros!B:B,"<"&fecha_inicial,Registros!C:C,"="&'01'!A54)-SUMIFS(Registros!G:G,Registros!B:B,"<"&fecha_inicial,Registros!C:C,"="&'01'!A54), 0), "") -> 0 | E54: =IF(A54<>"", SUMIFS(Registros!G:G, Registros!B:B, ">=" & fecha_inicial, Registros!B:B, "<=" & fecha_final, Registros!C:C, "=" &'01'!A54), 0) -> 0 | F54: =IF(A54<>"", SUMIFS(Registros!H:H, Registros!B:B, ">=" & fecha_inicial, Registros!B:B, "<=" & fecha_final, Registros!C:C, "=" &'01'!A54), 0) -> 0 | G54: =IF(A54<>"", IF(VLOOKUP(A54, plan_cuentas, 4, FALSE) = "D", C54+E54-F54, 0), 0) -> 0 | H54: =IF(A54<>"", IF(VLOOKUP(A54, plan_cuentas, 4, FALSE) = "H", D54-E54+F54, 0), 0) -> 0
A55: 130204 | B55: DEPREC. ACUM. EQUIPO DE OFICINA | C55: =IF(A55<>"",IF(VLOOKUP(A55,plan_cuentas,4,FALSE)="D",SUMIFS(Registros!G:G,Registros!B:B,"<"&fecha_inicial,Registros!C:C,"="&'01'!A55)-SUMIFS(Registros!H:H,Registros!B:B,"<"&fecha_inicial,Registros!C:C,"="&'01'!A55), 0), "") -> 0 | D55: =IF(A55<>"",IF(VLOOKUP(A55,plan_cuentas,4,FALSE)="H",SUMIFS(Registros!H:H,Registros!B:B,"<"&fecha_inicial,Registros!C:C,"="&'01'!A55)-SUMIFS(Registros!G:G,Registros!B:B,"<"&fecha_inicial,Registros!C:C,"="&'01'!A55), 0), "") -> 0 | E55: =IF(A55<>"", SUMIFS(Registros!G:G, Registros!B:B, ">=" & fecha_inicial, Registros!B:B, "<=" & fecha_final, Registros!C:C, "=" &'01'!A55), 0) -> 0 | F55: =IF(A55<>"", SUMIFS(Registros!H:H, Registros!B:B, ">=" & fecha_inicial, Registros!B:B, "<=" & fecha_final, Registros!C:C, "=" &'01'!A55), 0) -> 0 | G55: =IF(A55<>"", IF(VLOOKUP(A55, plan_cuentas, 4, FALSE) = "D", C55+E55-F55, 0), 0) -> 0 | H55: =IF(A55<>"", IF(VLOOKUP(A55, plan_cuentas, 4, FALSE) = "H", D55-E55+F55, 0), 0) -> 0
A56: 130300 | B56: =IFERROR(IF(A56<>"", VLOOKUP(A56, plan_cuentas,2, FALSE), ""), "CÓDIGO INCORRECTO") -> DEPREC. ACUM. DE MOBILIARIO | C56: =SUM(C57) -> 0 | D56: =SUM(D57) -> 0 | E56: 0 | F56: 0 | G56: 0 | H56: 0
A57: 130301 | B57: DEPREC. ACUM. DE MOBILIARIO | C57: =IF(A57<>"",IF(VLOOKUP(A57,plan_cuentas,4,FALSE)="D",SUMIFS(Registros!G:G,Registros!B:B,"<"&fecha_inicial,Registros!C:C,"="&'01'!A57)-SUMIFS(Registros!H:H,Registros!B:B,"<"&fecha_inicial,Registros!C:C,"="&'01'!A57), 0), "") -> 0 | D57: =IF(A57<>"",IF(VLOOKUP(A57,plan_cuentas,4,FALSE)="H",SUMIFS(Registros!H:H,Registros!B:B,"<"&fecha_inicial,Registros!C:C,"="&'01'!A57)-SUMIFS(Registros!G:G,Registros!B:B,"<"&fecha_inicial,Registros!C:C,"="&'01'!A57), 0), "") -> 0 | E57: =IF(A57<>"", SUMIFS(Registros!G:G, Registros!B:B, ">=" & fecha_inicial, Registros!B:B, "<=" & fecha_final, Registros!C:C, "=" &'01'!A57), 0) -> 0 | F57: =IF(A57<>"", SUMIFS(Registros!H:H, Registros!B:B, ">=" & fecha_inicial, Registros!B:B, "<=" & fecha_final, Registros!C:C, "=" &'01'!A57), 0) -> 0 | G57: =IF(A57<>"", IF(VLOOKUP(A57, plan_cuentas, 4, FALSE) = "D", C57+E57-F57, 0), 0) -> 0 | H57: =IF(A57<>"", IF(VLOOKUP(A57, plan_cuentas, 4, FALSE) = "H", D57-E57+F57, 0), 0) -> 0
A58: 130400 | B58: DEPREC. ACUM. DE HERRAMIENTAS Y ENSERES | C58: =SUM(C59:C60) -> 0 | D58: =SUM(D59:D60) -> 0 | E58: 0 | F58: 0 | G58: 0 | H58: 0
A59: 130401 | B59: DEPREC. ACUM. HERRAMIENTAS DE LIMPIEZA | C59: =IF(A59<>"",IF(VLOOKUP(A59,plan_cuentas,4,FALSE)="D",SUMIFS(Registros!G:G,Registros!B:B,"<"&fecha_inicial,Registros!C:C,"="&'01'!A59)-SUMIFS(Registros!H:H,Registros!B:B,"<"&fecha_inicial,Registros!C:C,"="&'01'!A59), 0), "") -> 0 | D59: =IF(A59<>"",IF(VLOOKUP(A59,plan_cuentas,4,FALSE)="H",SUMIFS(Registros!H:H,Registros!B:B,"<"&fecha_inicial,Registros!C:C,"="&'01'!A59)-SUMIFS(Registros!G:G,Registros!B:B,"<"&fecha_inicial,Registros!C:C,"="&'01'!A59), 0), "") -> 0 | E59: =IF(A59<>"", SUMIFS(Registros!G:G, Registros!B:B, ">=" & fecha_inicial, Registros!B:B, "<=" & fecha_final, Registros!C:C, "=" &'01'!A59), 0) -> 0 | F59: =IF(A59<>"", SUMIFS(Registros!H:H, Registros!B:B, ">=" & fecha_inicial, Registros!B:B, "<=" & fecha_final, Registros!C:C, "=" &'01'!A59), 0) -> 0 | G59: =IF(A59<>"", IF(VLOOKUP(A59, plan_cuentas, 4, FALSE) = "D", C59+E59-F59, 0), 0) -> 0 | H59: =IF(A59<>"", IF(VLOOKUP(A59, plan_cuentas, 4, FALSE) = "H", D59-E59+F59, 0), 0) -> 0
A60: 130402 | B60: DEPREC. ACUM. HERRAMIENTAS DE JARDINERÍA | C60: =IF(A60<>"",IF(VLOOKUP(A60,plan_cuentas,4,FALSE)="D",SUMIFS(Registros!G:G,Registros!B:B,"<"&fecha_inicial,Registros!C:C,"="&'01'!A60)-SUMIFS(Registros!H:H,Registros!B:B,"<"&fecha_inicial,Registros!C:C,"="&'01'!A60), 0), "") -> 0 | D60: =IF(A60<>"",IF(VLOOKUP(A60,plan_cuentas,4,FALSE)="H",SUMIFS(Registros!H:H,Registros!B:B,"<"&fecha_inicial,Registros!C:C,"="&'01'!A60)-SUMIFS(Registros!G:G,Registros!B:B,"<"&fecha_inicial,Registros!C:C,"="&'01'!A60), 0), "") -> 0 | E60: =IF(A60<>"", SUMIFS(Registros!G:G, Registros!B:B, ">=" & fecha_inicial, Registros!B:B, "<=" & fecha_final, Registros!C:C, "=" &'01'!A60), 0) -> 0 | F60: =IF(A60<>"", SUMIFS(Registros!H:H, Registros!B:B, ">=" & fecha_inicial, Registros!B:B, "<=" & fecha_final, Registros!C:C, "=" &'01'!A60), 0) -> 0 | G60: =IF(A60<>"", IF(VLOOKUP(A60, plan_cuentas, 4, FALSE) = "D", C60+E60-F60, 0), 0) -> 0 | H60: =IF(A60<>"", IF(VLOOKUP(A60, plan_cuentas, 4, FALSE) = "H", D60-E60+F60, 0), 0) -> 0
C61: =IF(A61<>"",IF(VLOOKUP(A61,plan_cuentas,4,FALSE)="D",SUMIFS(Registros!G:G,Registros!B:B,"<"&fecha_inicial,Registros!C:C,"="&'01'!A61)-SUMIFS(Registros!H:H,Registros!B:B,"<"&fecha_inicial,Registros!C:C,"="&'01'!A61), 0), "") ->  | D61: =IF(A61<>"",IF(VLOOKUP(A61,plan_cuentas,4,FALSE)="H",SUMIFS(Registros!H:H,Registros!B:B,"<"&fecha_inicial,Registros!C:C,"="&'01'!A61)-SUMIFS(Registros!G:G,Registros!B:B,"<"&fecha_inicial,Registros!C:C,"="&'01'!A61), 0), "") ->  | E61: =IF(A61<>"", SUMIFS(Registros!G:G, Registros!B:B, ">=" & fecha_inicial, Registros!B:B, "<=" & fecha_final, Registros!C:C, "=" &'01'!A61), 0) -> 0 | F61: =IF(A61<>"", SUMIFS(Registros!H:H, Registros!B:B, ">=" & fecha_inicial, Registros!B:B, "<=" & fecha_final, Registros!C:C, "=" &'01'!A61), 0) -> 0 | G61: =IF(A61<>"", IF(VLOOKUP(A61, plan_cuentas, 4, FALSE) = "D", C61+E61-F61, 0), 0) -> 0 | H61: =IF(A61<>"", IF(VLOOKUP(A61, plan_cuentas, 4, FALSE) = "H", D61-E61+F61, 0), 0) -> 0
A62: 200000 | B62: =IFERROR(IF(A62<>"", VLOOKUP(A62, plan_cuentas,2, FALSE), ""), "CÓDIGO INCORRECTO") -> PASIVOS | C62: =C63 -> 0 | D62: =D63 -> 0 | E62: 0 | F62: 0 | G62: 0 | H62: 0
A63: 210000 | B63: PASIVOS CORRIENTES | C63: =C64+C67+C70 -> 0 | D63: =D64+D67+D70 -> 0 | E63: 0 | F63: 0 | G63: 0 | H63: =H64+H67+H70 -> 0
A64: 210100 | B64: PROVEEDORES | C64: =SUM(C65:C66) -> 0 | D64: =SUM(D65:D66) -> 0 | E64: 0 | F64: 0 | G64: 0 | H64: =SUM(H65:H66) -> 0
A65: 210101 | B65: PROVEEDOR A | C65: =IF(A65<>"",IF(VLOOKUP(A65,plan_cuentas,4,FALSE)="D",SUMIFS(Registros!G:G,Registros!B:B,"<"&fecha_inicial,Registros!C:C,"="&'01'!A65)-SUMIFS(Registros!H:H,Registros!B:B,"<"&fecha_inicial,Registros!C:C,"="&'01'!A65), 0), "") -> 0 | D65: =IF(A65<>"",IF(VLOOKUP(A65,plan_cuentas,4,FALSE)="H",SUMIFS(Registros!H:H,Registros!B:B,"<"&fecha_inicial,Registros!C:C,"="&'01'!A65)-SUMIFS(Registros!G:G,Registros!B:B,"<"&fecha_inicial,Registros!C:C,"="&'01'!A65), 0), "") -> 0 | E65: =IF(A65<>"", SUMIFS(Registros!G:G, Registros!B:B, ">=" & fecha_inicial, Registros!B:B, "<=" & fecha_final, Registros!C:C, "=" &'01'!A65), 0) -> 0 | F65: =IF(A65<>"", SUMIFS(Registros!H:H, Registros!B:B, ">=" & fecha_inicial, Registros!B:B, "<=" & fecha_final, Registros!C:C, "=" &'01'!A65), 0) -> 0 | G65: =IF(A65<>"", IF(VLOOKUP(A65, plan_cuentas, 4, FALSE) = "D", C65+E65-F65, 0), 0) -> 0 | H65: =IF(A65<>"", IF(VLOOKUP(A65, plan_cuentas, 4, FALSE) = "H", D65-E65+F65, 0), 0) -> 0
C66: =IF(A66<>"",IF(VLOOKUP(A66,plan_cuentas,4,FALSE)="D",SUMIFS(Registros!G:G,Registros!B:B,"<"&fecha_inicial,Registros!C:C,"="&'01'!A66)-SUMIFS(Registros!H:H,Registros!B:B,"<"&fecha_inicial,Registros!C:C,"="&'01'!A66), 0), "") ->  | D66: =IF(A66<>"",IF(VLOOKUP(A66,plan_cuentas,4,FALSE)="H",SUMIFS(Registros!H:H,Registros!B:B,"<"&fecha_inicial,Registros!C:C,"="&'01'!A66)-SUMIFS(Registros!G:G,Registros!B:B,"<"&fecha_inicial,Registros!C:C,"="&'01'!A66), 0), "") ->  | E66: =IF(A66<>"", SUMIFS(Registros!G:G, Registros!B:B, ">=" & fecha_inicial, Registros!B:B, "<=" & fecha_final, Registros!C:C, "=" &'01'!A66), 0) -> 0 | F66: =IF(A66<>"", SUMIFS(Registros!H:H, Registros!B:B, ">=" & fecha_inicial, Registros!B:B, "<=" & fecha_final, Registros!C:C, "=" &'01'!A66), 0) -> 0 | G66: =IF(A66<>"", IF(VLOOKUP(A66, plan_cuentas, 4, FALSE) = "D", C66+E66-F66, 0), 0) -> 0 | H66: =IF(A66<>"", IF(VLOOKUP(A66, plan_cuentas, 4, FALSE) = "H", D66-E66+F66, 0), 0) -> 0
A67: 210200 | B67: DOCUMENTOS POR PAGAR | C67: =SUM(C68:C69) -> 0 | D67: =SUM(D68:D69) -> 0 | E67: 0 | F67: 0 | G67: 0 | H67: 0
A68: 210201 | B68: DOCUMENTOS COMERCIALES | C68: =IF(A68<>"",IF(VLOOKUP(A68,plan_cuentas,4,FALSE)="D",SUMIFS(Registros!G:G,Registros!B:B,"<"&fecha_inicial,Registros!C:C,"="&'01'!A68)-SUMIFS(Registros!H:H,Registros!B:B,"<"&fecha_inicial,Registros!C:C,"="&'01'!A68), 0), "") -> 0 | D68: =IF(A68<>"",IF(VLOOKUP(A68,plan_cuentas,4,FALSE)="H",SUMIFS(Registros!H:H,Registros!B:B,"<"&fecha_inicial,Registros!C:C,"="&'01'!A68)-SUMIFS(Registros!G:G,Registros!B:B,"<"&fecha_inicial,Registros!C:C,"="&'01'!A68), 0), "") -> 0 | E68: =IF(A68<>"", SUMIFS(Registros!G:G, Registros!B:B, ">=" & fecha_inicial, Registros!B:B, "<=" & fecha_final, Registros!C:C, "=" &'01'!A68), 0) -> 0 | F68: =IF(A68<>"", SUMIFS(Registros!H:H, Registros!B:B, ">=" & fecha_inicial, Registros!B:B, "<=" & fecha_final, Registros!C:C, "=" &'01'!A68), 0) -> 0 | G68: =IF(A68<>"", IF(VLOOKUP(A68, plan_cuentas, 4, FALSE) = "D", C68+E68-F68, 0), 0) -> 0 | H68: =IF(A68<>"", IF(VLOOKUP(A68, plan_cuentas, 4, FALSE) = "H", D68-E68+F68, 0), 0) -> 0
A69: 210202 | B69: =IFERROR(IF(A69<>"", VLOOKUP(A69, plan_cuentas,2, FALSE), ""), "CÓDIGO INCORRECTO") -> DOCUMENTOS BANCARIOS | C69: =IF(A69<>"",IF(VLOOKUP(A69,plan_cuentas,4,FALSE)="D",SUMIFS(Registros!G:G,Registros!B:B,"<"&fecha_inicial,Registros!C:C,"="&'01'!A69)-SUMIFS(Registros!H:H,Registros!B:B,"<"&fecha_inicial,Registros!C:C,"="&'01'!A69), 0), "") -> 0 | D69: =IF(A69<>"",IF(VLOOKUP(A69,plan_cuentas,4,FALSE)="H",SUMIFS(Registros!H:H,Registros!B:B,"<"&fecha_inicial,Registros!C:C,"="&'01'!A69)-SUMIFS(Registros!G:G,Registros!B:B,"<"&fecha_inicial,Registros!C:C,"="&'01'!A69), 0), "") -> 0 | E69: =IF(A69<>"", SUMIFS(Registros!G:G, Registros!B:B, ">=" & fecha_inicial, Registros!B:B, "<=" & fecha_final, Registros!C:C, "=" &'01'!A69), 0) -> 0 | F69: =IF(A69<>"", SUMIFS(Registros!H:H, Registros!B:B, ">=" & fecha_inicial, Registros!B:B, "<=" & fecha_final, Registros!C:C, "=" &'01'!A69), 0) -> 0 | G69: =IF(A69<>"", IF(VLOOKUP(A69, plan_cuentas, 4, FALSE) = "D", C69+E69-F69, 0), 0) -> 0 | H69: =IF(A69<>"", IF(VLOOKUP(A69, plan_cuentas, 4, FALSE) = "H", D69-E69+F69, 0), 0) -> 0
A70: 210500 | B70: ACREEDORES DIVERSOS | C70: =SUM(C71:C73) -> 0 | D70: 0 | E70: 0 | F70: 0 | G70: 0 | H70: 0
A71: 210501 | B71: =IFERROR(IF(A71<>"", VLOOKUP(A71, plan_cuentas,2, FALSE), ""), "CÓDIGO INCORRECTO") -> DISSUR | C71: =IF(A71<>"",IF(VLOOKUP(A71,plan_cuentas,4,FALSE)="D",SUMIFS(Registros!G:G,Registros!B:B,"<"&fecha_inicial,Registros!C:C,"="&'01'!A71)-SUMIFS(Registros!H:H,Registros!B:B,"<"&fecha_inicial,Registros!C:C,"="&'01'!A71), 0), "") -> 0 | D71: =IF(A71<>"",IF(VLOOKUP(A71,plan_cuentas,4,FALSE)="H",SUMIFS(Registros!H:H,Registros!B:B,"<"&fecha_inicial,Registros!C:C,"="&'01'!A71)-SUMIFS(Registros!G:G,Registros!B:B,"<"&fecha_inicial,Registros!C:C,"="&'01'!A71), 0), "") -> 0 | E71: =IF(A71<>"", SUMIFS(Registros!G:G, Registros!B:B, ">=" & fecha_inicial, Registros!B:B, "<=" & fecha_final, Registros!C:C, "=" &'01'!A71), 0) -> 0 | F71: =IF(A71<>"", SUMIFS(Registros!H:H, Registros!B:B, ">=" & fecha_inicial, Registros!B:B, "<=" & fecha_final, Registros!C:C, "=" &'01'!A71), 0) -> 0 | G71: =IF(A71<>"", IF(VLOOKUP(A71, plan_cuentas, 4, FALSE) = "D", C71+E71-F71, 0), 0) -> 0 | H71: =IF(A71<>"", IF(VLOOKUP(A71, plan_cuentas, 4, FALSE) = "H", D71-E71+F71, 0), 0) -> 0
A72: 210502 | B72: ENACAL | C72: =IF(A72<>"",IF(VLOOKUP(A72,plan_cuentas,4,FALSE)="D",SUMIFS(Registros!G:G,Registros!B:B,"<"&fecha_inicial,Registros!C:C,"="&'01'!A72)-SUMIFS(Registros!H:H,Registros!B:B,"<"&fecha_inicial,Registros!C:C,"="&'01'!A72), 0), "") -> 0 | D72: =IF(A72<>"",IF(VLOOKUP(A72,plan_cuentas,4,FALSE)="H",SUMIFS(Registros!H:H,Registros!B:B,"<"&fecha_inicial,Registros!C:C,"="&'01'!A72)-SUMIFS(Registros!G:G,Registros!B:B,"<"&fecha_inicial,Registros!C:C,"="&'01'!A72), 0), "") -> 0 | E72: =IF(A72<>"", SUMIFS(Registros!G:G, Registros!B:B, ">=" & fecha_inicial, Registros!B:B, "<=" & fecha_final, Registros!C:C, "=" &'01'!A72), 0) -> 0 | F72: =IF(A72<>"", SUMIFS(Registros!H:H, Registros!B:B, ">=" & fecha_inicial, Registros!B:B, "<=" & fecha_final, Registros!C:C, "=" &'01'!A72), 0) -> 0 | G72: =IF(A72<>"", IF(VLOOKUP(A72, plan_cuentas, 4, FALSE) = "D", C72+E72-F72, 0), 0) -> 0 | H72: =IF(A72<>"", IF(VLOOKUP(A72, plan_cuentas, 4, FALSE) = "H", D72-E72+F72, 0), 0) -> 0
A73: 210503 | B73: TELECOMUNICACIONES | C73: =IF(A73<>"",IF(VLOOKUP(A73,plan_cuentas,4,FALSE)="D",SUMIFS(Registros!G:G,Registros!B:B,"<"&fecha_inicial,Registros!C:C,"="&'01'!A73)-SUMIFS(Registros!H:H,Registros!B:B,"<"&fecha_inicial,Registros!C:C,"="&'01'!A73), 0), "") -> 0 | D73: =IF(A73<>"",IF(VLOOKUP(A73,plan_cuentas,4,FALSE)="H",SUMIFS(Registros!H:H,Registros!B:B,"<"&fecha_inicial,Registros!C:C,"="&'01'!A73)-SUMIFS(Registros!G:G,Registros!B:B,"<"&fecha_inicial,Registros!C:C,"="&'01'!A73), 0), "") -> 0 | E73: =IF(A73<>"", SUMIFS(Registros!G:G, Registros!B:B, ">=" & fecha_inicial, Registros!B:B, "<=" & fecha_final, Registros!C:C, "=" &'01'!A73), 0) -> 0 | F73: =IF(A73<>"", SUMIFS(Registros!H:H, Registros!B:B, ">=" & fecha_inicial, Registros!B:B, "<=" & fecha_final, Registros!C:C, "=" &'01'!A73), 0) -> 0 | G73: 0 | H73: 0
A74: 300000 | B74: PATRIMONIO | C74: =C75 -> 0 | D74: =D75 -> 2569.45 | E74: 0 | F74: 0 | G74: 0 | H74: 2569.45
A75: 310000 | B75: FONDO DE LA IGLESIA | C75: =C76+C78+C80 -> 0 | D75: =D76+D78+D80 -> 2569.45 | E75: 0 | F75: 0 | G75: 0 | H75: 2569.45
A76: 310100 | B76: FONDO INICIAL | C76: =SUM(C77:C77) -> 0 | D76: =SUM(D77:D77) -> 2569.45 | E76: 0 | F76: 0 | G76: 0 | H76: 2569.45
A77: 310101 | B77: APORTES DE MIEMBROS | C77: =IF(A77<>"",IF(VLOOKUP(A77,plan_cuentas,4,FALSE)="D",SUMIFS(Registros!G:G,Registros!B:B,"<"&fecha_inicial,Registros!C:C,"="&'01'!A77)-SUMIFS(Registros!H:H,Registros!B:B,"<"&fecha_inicial,Registros!C:C,"="&'01'!A77), 0), "") -> 0 | D77: =IF(A77<>"",IF(VLOOKUP(A77,plan_cuentas,4,FALSE)="H",SUMIFS(Registros!H:H,Registros!B:B,"<"&fecha_inicial,Registros!C:C,"="&'01'!A77)-SUMIFS(Registros!G:G,Registros!B:B,"<"&fecha_inicial,Registros!C:C,"="&'01'!A77), 0), "") -> 2569.45 | E77: =IF(A77<>"", SUMIFS(Registros!G:G, Registros!B:B, ">=" & fecha_inicial, Registros!B:B, "<=" & fecha_final, Registros!C:C, "=" &'01'!A77), 0) -> 0 | F77: =IF(A77<>"", SUMIFS(Registros!H:H, Registros!B:B, ">=" & fecha_inicial, Registros!B:B, "<=" & fecha_final, Registros!C:C, "=" &'01'!A77), 0) -> 0 | G77: =IF(A77<>"", IF(VLOOKUP(A77, plan_cuentas, 4, FALSE) = "D", C77+E77-F77, 0), 0) -> 0 | H77: =IF(A77<>"", IF(VLOOKUP(A77, plan_cuentas, 4, FALSE) = "H", D77-E77+F77, 0), 0) -> 2569.45
A78: 310200 | B78: FONDOS ACUMULADOS | C78: =SUM(C79:C79) -> 0 | D78: =SUM(D79:D79) -> 0 | E78: 0 | F78: 0 | G78: 0 | H78: 0
A79: 310201 | B79: FONDOS DE PERÍODOS ANTERIORES | C79: =IF(A79<>"",IF(VLOOKUP(A79,plan_cuentas,4,FALSE)="D",SUMIFS(Registros!G:G,Registros!B:B,"<"&fecha_inicial,Registros!C:C,"="&'01'!A79)-SUMIFS(Registros!H:H,Registros!B:B,"<"&fecha_inicial,Registros!C:C,"="&'01'!A79), 0), "") -> 0 | D79: =IF(A79<>"",IF(VLOOKUP(A79,plan_cuentas,4,FALSE)="H",SUMIFS(Registros!H:H,Registros!B:B,"<"&fecha_inicial,Registros!C:C,"="&'01'!A79)-SUMIFS(Registros!G:G,Registros!B:B,"<"&fecha_inicial,Registros!C:C,"="&'01'!A79), 0), "") -> 0 | E79: =IF(A79<>"", SUMIFS(Registros!G:G, Registros!B:B, ">=" & fecha_inicial, Registros!B:B, "<=" & fecha_final, Registros!C:C, "=" &'01'!A79), 0) -> 0 | F79: =IF(A79<>"", SUMIFS(Registros!H:H, Registros!B:B, ">=" & fecha_inicial, Registros!B:B, "<=" & fecha_final, Registros!C:C, "=" &'01'!A79), 0) -> 0 | G79: =IF(A79<>"", IF(VLOOKUP(A79, plan_cuentas, 4, FALSE) = "D", C79+E79-F79, 0), 0) -> 0 | H79: =IF(A79<>"", IF(VLOOKUP(A79, plan_cuentas, 4, FALSE) = "H", D79-E79+F79, 0), 0) -> 0
A80: 310300 | B80: =IFERROR(IF(A80<>"", VLOOKUP(A80, plan_cuentas,2, FALSE), ""), "CÓDIGO INCORRECTO") -> FONDOS DEL PERÍODO | C80: =SUM(C81) -> 0 | D80: =SUM(D81) -> 0 | E80: 0 | F80: 0 | G80: 0 | H80: 0
A81: 310301 | B81: =IFERROR(IF(A81<>"", VLOOKUP(A81, plan_cuentas,2, FALSE), ""), "CÓDIGO INCORRECTO") -> FONDOS DEL PERÍODO | C81: =IF(A81<>"",IF(VLOOKUP(A81,plan_cuentas,4,FALSE)="D",SUMIFS(Registros!G:G,Registros!B:B,"<"&fecha_inicial,Registros!C:C,"="&'01'!A81)-SUMIFS(Registros!H:H,Registros!B:B,"<"&fecha_inicial,Registros!C:C,"="&'01'!A81), 0), "") -> 0 | D81: =IF(A81<>"",IF(VLOOKUP(A81,plan_cuentas,4,FALSE)="H",SUMIFS(Registros!H:H,Registros!B:B,"<"&fecha_inicial,Registros!C:C,"="&'01'!A81)-SUMIFS(Registros!G:G,Registros!B:B,"<"&fecha_inicial,Registros!C:C,"="&'01'!A81), 0), "") -> 0 | E81: =IF(A81<>"", SUMIFS(Registros!G:G, Registros!B:B, ">=" & fecha_inicial, Registros!B:B, "<=" & fecha_final, Registros!C:C, "=" &'01'!A81), 0) -> 0 | F81: =IF(A81<>"", SUMIFS(Registros!H:H, Registros!B:B, ">=" & fecha_inicial, Registros!B:B, "<=" & fecha_final, Registros!C:C, "=" &'01'!A81), 0) -> 0 | G81: =IF(A81<>"", IF(VLOOKUP(A81, plan_cuentas, 4, FALSE) = "D", C81+E81-F81, 0), 0) -> 0 | H81: =IF(A81<>"", IF(VLOOKUP(A81, plan_cuentas, 4, FALSE) = "H", D81-E81+F81, 0), 0) -> 0
A82: 400000 | B82: INGRESOS | C82: =C83 -> 0 | D82: =D83 -> 8654.77 | E82: =E83 -> 0 | F82: 3824.5 | G82: 0 | H82: 12479.27
A83: 410000 | B83: INGRESOS EN EFECTIVO | C83: =C84+C87+C90+C92 -> 0 | D83: =D84+D87+D90+D92 -> 8654.77 | E83: =E84+E87+E90+E92 -> 0 | F83: 3824.5 | G83: 0 | H83: =H84+H87+H90+H92 -> 12479.27
A84: 410100 | B84: OFRENDAS GENERALES | C84: =SUM(C85:C86) -> 0 | D84: =SUM(D85:D86) -> 4097.77 | E84: 0 | F84: =SUM(F85:F86) -> 574.5 | G84: 0 | H84: 4672.27
A85: 410101 | B85: =IFERROR(IF(A85<>"", VLOOKUP(A85, plan_cuentas,2, FALSE), ""), "CÓDIGO INCORRECTO") -> OFRENDAS DE MIEMBROS | C85: =IF(A85<>"",IF(VLOOKUP(A85,plan_cuentas,4,FALSE)="D",SUMIFS(Registros!G:G,Registros!B:B,"<"&fecha_inicial,Registros!C:C,"="&'01'!A85)-SUMIFS(Registros!H:H,Registros!B:B,"<"&fecha_inicial,Registros!C:C,"="&'01'!A85), 0), "") -> 0 | D85: =IF(A85<>"",IF(VLOOKUP(A85,plan_cuentas,4,FALSE)="H",SUMIFS(Registros!H:H,Registros!B:B,"<"&fecha_inicial,Registros!C:C,"="&'01'!A85)-SUMIFS(Registros!G:G,Registros!B:B,"<"&fecha_inicial,Registros!C:C,"="&'01'!A85), 0), "") -> 3597.77 | E85: =IF(A85<>"", SUMIFS(Registros!G:G, Registros!B:B, ">=" & fecha_inicial, Registros!B:B, "<=" & fecha_final, Registros!C:C, "=" &'01'!A85), 0) -> 0 | F85: =IF(A85<>"", SUMIFS(Registros!H:H, Registros!B:B, ">=" & fecha_inicial, Registros!B:B, "<=" & fecha_final, Registros!C:C, "=" &'01'!A85), 0) -> 474.5 | G85: =IF(A85<>"", IF(VLOOKUP(A85, plan_cuentas, 4, FALSE) = "D", C85+E85-F85, 0), 0) -> 0 | H85: =IF(A85<>"", IF(VLOOKUP(A85, plan_cuentas, 4, FALSE) = "H", D85-E85+F85, 0), 0) -> 4072.27
A86: 410102 | B86: =IFERROR(IF(A86<>"", VLOOKUP(A86, plan_cuentas,2, FALSE), ""), "CÓDIGO INCORRECTO") -> OFRENDAS DE PARTICULARES | C86: =IF(A86<>"",IF(VLOOKUP(A86,plan_cuentas,4,FALSE)="D",SUMIFS(Registros!G:G,Registros!B:B,"<"&fecha_inicial,Registros!C:C,"="&'01'!A86)-SUMIFS(Registros!H:H,Registros!B:B,"<"&fecha_inicial,Registros!C:C,"="&'01'!A86), 0), "") -> 0 | D86: =IF(A86<>"",IF(VLOOKUP(A86,plan_cuentas,4,FALSE)="H",SUMIFS(Registros!H:H,Registros!B:B,"<"&fecha_inicial,Registros!C:C,"="&'01'!A86)-SUMIFS(Registros!G:G,Registros!B:B,"<"&fecha_inicial,Registros!C:C,"="&'01'!A86), 0), "") -> 500 | E86: =IF(A86<>"", SUMIFS(Registros!G:G, Registros!B:B, ">=" & fecha_inicial, Registros!B:B, "<=" & fecha_final, Registros!C:C, "=" &'01'!A86), 0) -> 0 | F86: =IF(A86<>"", SUMIFS(Registros!H:H, Registros!B:B, ">=" & fecha_inicial, Registros!B:B, "<=" & fecha_final, Registros!C:C, "=" &'01'!A86), 0) -> 100 | G86: =IF(A86<>"", IF(VLOOKUP(A86, plan_cuentas, 4, FALSE) = "D", C86+E86-F86, 0), 0) -> 0 | H86: =IF(A86<>"", IF(VLOOKUP(A86, plan_cuentas, 4, FALSE) = "H", D86-E86+F86, 0), 0) -> 600
A87: 410200 | B87: OTROS APORTES DE MIEMBROS | C87: =SUM(C88:C89) -> 0 | D87: 180 | E87: 0 | F87: 50 | G87: 0 | H87: 230
A88: 410201 | B88: APORTES PARA GASTOS BASICOS | C88: =IF(A88<>"",IF(VLOOKUP(A88,plan_cuentas,4,FALSE)="D",SUMIFS(Registros!G:G,Registros!B:B,"<"&fecha_inicial,Registros!C:C,"="&'01'!A88)-SUMIFS(Registros!H:H,Registros!B:B,"<"&fecha_inicial,Registros!C:C,"="&'01'!A88), 0), "") -> 0 | D88: =IF(A88<>"",IF(VLOOKUP(A88,plan_cuentas,4,FALSE)="H",SUMIFS(Registros!H:H,Registros!B:B,"<"&fecha_inicial,Registros!C:C,"="&'01'!A88)-SUMIFS(Registros!G:G,Registros!B:B,"<"&fecha_inicial,Registros!C:C,"="&'01'!A88), 0), "") -> 180 | E88: =IF(A88<>"", SUMIFS(Registros!G:G, Registros!B:B, ">=" & fecha_inicial, Registros!B:B, "<=" & fecha_final, Registros!C:C, "=" &'01'!A88), 0) -> 0 | F88: =IF(A88<>"", SUMIFS(Registros!H:H, Registros!B:B, ">=" & fecha_inicial, Registros!B:B, "<=" & fecha_final, Registros!C:C, "=" &'01'!A88), 0) -> 50 | G88: =IF(A88<>"", IF(VLOOKUP(A88, plan_cuentas, 4, FALSE) = "D", C88+E88-F88, 0), 0) -> 0 | H88: =IF(A88<>"", IF(VLOOKUP(A88, plan_cuentas, 4, FALSE) = "H", D88-E88+F88, 0), 0) -> 230
A89: 410202 | B89: =IFERROR(IF(A89<>"", VLOOKUP(A89, plan_cuentas,2, FALSE), ""), "CÓDIGO INCORRECTO") -> APORTES PARA ACTIVIDADES VARIAS | C89: =IF(A89<>"",IF(VLOOKUP(A89,plan_cuentas,4,FALSE)="D",SUMIFS(Registros!G:G,Registros!B:B,"<"&fecha_inicial,Registros!C:C,"="&'01'!A89)-SUMIFS(Registros!H:H,Registros!B:B,"<"&fecha_inicial,Registros!C:C,"="&'01'!A89), 0), "") -> 0 | D89: =IF(A89<>"",IF(VLOOKUP(A89,plan_cuentas,4,FALSE)="H",SUMIFS(Registros!H:H,Registros!B:B,"<"&fecha_inicial,Registros!C:C,"="&'01'!A89)-SUMIFS(Registros!G:G,Registros!B:B,"<"&fecha_inicial,Registros!C:C,"="&'01'!A89), 0), "") -> 0 | E89: =IF(A89<>"", SUMIFS(Registros!G:G, Registros!B:B, ">=" & fecha_inicial, Registros!B:B, "<=" & fecha_final, Registros!C:C, "=" &'01'!A89), 0) -> 0 | F89: =IF(A89<>"", SUMIFS(Registros!H:H, Registros!B:B, ">=" & fecha_inicial, Registros!B:B, "<=" & fecha_final, Registros!C:C, "=" &'01'!A89), 0) -> 0 | G89: =IF(A89<>"", IF(VLOOKUP(A89, plan_cuentas, 4, FALSE) = "D", C89+E89-F89, 0), 0) -> 0 | H89: =IF(A89<>"", IF(VLOOKUP(A89, plan_cuentas, 4, FALSE) = "H", D89-E89+F89, 0), 0) -> 0
A90: 410300 | B90: DONACIONES | C90: =SUM(C91) -> 0 | D90: =SUM(D91) -> 0 | E90: 0 | F90: =SUM(F91) -> 0 | G90: 0 | H90: 0
A91: 410301 | B91: DONACIONES GENERALES | C91: =IF(A91<>"",IF(VLOOKUP(A91,plan_cuentas,4,FALSE)="D",SUMIFS(Registros!G:G,Registros!B:B,"<"&fecha_inicial,Registros!C:C,"="&'01'!A91)-SUMIFS(Registros!H:H,Registros!B:B,"<"&fecha_inicial,Registros!C:C,"="&'01'!A91), 0), "") -> 0 | D91: =IF(A91<>"",IF(VLOOKUP(A91,plan_cuentas,4,FALSE)="H",SUMIFS(Registros!H:H,Registros!B:B,"<"&fecha_inicial,Registros!C:C,"="&'01'!A91)-SUMIFS(Registros!G:G,Registros!B:B,"<"&fecha_inicial,Registros!C:C,"="&'01'!A91), 0), "") -> 0 | E91: =IF(A91<>"", SUMIFS(Registros!G:G, Registros!B:B, ">=" & fecha_inicial, Registros!B:B, "<=" & fecha_final, Registros!C:C, "=" &'01'!A91), 0) -> 0 | F91: =IF(A91<>"", SUMIFS(Registros!H:H, Registros!B:B, ">=" & fecha_inicial, Registros!B:B, "<=" & fecha_final, Registros!C:C, "=" &'01'!A91), 0) -> 0 | G91: =IF(A91<>"", IF(VLOOKUP(A91, plan_cuentas, 4, FALSE) = "D", C91+E91-F91, 0), 0) -> 0 | H91: =IF(A91<>"", IF(VLOOKUP(A91, plan_cuentas, 4, FALSE) = "H", D91-E91+F91, 0), 0) -> 0
A92: 410400 | B92: =IFERROR(IF(A92<>"", VLOOKUP(A92, plan_cuentas,2, FALSE), ""), "CÓDIGO INCORRECTO") -> DIEZMOS | C92: =SUM(C93:C94) -> 0 | D92: =SUM(D93:D94) -> 4377 | E92: 0 | F92: =SUM(F93:F94) -> 3200 | G92: =SUM(G93:G94) -> 0 | H92: 7577
A93: 410401 | B93: DIEZMOS DE MIEMBROS | C93: =IF(A93<>"",IF(VLOOKUP(A93,plan_cuentas,4,FALSE)="D",SUMIFS(Registros!G:G,Registros!B:B,"<"&fecha_inicial,Registros!C:C,"="&'01'!A93)-SUMIFS(Registros!H:H,Registros!B:B,"<"&fecha_inicial,Registros!C:C,"="&'01'!A93), 0), "") -> 0 | D93: =IF(A93<>"",IF(VLOOKUP(A93,plan_cuentas,4,FALSE)="H",SUMIFS(Registros!H:H,Registros!B:B,"<"&fecha_inicial,Registros!C:C,"="&'01'!A93)-SUMIFS(Registros!G:G,Registros!B:B,"<"&fecha_inicial,Registros!C:C,"="&'01'!A93), 0), "") -> 4377 | E93: =IF(A93<>"", SUMIFS(Registros!G:G, Registros!B:B, ">=" & fecha_inicial, Registros!B:B, "<=" & fecha_final, Registros!C:C, "=" &'01'!A93), 0) -> 0 | F93: =IF(A93<>"", SUMIFS(Registros!H:H, Registros!B:B, ">=" & fecha_inicial, Registros!B:B, "<=" & fecha_final, Registros!C:C, "=" &'01'!A93), 0) -> 3200 | G93: =IF(A93<>"", IF(VLOOKUP(A93, plan_cuentas, 4, FALSE) = "D", C93+E93-F93, 0), 0) -> 0 | H93: =IF(A93<>"", IF(VLOOKUP(A93, plan_cuentas, 4, FALSE) = "H", D93-E93+F93, 0), 0) -> 7577
A94: 410402 | B94: =IFERROR(IF(A94<>"", VLOOKUP(A94, plan_cuentas,2, FALSE), ""), "CÓDIGO INCORRECTO") -> DIEZMOS DE PARTICULARES | C94: =IF(A94<>"",IF(VLOOKUP(A94,plan_cuentas,4,FALSE)="D",SUMIFS(Registros!G:G,Registros!B:B,"<"&fecha_inicial,Registros!C:C,"="&'01'!A94)-SUMIFS(Registros!H:H,Registros!B:B,"<"&fecha_inicial,Registros!C:C,"="&'01'!A94), 0), "") -> 0 | D94: =IF(A94<>"",IF(VLOOKUP(A94,plan_cuentas,4,FALSE)="H",SUMIFS(Registros!H:H,Registros!B:B,"<"&fecha_inicial,Registros!C:C,"="&'01'!A94)-SUMIFS(Registros!G:G,Registros!B:B,"<"&fecha_inicial,Registros!C:C,"="&'01'!A94), 0), "") -> 0 | E94: =IF(A94<>"", SUMIFS(Registros!G:G, Registros!B:B, ">=" & fecha_inicial, Registros!B:B, "<=" & fecha_final, Registros!C:C, "=" &'01'!A94), 0) -> 0 | F94: =IF(A94<>"", SUMIFS(Registros!H:H, Registros!B:B, ">=" & fecha_inicial, Registros!B:B, "<=" & fecha_final, Registros!C:C, "=" &'01'!A94), 0) -> 0 | G94: =IF(A94<>"", IF(VLOOKUP(A94, plan_cuentas, 4, FALSE) = "D", C94+E94-F94, 0), 0) -> 0 | H94: =IF(A94<>"", IF(VLOOKUP(A94, plan_cuentas, 4, FALSE) = "H", D94-E94+F94, 0), 0) -> 0
A95: 600000 | B95: GASTOS | C95: =C96+C119 -> 9990.62 | D95: =D96+D119 -> 0 | E95: 5110.09 | F95: 200 | G95: 14900.71 | H95: =H96+H119 -> 0
A96: 610000 | B96: GASTOS OPERATIVOS | C96: =C97+C100+C106+C111+C115 -> 5613.62 | D96: =D97+D100+D106+D111+D115 -> 0 | E96: 1910.09 | F96: 200 | G96: 7323.71 | H96: 0
A97: 610100 | B97: GASTOS BASICOS | C97: =SUM(C98:C99) -> 455.62 | D97: =SUM(D98:D99) -> 0 | E97: 100.09 | F97: 0 | G97: 555.71 | H97: =SUM(H98:H99) -> 0
A98: 610101 | B98: GASTO EN ENERGIA ELECTRICA | C98: =IF(A98<>"",IF(VLOOKUP(A98,plan_cuentas,4,FALSE)="D",SUMIFS(Registros!G:G,Registros!B:B,"<"&fecha_inicial,Registros!C:C,"="&'01'!A98)-SUMIFS(Registros!H:H,Registros!B:B,"<"&fecha_inicial,Registros!C:C,"="&'01'!A98), 0), "") -> 315.11 | D98: =IF(A98<>"",IF(VLOOKUP(A98,plan_cuentas,4,FALSE)="H",SUMIFS(Registros!H:H,Registros!B:B,"<"&fecha_inicial,Registros!C:C,"="&'01'!A98)-SUMIFS(Registros!G:G,Registros!B:B,"<"&fecha_inicial,Registros!C:C,"="&'01'!A98), 0), "") -> 0 | E98: =IF(A98<>"", SUMIFS(Registros!G:G, Registros!B:B, ">=" & fecha_inicial, Registros!B:B, "<=" & fecha_final, Registros!C:C, "=" &'01'!A98), 0) -> 70.56 | F98: =IF(A98<>"", SUMIFS(Registros!H:H, Registros!B:B, ">=" & fecha_inicial, Registros!B:B, "<=" & fecha_final, Registros!C:C, "=" &'01'!A98), 0) -> 0 | G98: =IF(A98<>"", IF(VLOOKUP(A98, plan_cuentas, 4, FALSE) = "D", C98+E98-F98, 0), 0) -> 385.67 | H98: =IF(A98<>"", IF(VLOOKUP(A98, plan_cuentas, 4, FALSE) = "H", D98-E98+F98, 0), 0) -> 0
A99: 610102 | B99: GASTO EN AGUA POTABLE | C99: =IF(A99<>"",IF(VLOOKUP(A99,plan_cuentas,4,FALSE)="D",SUMIFS(Registros!G:G,Registros!B:B,"<"&fecha_inicial,Registros!C:C,"="&'01'!A99)-SUMIFS(Registros!H:H,Registros!B:B,"<"&fecha_inicial,Registros!C:C,"="&'01'!A99), 0), "") -> 140.51 | D99: =IF(A99<>"",IF(VLOOKUP(A99,plan_cuentas,4,FALSE)="H",SUMIFS(Registros!H:H,Registros!B:B,"<"&fecha_inicial,Registros!C:C,"="&'01'!A99)-SUMIFS(Registros!G:G,Registros!B:B,"<"&fecha_inicial,Registros!C:C,"="&'01'!A99), 0), "") -> 0 | E99: =IF(A99<>"", SUMIFS(Registros!G:G, Registros!B:B, ">=" & fecha_inicial, Registros!B:B, "<=" & fecha_final, Registros!C:C, "=" &'01'!A99), 0) -> 29.53 | F99: =IF(A99<>"", SUMIFS(Registros!H:H, Registros!B:B, ">=" & fecha_inicial, Registros!B:B, "<=" & fecha_final, Registros!C:C, "=" &'01'!A99), 0) -> 0 | G99: 170.04 | H99: 0
A100: 610200 | B100: GASTOS DE MANTENIMIENTO | C100: =SUM(C101:C105) -> 3200 | D100: =SUM(D101:D105) -> 0 | E100: 1680 | F100: 200 | G100: =SUM(G101:G105) -> 4680 | H100: =SUM(H101:H105) -> 0
A101: 610201 | B101: MANTENIMIENTO DE CERCAS | C101: =IF(A101<>"",IF(VLOOKUP(A101,plan_cuentas,4,FALSE)="D",SUMIFS(Registros!G:G,Registros!B:B,"<"&fecha_inicial,Registros!C:C,"="&'01'!A101)-SUMIFS(Registros!H:H,Registros!B:B,"<"&fecha_inicial,Registros!C:C,"="&'01'!A101), 0), "") -> 0 | D101: =IF(A101<>"",IF(VLOOKUP(A101,plan_cuentas,4,FALSE)="H",SUMIFS(Registros!H:H,Registros!B:B,"<"&fecha_inicial,Registros!C:C,"="&'01'!A101)-SUMIFS(Registros!G:G,Registros!B:B,"<"&fecha_inicial,Registros!C:C,"="&'01'!A101), 0), "") -> 0 | E101: =IF(A101<>"", SUMIFS(Registros!G:G, Registros!B:B, ">=" & fecha_inicial, Registros!B:B, "<=" & fecha_final, Registros!C:C, "=" &'01'!A101), 0) -> 0 | F101: =IF(A101<>"", SUMIFS(Registros!H:H, Registros!B:B, ">=" & fecha_inicial, Registros!B:B, "<=" & fecha_final, Registros!C:C, "=" &'01'!A101), 0) -> 0 | G101: 0 | H101: 0
A102: 610202 | B102: MANTENIMIENTO DE EDIFICIOS | C102: =IF(A102<>"",IF(VLOOKUP(A102,plan_cuentas,4,FALSE)="D",SUMIFS(Registros!G:G,Registros!B:B,"<"&fecha_inicial,Registros!C:C,"="&'01'!A102)-SUMIFS(Registros!H:H,Registros!B:B,"<"&fecha_inicial,Registros!C:C,"="&'01'!A102), 0), "") -> 2850 | D102: =IF(A102<>"",IF(VLOOKUP(A102,plan_cuentas,4,FALSE)="H",SUMIFS(Registros!H:H,Registros!B:B,"<"&fecha_inicial,Registros!C:C,"="&'01'!A102)-SUMIFS(Registros!G:G,Registros!B:B,"<"&fecha_inicial,Registros!C:C,"="&'01'!A102), 0), "") -> 0 | E102: =IF(A102<>"", SUMIFS(Registros!G:G, Registros!B:B, ">=" & fecha_inicial, Registros!B:B, "<=" & fecha_final, Registros!C:C, "=" &'01'!A102), 0) -> 1600 | F102: =IF(A102<>"", SUMIFS(Registros!H:H, Registros!B:B, ">=" & fecha_inicial, Registros!B:B, "<=" & fecha_final, Registros!C:C, "=" &'01'!A102), 0) -> 200 | G102: 4250 | H102: 0
A103: 610203 | B103: =IFERROR(IF(A103<>"", VLOOKUP(A103, plan_cuentas,2, FALSE), ""), "CÓDIGO INCORRECTO") -> MANTENIMIENTO DE ABANICOS | C103: =IF(A103<>"",IF(VLOOKUP(A103,plan_cuentas,4,FALSE)="D",SUMIFS(Registros!G:G,Registros!B:B,"<"&fecha_inicial,Registros!C:C,"="&'01'!A103)-SUMIFS(Registros!H:H,Registros!B:B,"<"&fecha_inicial,Registros!C:C,"="&'01'!A103), 0), "") -> 200 | D103: =IF(A103<>"",IF(VLOOKUP(A103,plan_cuentas,4,FALSE)="H",SUMIFS(Registros!H:H,Registros!B:B,"<"&fecha_inicial,Registros!C:C,"="&'01'!A103)-SUMIFS(Registros!G:G,Registros!B:B,"<"&fecha_inicial,Registros!C:C,"="&'01'!A103), 0), "") -> 0 | E103: =IF(A103<>"", SUMIFS(Registros!G:G, Registros!B:B, ">=" & fecha_inicial, Registros!B:B, "<=" & fecha_final, Registros!C:C, "=" &'01'!A103), 0) -> 0 | F103: =IF(A103<>"", SUMIFS(Registros!H:H, Registros!B:B, ">=" & fecha_inicial, Registros!B:B, "<=" & fecha_final, Registros!C:C, "=" &'01'!A103), 0) -> 0 | G103: =IF(A103<>"", IF(VLOOKUP(A103, plan_cuentas, 4, FALSE) = "D", C103+E103-F103, 0), 0) -> 200 | H103: =IF(A103<>"", IF(VLOOKUP(A103, plan_cuentas, 4, FALSE) = "H", D103-E103+F103, 0), 0) -> 0
A104: 610204 | B104: =IFERROR(IF(A104<>"", VLOOKUP(A104, plan_cuentas,2, FALSE), ""), "CÓDIGO INCORRECTO") -> MANTENIMIENTO DE INSTRUMENTOS | C104: =IF(A104<>"",IF(VLOOKUP(A104,plan_cuentas,4,FALSE)="D",SUMIFS(Registros!G:G,Registros!B:B,"<"&fecha_inicial,Registros!C:C,"="&'01'!A104)-SUMIFS(Registros!H:H,Registros!B:B,"<"&fecha_inicial,Registros!C:C,"="&'01'!A104), 0), "") -> 150 | D104: =IF(A104<>"",IF(VLOOKUP(A104,plan_cuentas,4,FALSE)="H",SUMIFS(Registros!H:H,Registros!B:B,"<"&fecha_inicial,Registros!C:C,"="&'01'!A104)-SUMIFS(Registros!G:G,Registros!B:B,"<"&fecha_inicial,Registros!C:C,"="&'01'!A104), 0), "") -> 0 | E104: =IF(A104<>"", SUMIFS(Registros!G:G, Registros!B:B, ">=" & fecha_inicial, Registros!B:B, "<=" & fecha_final, Registros!C:C, "=" &'01'!A104), 0) -> 0 | F104: =IF(A104<>"", SUMIFS(Registros!H:H, Registros!B:B, ">=" & fecha_inicial, Registros!B:B, "<=" & fecha_final, Registros!C:C, "=" &'01'!A104), 0) -> 0 | G104: =IF(A104<>"", IF(VLOOKUP(A104, plan_cuentas, 4, FALSE) = "D", C104+E104-F104, 0), 0) -> 150 | H104: =IF(A104<>"", IF(VLOOKUP(A104, plan_cuentas, 4, FALSE) = "H", D104-E104+F104, 0), 0) -> 0
A105: 610205 | B105: MANTENIMIENTO DE MOBILIARIO | C105: =IF(A105<>"",IF(VLOOKUP(A105,plan_cuentas,4,FALSE)="D",SUMIFS(Registros!G:G,Registros!B:B,"<"&fecha_inicial,Registros!C:C,"="&'01'!A105)-SUMIFS(Registros!H:H,Registros!B:B,"<"&fecha_inicial,Registros!C:C,"="&'01'!A105), 0), "") -> 0 | D105: =IF(A105<>"",IF(VLOOKUP(A105,plan_cuentas,4,FALSE)="H",SUMIFS(Registros!H:H,Registros!B:B,"<"&fecha_inicial,Registros!C:C,"="&'01'!A105)-SUMIFS(Registros!G:G,Registros!B:B,"<"&fecha_inicial,Registros!C:C,"="&'01'!A105), 0), "") -> 0 | E105: =IF(A105<>"", SUMIFS(Registros!G:G, Registros!B:B, ">=" & fecha_inicial, Registros!B:B, "<=" & fecha_final, Registros!C:C, "=" &'01'!A105), 0) -> 80 | F105: =IF(A105<>"", SUMIFS(Registros!H:H, Registros!B:B, ">=" & fecha_inicial, Registros!B:B, "<=" & fecha_final, Registros!C:C, "=" &'01'!A105), 0) -> 0 | G105: 80 | H105: 0
A106: 610300 | B106: GASTOS DE REPRESENTACION | C106: =SUM(C107:C110) -> 1269 | D106: =SUM(D107:D110) -> 0 | E106: 130 | F106: 0 | G106: 1399 | H106: 0
A107: 610301 | B107: OFRENDA MISIONERA | C107: =IF(A107<>"",IF(VLOOKUP(A107,plan_cuentas,4,FALSE)="D",SUMIFS(Registros!G:G,Registros!B:B,"<"&fecha_inicial,Registros!C:C,"="&'01'!A107)-SUMIFS(Registros!H:H,Registros!B:B,"<"&fecha_inicial,Registros!C:C,"="&'01'!A107), 0), "") -> 300 | D107: =IF(A107<>"",IF(VLOOKUP(A107,plan_cuentas,4,FALSE)="H",SUMIFS(Registros!H:H,Registros!B:B,"<"&fecha_inicial,Registros!C:C,"="&'01'!A107)-SUMIFS(Registros!G:G,Registros!B:B,"<"&fecha_inicial,Registros!C:C,"="&'01'!A107), 0), "") -> 0 | E107: =IF(A107<>"", SUMIFS(Registros!G:G, Registros!B:B, ">=" & fecha_inicial, Registros!B:B, "<=" & fecha_final, Registros!C:C, "=" &'01'!A107), 0) -> 50 | F107: =IF(A107<>"", SUMIFS(Registros!H:H, Registros!B:B, ">=" & fecha_inicial, Registros!B:B, "<=" & fecha_final, Registros!C:C, "=" &'01'!A107), 0) -> 0 | G107: 350 | H107: 0
A108: 610302 | B108: =IFERROR(IF(A108<>"", VLOOKUP(A108, plan_cuentas,2, FALSE), ""), "CÓDIGO INCORRECTO") -> APORTE PARA LA UNIDAD PASTORAL | C108: =IF(A108<>"",IF(VLOOKUP(A108,plan_cuentas,4,FALSE)="D",SUMIFS(Registros!G:G,Registros!B:B,"<"&fecha_inicial,Registros!C:C,"="&'01'!A108)-SUMIFS(Registros!H:H,Registros!B:B,"<"&fecha_inicial,Registros!C:C,"="&'01'!A108), 0), "") -> 180 | D108: =IF(A108<>"",IF(VLOOKUP(A108,plan_cuentas,4,FALSE)="H",SUMIFS(Registros!H:H,Registros!B:B,"<"&fecha_inicial,Registros!C:C,"="&'01'!A108)-SUMIFS(Registros!G:G,Registros!B:B,"<"&fecha_inicial,Registros!C:C,"="&'01'!A108), 0), "") -> 0 | E108: =IF(A108<>"", SUMIFS(Registros!G:G, Registros!B:B, ">=" & fecha_inicial, Registros!B:B, "<=" & fecha_final, Registros!C:C, "=" &'01'!A108), 0) -> 20 | F108: =IF(A108<>"", SUMIFS(Registros!H:H, Registros!B:B, ">=" & fecha_inicial, Registros!B:B, "<=" & fecha_final, Registros!C:C, "=" &'01'!A108), 0) -> 0 | G108: =IF(A108<>"", IF(VLOOKUP(A108, plan_cuentas, 4, FALSE) = "D", C108+E108-F108, 0), 0) -> 200 | H108: =IF(A108<>"", IF(VLOOKUP(A108, plan_cuentas, 4, FALSE) = "H", D108-E108+F108, 0), 0) -> 0
A109: 610303 | B109: VIATICOS ALIMENTACIÓN Y TRANSPORTE | C109: =IF(A109<>"",IF(VLOOKUP(A109,plan_cuentas,4,FALSE)="D",SUMIFS(Registros!G:G,Registros!B:B,"<"&fecha_inicial,Registros!C:C,"="&'01'!A109)-SUMIFS(Registros!H:H,Registros!B:B,"<"&fecha_inicial,Registros!C:C,"="&'01'!A109), 0), "") -> 589 | D109: =IF(A109<>"",IF(VLOOKUP(A109,plan_cuentas,4,FALSE)="H",SUMIFS(Registros!H:H,Registros!B:B,"<"&fecha_inicial,Registros!C:C,"="&'01'!A109)-SUMIFS(Registros!G:G,Registros!B:B,"<"&fecha_inicial,Registros!C:C,"="&'01'!A109), 0), "") -> 0 | E109: =IF(A109<>"", SUMIFS(Registros!G:G, Registros!B:B, ">=" & fecha_inicial, Registros!B:B, "<=" & fecha_final, Registros!C:C, "=" &'01'!A109), 0) -> 60 | F109: =IF(A109<>"", SUMIFS(Registros!H:H, Registros!B:B, ">=" & fecha_inicial, Registros!B:B, "<=" & fecha_final, Registros!C:C, "=" &'01'!A109), 0) -> 0 | G109: 649 | H109: 0
A110: 610304 | B110: =IFERROR(IF(A110<>"", VLOOKUP(A110, plan_cuentas,2, FALSE), ""), "CÓDIGO INCORRECTO") -> CELEBRACIÓN DÍAS FESTIVOS | C110: =IF(A110<>"",IF(VLOOKUP(A110,plan_cuentas,4,FALSE)="D",SUMIFS(Registros!G:G,Registros!B:B,"<"&fecha_inicial,Registros!C:C,"="&'01'!A110)-SUMIFS(Registros!H:H,Registros!B:B,"<"&fecha_inicial,Registros!C:C,"="&'01'!A110), 0), "") -> 200 | D110: =IF(A110<>"",IF(VLOOKUP(A110,plan_cuentas,4,FALSE)="H",SUMIFS(Registros!H:H,Registros!B:B,"<"&fecha_inicial,Registros!C:C,"="&'01'!A110)-SUMIFS(Registros!G:G,Registros!B:B,"<"&fecha_inicial,Registros!C:C,"="&'01'!A110), 0), "") -> 0 | E110: =IF(A110<>"", SUMIFS(Registros!G:G, Registros!B:B, ">=" & fecha_inicial, Registros!B:B, "<=" & fecha_final, Registros!C:C, "=" &'01'!A110), 0) -> 0 | F110: =IF(A110<>"", SUMIFS(Registros!H:H, Registros!B:B, ">=" & fecha_inicial, Registros!B:B, "<=" & fecha_final, Registros!C:C, "=" &'01'!A110), 0) -> 0 | G110: =IF(A110<>"", IF(VLOOKUP(A110, plan_cuentas, 4, FALSE) = "D", C110+E110-F110, 0), 0) -> 200 | H110: =IF(A110<>"", IF(VLOOKUP(A110, plan_cuentas, 4, FALSE) = "H", D110-E110+F110, 0), 0) -> 0
A111: 610400 | B111: =IFERROR(IF(A111<>"", VLOOKUP(A111, plan_cuentas,2, FALSE), ""), "CÓDIGO INCORRECTO") -> MATERIALES Y SUMINISTROS | C111: =SUM(C112:C114) -> 474 | D111: =SUM(D112:D114) -> 0 | E111: =SUM(E112:E114) -> 0 | F111: 0 | G111: 474 | H111: =SUM(H112:H114) -> 0
A112: 610401 | B112: SUMINISTROS CEREMONIALES | C112: =IF(A112<>"",IF(VLOOKUP(A112,plan_cuentas,4,FALSE)="D",SUMIFS(Registros!G:G,Registros!B:B,"<"&fecha_inicial,Registros!C:C,"="&'01'!A112)-SUMIFS(Registros!H:H,Registros!B:B,"<"&fecha_inicial,Registros!C:C,"="&'01'!A112), 0), "") -> 74 | D112: =IF(A112<>"",IF(VLOOKUP(A112,plan_cuentas,4,FALSE)="H",SUMIFS(Registros!H:H,Registros!B:B,"<"&fecha_inicial,Registros!C:C,"="&'01'!A112)-SUMIFS(Registros!G:G,Registros!B:B,"<"&fecha_inicial,Registros!C:C,"="&'01'!A112), 0), "") -> 0 | E112: =IF(A112<>"", SUMIFS(Registros!G:G, Registros!B:B, ">=" & fecha_inicial, Registros!B:B, "<=" & fecha_final, Registros!C:C, "=" &'01'!A112), 0) -> 0 | F112: =IF(A112<>"", SUMIFS(Registros!H:H, Registros!B:B, ">=" & fecha_inicial, Registros!B:B, "<=" & fecha_final, Registros!C:C, "=" &'01'!A112), 0) -> 0 | G112: =IF(A112<>"", IF(VLOOKUP(A112, plan_cuentas, 4, FALSE) = "D", C112+E112-F112, 0), 0) -> 74 | H112: =IF(A112<>"", IF(VLOOKUP(A112, plan_cuentas, 4, FALSE) = "H", D112-E112+F112, 0), 0) -> 0
A113: 610402 | B113: =IFERROR(IF(A113<>"", VLOOKUP(A113, plan_cuentas,2, FALSE), ""), "CÓDIGO INCORRECTO") -> UTILES PARA ESCUELA DOMINCAL | C113: =IF(A113<>"",IF(VLOOKUP(A113,plan_cuentas,4,FALSE)="D",SUMIFS(Registros!G:G,Registros!B:B,"<"&fecha_inicial,Registros!C:C,"="&'01'!A113)-SUMIFS(Registros!H:H,Registros!B:B,"<"&fecha_inicial,Registros!C:C,"="&'01'!A113), 0), "") -> 100 | D113: =IF(A113<>"",IF(VLOOKUP(A113,plan_cuentas,4,FALSE)="H",SUMIFS(Registros!H:H,Registros!B:B,"<"&fecha_inicial,Registros!C:C,"="&'01'!A113)-SUMIFS(Registros!G:G,Registros!B:B,"<"&fecha_inicial,Registros!C:C,"="&'01'!A113), 0), "") -> 0 | E113: =IF(A113<>"", SUMIFS(Registros!G:G, Registros!B:B, ">=" & fecha_inicial, Registros!B:B, "<=" & fecha_final, Registros!C:C, "=" &'01'!A113), 0) -> 0 | F113: =IF(A113<>"", SUMIFS(Registros!H:H, Registros!B:B, ">=" & fecha_inicial, Registros!B:B, "<=" & fecha_final, Registros!C:C, "=" &'01'!A113), 0) -> 0 | G113: =IF(A113<>"", IF(VLOOKUP(A113, plan_cuentas, 4, FALSE) = "D", C113+E113-F113, 0), 0) -> 100 | H113: =IF(A113<>"", IF(VLOOKUP(A113, plan_cuentas, 4, FALSE) = "H", D113-E113+F113, 0), 0) -> 0
A114: 610403 | B114: =IFERROR(IF(A114<>"", VLOOKUP(A114, plan_cuentas,2, FALSE), ""), "CÓDIGO INCORRECTO") -> ACCESORIOS PARA ORNATO | C114: =IF(A114<>"",IF(VLOOKUP(A114,plan_cuentas,4,FALSE)="D",SUMIFS(Registros!G:G,Registros!B:B,"<"&fecha_inicial,Registros!C:C,"="&'01'!A114)-SUMIFS(Registros!H:H,Registros!B:B,"<"&fecha_inicial,Registros!C:C,"="&'01'!A114), 0), "") -> 300 | D114: =IF(A114<>"",IF(VLOOKUP(A114,plan_cuentas,4,FALSE)="H",SUMIFS(Registros!H:H,Registros!B:B,"<"&fecha_inicial,Registros!C:C,"="&'01'!A114)-SUMIFS(Registros!G:G,Registros!B:B,"<"&fecha_inicial,Registros!C:C,"="&'01'!A114), 0), "") -> 0 | E114: =IF(A114<>"", SUMIFS(Registros!G:G, Registros!B:B, ">=" & fecha_inicial, Registros!B:B, "<=" & fecha_final, Registros!C:C, "=" &'01'!A114), 0) -> 0 | F114: =IF(A114<>"", SUMIFS(Registros!H:H, Registros!B:B, ">=" & fecha_inicial, Registros!B:B, "<=" & fecha_final, Registros!C:C, "=" &'01'!A114), 0) -> 0 | G114: =IF(A114<>"", IF(VLOOKUP(A114, plan_cuentas, 4, FALSE) = "D", C114+E114-F114, 0), 0) -> 300 | H114: =IF(A114<>"", IF(VLOOKUP(A114, plan_cuentas, 4, FALSE) = "H", D114-E114+F114, 0), 0) -> 0
A115: 610500 | B115: GASTO SOCIAL Y CELEBRACIONES | C115: =SUM(C116:C118) -> 215 | D115: =SUM(D116:D118) -> 0 | E115: 0 | F115: 0 | G115: 215 | H115: 0
A116: 610501 | B116: INSUMOS MÉDICOS A MIEMBROS | C116: =IF(A116<>"",IF(VLOOKUP(A116,plan_cuentas,4,FALSE)="D",SUMIFS(Registros!G:G,Registros!B:B,"<"&fecha_inicial,Registros!C:C,"="&'01'!A116)-SUMIFS(Registros!H:H,Registros!B:B,"<"&fecha_inicial,Registros!C:C,"="&'01'!A116), 0), "") -> 165 | D116: =IF(A116<>"",IF(VLOOKUP(A116,plan_cuentas,4,FALSE)="H",SUMIFS(Registros!H:H,Registros!B:B,"<"&fecha_inicial,Registros!C:C,"="&'01'!A116)-SUMIFS(Registros!G:G,Registros!B:B,"<"&fecha_inicial,Registros!C:C,"="&'01'!A116), 0), "") -> 0 | E116: =IF(A116<>"", SUMIFS(Registros!G:G, Registros!B:B, ">=" & fecha_inicial, Registros!B:B, "<=" & fecha_final, Registros!C:C, "=" &'01'!A116), 0) -> 0 | F116: =IF(A116<>"", SUMIFS(Registros!H:H, Registros!B:B, ">=" & fecha_inicial, Registros!B:B, "<=" & fecha_final, Registros!C:C, "=" &'01'!A116), 0) -> 0 | G116: =IF(A116<>"", IF(VLOOKUP(A116, plan_cuentas, 4, FALSE) = "D", C116+E116-F116, 0), 0) -> 165 | H116: =IF(A116<>"", IF(VLOOKUP(A116, plan_cuentas, 4, FALSE) = "H", D116-E116+F116, 0), 0) -> 0
A117: 610502 | B117: INSUMOS MÉDICOS A PARTICULARES | C117: =IF(A117<>"",IF(VLOOKUP(A117,plan_cuentas,4,FALSE)="D",SUMIFS(Registros!G:G,Registros!B:B,"<"&fecha_inicial,Registros!C:C,"="&'01'!A117)-SUMIFS(Registros!H:H,Registros!B:B,"<"&fecha_inicial,Registros!C:C,"="&'01'!A117), 0), "") -> 0 | D117: =IF(A117<>"",IF(VLOOKUP(A117,plan_cuentas,4,FALSE)="H",SUMIFS(Registros!H:H,Registros!B:B,"<"&fecha_inicial,Registros!C:C,"="&'01'!A117)-SUMIFS(Registros!G:G,Registros!B:B,"<"&fecha_inicial,Registros!C:C,"="&'01'!A117), 0), "") -> 0 | E117: =IF(A117<>"", SUMIFS(Registros!G:G, Registros!B:B, ">=" & fecha_inicial, Registros!B:B, "<=" & fecha_final, Registros!C:C, "=" &'01'!A117), 0) -> 0 | F117: =IF(A117<>"", SUMIFS(Registros!H:H, Registros!B:B, ">=" & fecha_inicial, Registros!B:B, "<=" & fecha_final, Registros!C:C, "=" &'01'!A117), 0) -> 0 | G117: =IF(A117<>"", IF(VLOOKUP(A117, plan_cuentas, 4, FALSE) = "D", C117+E117-F117, 0), 0) -> 0 | H117: =IF(A117<>"", IF(VLOOKUP(A117, plan_cuentas, 4, FALSE) = "H", D117-E117+F117, 0), 0) -> 0
A118: 610503 | B118: =IFERROR(IF(A118<>"", VLOOKUP(A118, plan_cuentas,2, FALSE), ""), "CÓDIGO INCORRECTO") -> CELEBRACIÓN FIESTA PARA NIÑOS | C118: =IF(A118<>"",IF(VLOOKUP(A118,plan_cuentas,4,FALSE)="D",SUMIFS(Registros!G:G,Registros!B:B,"<"&fecha_inicial,Registros!C:C,"="&'01'!A118)-SUMIFS(Registros!H:H,Registros!B:B,"<"&fecha_inicial,Registros!C:C,"="&'01'!A118), 0), "") -> 50 | D118: =IF(A118<>"",IF(VLOOKUP(A118,plan_cuentas,4,FALSE)="H",SUMIFS(Registros!H:H,Registros!B:B,"<"&fecha_inicial,Registros!C:C,"="&'01'!A118)-SUMIFS(Registros!G:G,Registros!B:B,"<"&fecha_inicial,Registros!C:C,"="&'01'!A118), 0), "") -> 0 | E118: =IF(A118<>"", SUMIFS(Registros!G:G, Registros!B:B, ">=" & fecha_inicial, Registros!B:B, "<=" & fecha_final, Registros!C:C, "=" &'01'!A118), 0) -> 0 | F118: =IF(A118<>"", SUMIFS(Registros!H:H, Registros!B:B, ">=" & fecha_inicial, Registros!B:B, "<=" & fecha_final, Registros!C:C, "=" &'01'!A118), 0) -> 0 | G118: =IF(A118<>"", IF(VLOOKUP(A118, plan_cuentas, 4, FALSE) = "D", C118+E118-F118, 0), 0) -> 50 | H118: =IF(A118<>"", IF(VLOOKUP(A118, plan_cuentas, 4, FALSE) = "H", D118-E118+F118, 0), 0) -> 0
A119: 620000 | B119: =IFERROR(IF(A119<>"", VLOOKUP(A119, plan_cuentas,2, FALSE), ""), "CÓDIGO INCORRECTO") -> OTROS GASTOS | C119: =C120 -> 4377 | D119: =D120 -> 0 | E119: 3200 | F119: 0 | G119: 7577 | H119: 0
A120: 620100 | B120: LIQUIDACIÓN DE DIEZMOS | C120: =SUM(C121:C122) -> 4377 | D120: =SUM(D121:D122) -> 0 | E120: =SUM(E121:E122) -> 3200 | F120: 0 | G120: 7577 | H120: 0
A121: 620101 | B121: DIEZMOS PARA EL PASTOR | C121: =IF(A121<>"",IF(VLOOKUP(A121,plan_cuentas,4,FALSE)="D",SUMIFS(Registros!G:G,Registros!B:B,"<"&fecha_inicial,Registros!C:C,"="&'01'!A121)-SUMIFS(Registros!H:H,Registros!B:B,"<"&fecha_inicial,Registros!C:C,"="&'01'!A121), 0), "") -> 3939 | D121: =IF(A121<>"",IF(VLOOKUP(A121,plan_cuentas,4,FALSE)="H",SUMIFS(Registros!H:H,Registros!B:B,"<"&fecha_inicial,Registros!C:C,"="&'01'!A121)-SUMIFS(Registros!G:G,Registros!B:B,"<"&fecha_inicial,Registros!C:C,"="&'01'!A121), 0), "") -> 0 | E121: =IF(A121<>"", SUMIFS(Registros!G:G, Registros!B:B, ">=" & fecha_inicial, Registros!B:B, "<=" & fecha_final, Registros!C:C, "=" &'01'!A121), 0) -> 2880 | F121: =IF(A121<>"", SUMIFS(Registros!H:H, Registros!B:B, ">=" & fecha_inicial, Registros!B:B, "<=" & fecha_final, Registros!C:C, "=" &'01'!A121), 0) -> 0 | G121: =IF(A121<>"", IF(VLOOKUP(A121, plan_cuentas, 4, FALSE) = "D", C121+E121-F121, 0), 0) -> 6819 | H121: =IF(A121<>"", IF(VLOOKUP(A121, plan_cuentas, 4, FALSE) = "H", D121-E121+F121, 0), 0) -> 0
A122: 620102 | B122: =IFERROR(IF(A122<>"", VLOOKUP(A122, plan_cuentas,2, FALSE), ""), "CÓDIGO INCORRECTO") -> DIEZMOS DE DIEZMOS | C122: =IF(A122<>"",IF(VLOOKUP(A122,plan_cuentas,4,FALSE)="D",SUMIFS(Registros!G:G,Registros!B:B,"<"&fecha_inicial,Registros!C:C,"="&'01'!A122)-SUMIFS(Registros!H:H,Registros!B:B,"<"&fecha_inicial,Registros!C:C,"="&'01'!A122), 0), "") -> 438 | D122: =IF(A122<>"",IF(VLOOKUP(A122,plan_cuentas,4,FALSE)="H",SUMIFS(Registros!H:H,Registros!B:B,"<"&fecha_inicial,Registros!C:C,"="&'01'!A122)-SUMIFS(Registros!G:G,Registros!B:B,"<"&fecha_inicial,Registros!C:C,"="&'01'!A122), 0), "") -> 0 | E122: =IF(A122<>"", SUMIFS(Registros!G:G, Registros!B:B, ">=" & fecha_inicial, Registros!B:B, "<=" & fecha_final, Registros!C:C, "=" &'01'!A122), 0) -> 320 | F122: =IF(A122<>"", SUMIFS(Registros!H:H, Registros!B:B, ">=" & fecha_inicial, Registros!B:B, "<=" & fecha_final, Registros!C:C, "=" &'01'!A122), 0) -> 0 | G122: =IF(A122<>"", IF(VLOOKUP(A122, plan_cuentas, 4, FALSE) = "D", C122+E122-F122, 0), 0) -> 758 | H122: =IF(A122<>"", IF(VLOOKUP(A122, plan_cuentas, 4, FALSE) = "H", D122-E122+F122, 0), 0) -> 0
A123: TOTALES | C123: =C8+C48+C62+C74+C82+C95 -> 11224.22 | D123: =D8+D48+D62+D74+D82+D95 -> 11224.22 | E123: =E8+E48+E62+E74+E82+E95 -> 9134.59 | F123: 9134.59 | G123: 15048.72 | H123: =H8+H48+H62+H74+H82+H95 -> 15048.72
C124: =ABS(D123-C123) -> 1.818989404e-12 | E124: =ABS(F123-E123) -> 0 | G124: =ABS(H123-G123) -> 1.818989404e-12
A128: ELABORADO POR: | F128: AUTORIZADO POR:
A129: =IF(A128<>"", VLOOKUP(A128, users, 3, FALSE), "") -> Berta María Mora Alvarado | F129: =IF(F128<>"", VLOOKUP(F128, users, 3, FALSE), "") -> Socorro Sandoval

Sheet 02
E1: Proteger
A2: =bussiness_name -> IGLESIA ESTRELLA DE BELÉN
A3: ESTADO DE RESULTADOS CONSOLIDADO
A4: ="DEL "&TEXT(fecha_inicial, "DD")&" DE "&UPPER(TEXT(fecha_inicial, "MMMM"))&" DEL " & TEXT(fecha_inicial, "YYYY") & " AL "&TEXT(fecha_final, "DD")&" DE "&UPPER(TEXT(fecha_final, "MMMM"))&" DEL "&TEXT(fecha_final, "YYYY") -> DEL 02 DE OCTUBRE DEL 2016 AL 29 DE OCTUBRE DEL 2016
A5: =address & " *** Tel/Fax: " & tel & " *** " & email -> SAN MARCOS *** Tel/Fax: ***
A6: CÓDIGO CUENTA | B6: DESCRIPCIÓN DE LA CUENTA | C6: DETALLE DE RESULTADOS | F6: DATOS PARA ANÁLISIS FINANCIERO
B7: DESCRIPCIÓN DE LA CUENTA | C7: RESULTADO MES ANTERIOR | D7: RESULTADO MES ACTUAL | E7: RESULTADOS ACUMULADOS | F7: VARIACIÓN ABSOLUTA | G7: VARIACIÓN RELATIVA | H7: % ACTUAL
A8: 400000 | B8: =IF(A8<>"", IFERROR(VLOOKUP(A8, plan_cuentas, 2, FALSE), "CÓDIGO INCORRECTO"), "") -> INGRESOS | C8: =C9 -> 112.04 | D8: =D9 -> 3824.5 | E8: 12479.27 | F8: 3712.46 | G8: =IFERROR(F8/C8, 0) -> 33.13513031 | H8: =IFERROR(D8/$D$8, 0) -> 1
A9: 410000 | B9: INGRESOS EN EFECTIVO | C9: =SUM(C10:C13) -> 112.04 | D9: =SUM(D10:D13) -> 3824.5 | E9: =SUM(E10:E13) -> 12479.27 | F9: =SUM(F10:F13) -> 3712.46 | G9: =IFERROR(F9/C9, 0) -> 33.13513031 | H9: =IFERROR(D9/$D$8, 0) -> 1
A10: 410100 | B10: OFRENDAS GENERALES | C10: =IF(A10<>"", IF(VLOOKUP(A10, plan_cuentas, 4, FALSE)="H", SUMIFS(Registros!H:H, Registros!B:B, ">="&init_before, Registros!B:B, "<=" & final_before, Registros!I:I, "="& '02'!A10)-SUMIFS(Registros!G:G, Registros!B:B, ">="&init_before, Registros!B:B, "<=" & final_before, Registros!I:I, "="& '02'!A10), SUMIFS(Registros!G:G, Registros!B:B, ">="&init_before, Registros!B:B, "<=" & final_before, Registros!I:I, "="& '02'!A10)-SUMIFS(Registros!H:H, Registros!B:B, ">="&init_before, Registros!B:B, "<=" & final_before, Registros!I:I, "="& '02'!A10)), 0) -> 12.04 | D10: =IF(A10<>"", IF(VLOOKUP(A10, plan_cuentas, 4, FALSE)="H", SUMIFS(Registros!H:H, Registros!B:B, ">="&fecha_inicial, Registros!B:B, "<=" & fecha_final, Registros!I:I, "="& '02'!A10)-SUMIFS(Registros!G:G, Registros!B:B, ">="& fecha_inicial, Registros!B:B, "<=" & fecha_final, Registros!I:I, "="& '02'!A10), SUMIFS(Registros!G:G, Registros!B:B, ">="&fecha_inicial, Registros!B:B, "<=" & fecha_final, Registros!I:I, "="& '02'!A10)-SUMIFS(Registros!H:H, Registros!B:B, ">="&fecha_inicial, Registros!B:B, "<=" & fecha_final, Registros!I:I, "="& '02'!A10)), 0) -> 574.5 | E10: =IF(A10<>"", IF(VLOOKUP(A10, plan_cuentas, 4, FALSE)="H", SUMIFS(Registros!H:H, Registros!B:B, "<=" & fecha_final, Registros!I:I, "=" & A10)-SUMIFS(Registros!G:G, Registros!B:B, "<=" & fecha_final, Registros!I:I, "=" & A10), SUMIFS(Registros!G:G, Registros!B:B, "<=" & fecha_final, Registros!I:I, "=" & A10)-SUMIFS(Registros!H:H, Registros!B:B, "<=" & fecha_final, Registros!I:I, "=" & A10)), 0) -> 4672.27 | F10: =D10-C10 -> 562.46 | G10: =IFERROR(F10/C10, 0) -> 46.71594684 | H10: =IFERROR(D10/$D$8, 0) -> 0.1502157145
A11: 410200 | B11: OTROS APORTES DE MIEMBROS | C11: =IF(A11<>"", IF(VLOOKUP(A11, plan_cuentas, 4, FALSE)="H", SUMIFS(Registros!H:H, Registros!B:B, ">="&init_before, Registros!B:B, "<=" & final_before, Registros!I:I, "="& '02'!A11)-SUMIFS(Registros!G:G, Registros!B:B, ">="&init_before, Registros!B:B, "<=" & final_before, Registros!I:I, "="& '02'!A11), SUMIFS(Registros!G:G, Registros!B:B, ">="&init_before, Registros!B:B, "<=" & final_before, Registros!I:I, "="& '02'!A11)-SUMIFS(Registros!H:H, Registros!B:B, ">="&init_before, Registros!B:B, "<=" & final_before, Registros!I:I, "="& '02'!A11)), 0) -> 0 | D11: =IF(A11<>"", IF(VLOOKUP(A11, plan_cuentas, 4, FALSE)="H", SUMIFS(Registros!H:H, Registros!B:B, ">="&fecha_inicial, Registros!B:B, "<=" & fecha_final, Registros!I:I, "="& '02'!A11)-SUMIFS(Registros!G:G, Registros!B:B, ">="& fecha_inicial, Registros!B:B, "<=" & fecha_final, Registros!I:I, "="& '02'!A11), SUMIFS(Registros!G:G, Registros!B:B, ">="&fecha_inicial, Registros!B:B, "<=" & fecha_final, Registros!I:I, "="& '02'!A11)-SUMIFS(Registros!H:H, Registros!B:B, ">="&fecha_inicial, Registros!B:B, "<=" & fecha_final, Registros!I:I, "="& '02'!A11)), 0) -> 50 | E11: =IF(A11<>"", IF(VLOOKUP(A11, plan_cuentas, 4, FALSE)="H", SUMIFS(Registros!H:H, Registros!B:B, "<=" & fecha_final, Registros!I:I, "=" & A11)-SUMIFS(Registros!G:G, Registros!B:B, "<=" & fecha_final, Registros!I:I, "=" & A11), SUMIFS(Registros!G:G, Registros!B:B, "<=" & fecha_final, Registros!I:I, "=" & A11)-SUMIFS(Registros!H:H, Registros!B:B, "<=" & fecha_final, Registros!I:I, "=" & A11)), 0) -> 230 | F11: =D11-C11 -> 50 | G11: =IFERROR(F11/C11, 0) -> 0 | H11: =IFERROR(D11/$D$8, 0) -> 0.01307360439
A12: 410300 | B12: DONACIONES | C12: =IF(A12<>"", IF(VLOOKUP(A12, plan_cuentas, 4, FALSE)="H", SUMIFS(Registros!H:H, Registros!B:B, ">="&init_before, Registros!B:B, "<=" & final_before, Registros!I:I, "="& '02'!A12)-SUMIFS(Registros!G:G, Registros!B:B, ">="&init_before, Registros!B:B, "<=" & final_before, Registros!I:I, "="& '02'!A12), SUMIFS(Registros!G:G, Registros!B:B, ">="&init_before, Registros!B:B, "<=" & final_before, Registros!I:I, "="& '02'!A12)-SUMIFS(Registros!H:H, Registros!B:B, ">="&init_before, Registros!B:B, "<=" & final_before, Registros!I:I, "="& '02'!A12)), 0) -> 0 | D12: =IF(A12<>"", IF(VLOOKUP(A12, plan_cuentas, 4, FALSE)="H", SUMIFS(Registros!H:H, Registros!B:B, ">="&fecha_inicial, Registros!B:B, "<=" & fecha_final, Registros!I:I, "="& '02'!A12)-SUMIFS(Registros!G:G, Registros!B:B, ">="& fecha_inicial, Registros!B:B, "<=" & fecha_final, Registros!I:I, "="& '02'!A12), SUMIFS(Registros!G:G, Registros!B:B, ">="&fecha_inicial, Registros!B:B, "<=" & fecha_final, Registros!I:I, "="& '02'!A12)-SUMIFS(Registros!H:H, Registros!B:B, ">="&fecha_inicial, Registros!B:B, "<=" & fecha_final, Registros!I:I, "="& '02'!A12)), 0) -> 0 | E12: =IF(A12<>"", IF(VLOOKUP(A12, plan_cuentas, 4, FALSE)="H", SUMIFS(Registros!H:H, Registros!B:B, "<=" & fecha_final, Registros!I:I, "=" & A12)-SUMIFS(Registros!G:G, Registros!B:B, "<=" & fecha_final, Registros!I:I, "=" & A12), SUMIFS(Registros!G:G, Registros!B:B, "<=" & fecha_final, Registros!I:I, "=" & A12)-SUMIFS(Registros!H:H, Registros!B:B, "<=" & fecha_final, Registros!I:I, "=" & A12)), 0) -> 0 | F12: =D12-C12 -> 0 | G12: 0 | H12: 0
A13: 410400 | B13: =IF(A13<>"", IFERROR(VLOOKUP(A13, plan_cuentas, 2, FALSE), "CÓDIGO INCORRECTO"), "") -> DIEZMOS | C13: =IF(A13<>"", IF(VLOOKUP(A13, plan_cuentas, 4, FALSE)="H", SUMIFS(Registros!H:H, Registros!B:B, ">="&init_before, Registros!B:B, "<=" & final_before, Registros!I:I, "="& '02'!A13)-SUMIFS(Registros!G:G, Registros!B:B, ">="&init_before, Registros!B:B, "<=" & final_before, Registros!I:I, "="& '02'!A13), SUMIFS(Registros!G:G, Registros!B:B, ">="&init_before, Registros!B:B, "<=" & final_before, Registros!I:I, "="& '02'!A13)-SUMIFS(Registros!H:H, Registros!B:B, ">="&init_before, Registros!B:B, "<=" & final_before, Registros!I:I, "="& '02'!A13)), 0) -> 100 | D13: =IF(A13<>"", IF(VLOOKUP(A13, plan_cuentas, 4, FALSE)="H", SUMIFS(Registros!H:H, Registros!B:B, ">="&fecha_inicial, Registros!B:B, "<=" & fecha_final, Registros!I:I, "="& '02'!A13)-SUMIFS(Registros!G:G, Registros!B:B, ">="& fecha_inicial, Registros!B:B, "<=" & fecha_final, Registros!I:I, "="& '02'!A13), SUMIFS(Registros!G:G, Registros!B:B, ">="&fecha_inicial, Registros!B:B, "<=" & fecha_final, Registros!I:I, "="& '02'!A13)-SUMIFS(Registros!H:H, Registros!B:B, ">="&fecha_inicial, Registros!B:B, "<=" & fecha_final, Registros!I:I, "="& '02'!A13)), 0) -> 3200 | E13: =IF(A13<>"", IF(VLOOKUP(A13, plan_cuentas, 4, FALSE)="H", SUMIFS(Registros!H:H, Registros!B:B, "<=" & fecha_final, Registros!I:I, "=" & A13)-SUMIFS(Registros!G:G, Registros!B:B, "<=" & fecha_final, Registros!I:I, "=" & A13), SUMIFS(Registros!G:G, Registros!B:B, "<=" & fecha_final, Registros!I:I, "=" & A13)-SUMIFS(Registros!H:H, Registros!B:B, "<=" & fecha_final, Registros!I:I, "=" & A13)), 0) -> 7577 | F13: =D13-C13 -> 3100 | G13: =IFERROR(F13/C13, 0) -> 31 | H13: =IFERROR(D13/$D$8, 0) -> 0.8367106811
A14: 600000 | B14: GASTOS | C14: =C15+C22 -> 950 | D14: =D15+D22 -> 4910.09 | E14: =E15+E22 -> 14900.71 | F14: 3960.09 | G14: 4.168515789 | H14: 1.283851484
A15: 610000 | B15: GASTOS OPERATIVOS | C15: =SUM(C16:C20) -> 550 | D15: =SUM(D16:D20) -> 1710.09 | E15: 7323.71 | F15: 1160.09 | G15: =SUM(G16:G20) -> 3.56 | H15: =SUM(H16:H20) -> 0.4471408027
A16: 610100 | B16: GASTOS BASICOS | C16: =IF(A16<>"", IF(VLOOKUP(A16, plan_cuentas, 4, FALSE)="H", SUMIFS(Registros!H:H, Registros!B:B, ">="&init_before, Registros!B:B, "<=" & final_before, Registros!I:I, "="& '02'!A16)-SUMIFS(Registros!G:G, Registros!B:B, ">="&init_before, Registros!B:B, "<=" & final_before, Registros!I:I, "="& '02'!A16), SUMIFS(Registros!G:G, Registros!B:B, ">="&init_before, Registros!B:B, "<=" & final_before, Registros!I:I, "="& '02'!A16)-SUMIFS(Registros!H:H, Registros!B:B, ">="&init_before, Registros!B:B, "<=" & final_before, Registros!I:I, "="& '02'!A16)), 0) -> 0 | D16: =IF(A16<>"", IF(VLOOKUP(A16, plan_cuentas, 4, FALSE)="H", SUMIFS(Registros!H:H, Registros!B:B, ">="&fecha_inicial, Registros!B:B, "<=" & fecha_final, Registros!I:I, "="& '02'!A16)-SUMIFS(Registros!G:G, Registros!B:B, ">="& fecha_inicial, Registros!B:B, "<=" & fecha_final, Registros!I:I, "="& '02'!A16), SUMIFS(Registros!G:G, Registros!B:B, ">="&fecha_inicial, Registros!B:B, "<=" & fecha_final, Registros!I:I, "="& '02'!A16)-SUMIFS(Registros!H:H, Registros!B:B, ">="&fecha_inicial, Registros!B:B, "<=" & fecha_final, Registros!I:I, "="& '02'!A16)), 0) -> 100.09 | E16: =IF(A16<>"", IF(VLOOKUP(A16, plan_cuentas, 4, FALSE)="H", SUMIFS(Registros!H:H, Registros!B:B, "<=" & fecha_final, Registros!I:I, "=" & A16)-SUMIFS(Registros!G:G, Registros!B:B, "<=" & fecha_final, Registros!I:I, "=" & A16), SUMIFS(Registros!G:G, Registros!B:B, "<=" & fecha_final, Registros!I:I, "=" & A16)-SUMIFS(Registros!H:H, Registros!B:B, "<=" & fecha_final, Registros!I:I, "=" & A16)), 0) -> 555.71 | F16: =D16-C16 -> 100.09 | G16: 0 | H16: 0.02617074127
A17: 610200 | B17: =IF(A17<>"", IFERROR(VLOOKUP(A17, plan_cuentas, 2, FALSE), "CÓDIGO INCORRECTO"), "") -> GASTOS DE MANTENIMIENTO | C17: =IF(A17<>"", IF(VLOOKUP(A17, plan_cuentas, 4, FALSE)="H", SUMIFS(Registros!H:H, Registros!B:B, ">="&init_before, Registros!B:B, "<=" & final_before, Registros!I:I, "="& '02'!A17)-SUMIFS(Registros!G:G, Registros!B:B, ">="&init_before, Registros!B:B, "<=" & final_before, Registros!I:I, "="& '02'!A17), SUMIFS(Registros!G:G, Registros!B:B, ">="&init_before, Registros!B:B, "<=" & final_before, Registros!I:I, "="& '02'!A17)-SUMIFS(Registros!H:H, Registros!B:B, ">="&init_before, Registros!B:B, "<=" & final_before, Registros!I:I, "="& '02'!A17)), 0) -> 500 | D17: =IF(A17<>"", IF(VLOOKUP(A17, plan_cuentas, 4, FALSE)="H", SUMIFS(Registros!H:H, Registros!B:B, ">="&fecha_inicial, Registros!B:B, "<=" & fecha_final, Registros!I:I, "="& '02'!A17)-SUMIFS(Registros!G:G, Registros!B:B, ">="& fecha_inicial, Registros!B:B, "<=" & fecha_final, Registros!I:I, "="& '02'!A17), SUMIFS(Registros!G:G, Registros!B:B, ">="&fecha_inicial, Registros!B:B, "<=" & fecha_final, Registros!I:I, "="& '02'!A17)-SUMIFS(Registros!H:H, Registros!B:B, ">="&fecha_inicial, Registros!B:B, "<=" & fecha_final, Registros!I:I, "="& '02'!A17)), 0) -> 1480 | E17: =IF(A17<>"", IF(VLOOKUP(A17, plan_cuentas, 4, FALSE)="H", SUMIFS(Registros!H:H, Registros!B:B, "<=" & fecha_final, Registros!I:I, "=" & A17)-SUMIFS(Registros!G:G, Registros!B:B, "<=" & fecha_final, Registros!I:I, "=" & A17), SUMIFS(Registros!G:G, Registros!B:B, "<=" & fecha_final, Registros!I:I, "=" & A17)-SUMIFS(Registros!H:H, Registros!B:B, "<=" & fecha_final, Registros!I:I, "=" & A17)), 0) -> 4680 | F17: =D17-C17 -> 980 | G17: =IFERROR(F17/C17, 0) -> 1.96 | H17: =IFERROR(D17/$D$8, 0) -> 0.38697869
A18: 610300 | B18: =IF(A18<>"", IFERROR(VLOOKUP(A18, plan_cuentas, 2, FALSE), "CÓDIGO INCORRECTO"), "") -> GASTOS DE REPRESENTACION | C18: =IF(A18<>"", IF(VLOOKUP(A18, plan_cuentas, 4, FALSE)="H", SUMIFS(Registros!H:H, Registros!B:B, ">="&init_before, Registros!B:B, "<=" & final_before, Registros!I:I, "="& '02'!A18)-SUMIFS(Registros!G:G, Registros!B:B, ">="&init_before, Registros!B:B, "<=" & final_before, Registros!I:I, "="& '02'!A18), SUMIFS(Registros!G:G, Registros!B:B, ">="&init_before, Registros!B:B, "<=" & final_before, Registros!I:I, "="& '02'!A18)-SUMIFS(Registros!H:H, Registros!B:B, ">="&init_before, Registros!B:B, "<=" & final_before, Registros!I:I, "="& '02'!A18)), 0) -> 50 | D18: =IF(A18<>"", IF(VLOOKUP(A18, plan_cuentas, 4, FALSE)="H", SUMIFS(Registros!H:H, Registros!B:B, ">="&fecha_inicial, Registros!B:B, "<=" & fecha_final, Registros!I:I, "="& '02'!A18)-SUMIFS(Registros!G:G, Registros!B:B, ">="& fecha_inicial, Registros!B:B, "<=" & fecha_final, Registros!I:I, "="& '02'!A18), SUMIFS(Registros!G:G, Registros!B:B, ">="&fecha_inicial, Registros!B:B, "<=" & fecha_final, Registros!I:I, "="& '02'!A18)-SUMIFS(Registros!H:H, Registros!B:B, ">="&fecha_inicial, Registros!B:B, "<=" & fecha_final, Registros!I:I, "="& '02'!A18)), 0) -> 130 | E18: =IF(A18<>"", IF(VLOOKUP(A18, plan_cuentas, 4, FALSE)="H", SUMIFS(Registros!H:H, Registros!B:B, "<=" & fecha_final, Registros!I:I, "=" & A18)-SUMIFS(Registros!G:G, Registros!B:B, "<=" & fecha_final, Registros!I:I, "=" & A18), SUMIFS(Registros!G:G, Registros!B:B, "<=" & fecha_final, Registros!I:I, "=" & A18)-SUMIFS(Registros!H:H, Registros!B:B, "<=" & fecha_final, Registros!I:I, "=" & A18)), 0) -> 1399 | F18: =D18-C18 -> 80 | G18: =IFERROR(F18/C18, 0) -> 1.6 | H18: =IFERROR(D18/$D$8, 0) -> 0.03399137142
A19: 610400 | B19: =IF(A19<>"", IFERROR(VLOOKUP(A19, plan_cuentas, 2, FALSE), "CÓDIGO INCORRECTO"), "") -> MATERIALES Y SUMINISTROS | C19: =IF(A19<>"", IF(VLOOKUP(A19, plan_cuentas, 4, FALSE)="H", SUMIFS(Registros!H:H, Registros!B:B, ">="&init_before, Registros!B:B, "<=" & final_before, Registros!I:I, "="& '02'!A19)-SUMIFS(Registros!G:G, Registros!B:B, ">="&init_before, Registros!B:B, "<=" & final_before, Registros!I:I, "="& '02'!A19), SUMIFS(Registros!G:G, Registros!B:B, ">="&init_before, Registros!B:B, "<=" & final_before, Registros!I:I, "="& '02'!A19)-SUMIFS(Registros!H:H, Registros!B:B, ">="&init_before, Registros!B:B, "<=" & final_before, Registros!I:I, "="& '02'!A19)), 0) -> 0 | D19: =IF(A19<>"", IF(VLOOKUP(A19, plan_cuentas, 4, FALSE)="H", SUMIFS(Registros!H:H, Registros!B:B, ">="&fecha_inicial, Registros!B:B, "<=" & fecha_final, Registros!I:I, "="& '02'!A19)-SUMIFS(Registros!G:G, Registros!B:B, ">="& fecha_inicial, Registros!B:B, "<=" & fecha_final, Registros!I:I, "="& '02'!A19), SUMIFS(Registros!G:G, Registros!B:B, ">="&fecha_inicial, Registros!B:B, "<=" & fecha_final, Registros!I:I, "="& '02'!A19)-SUMIFS(Registros!H:H, Registros!B:B, ">="&fecha_inicial, Registros!B:B, "<=" & fecha_final, Registros!I:I, "="& '02'!A19)), 0) -> 0 | E19: =IF(A19<>"", IF(VLOOKUP(A19, plan_cuentas, 4, FALSE)="H", SUMIFS(Registros!H:H, Registros!B:B, "<=" & fecha_final, Registros!I:I, "=" & A19)-SUMIFS(Registros!G:G, Registros!B:B, "<=" & fecha_final, Registros!I:I, "=" & A19), SUMIFS(Registros!G:G, Registros!B:B, "<=" & fecha_final, Registros!I:I, "=" & A19)-SUMIFS(Registros!H:H, Registros!B:B, "<=" & fecha_final, Registros!I:I, "=" & A19)), 0) -> 474 | F19: =D19-C19 -> 0 | G19: =IFERROR(F19/C19, 0) -> 0 | H19: =IFERROR(D19/$D$8, 0) -> 0
A20: 610500 | B20: GASTO SOCIAL Y CELEBRACIONES | C20: =IF(A20<>"", IF(VLOOKUP(A20, plan_cuentas, 4, FALSE)="H", SUMIFS(Registros!H:H, Registros!B:B, ">="&init_before, Registros!B:B, "<=" & final_before, Registros!I:I, "="& '02'!A20)-SUMIFS(Registros!G:G, Registros!B:B, ">="&init_before, Registros!B:B, "<=" & final_before, Registros!I:I, "="& '02'!A20), SUMIFS(Registros!G:G, Registros!B:B, ">="&init_before, Registros!B:B, "<=" & final_before, Registros!I:I, "="& '02'!A20)-SUMIFS(Registros!H:H, Registros!B:B, ">="&init_before, Registros!B:B, "<=" & final_before, Registros!I:I, "="& '02'!A20)), 0) -> 0 | D20: =IF(A20<>"", IF(VLOOKUP(A20, plan_cuentas, 4, FALSE)="H", SUMIFS(Registros!H:H, Registros!B:B, ">="&fecha_inicial, Registros!B:B, "<=" & fecha_final, Registros!I:I, "="& '02'!A20)-SUMIFS(Registros!G:G, Registros!B:B, ">="& fecha_inicial, Registros!B:B, "<=" & fecha_final, Registros!I:I, "="& '02'!A20), SUMIFS(Registros!G:G, Registros!B:B, ">="&fecha_inicial, Registros!B:B, "<=" & fecha_final, Registros!I:I, "="& '02'!A20)-SUMIFS(Registros!H:H, Registros!B:B, ">="&fecha_inicial, Registros!B:B, "<=" & fecha_final, Registros!I:I, "="& '02'!A20)), 0) -> 0 | E20: =IF(A20<>"", IF(VLOOKUP(A20, plan_cuentas, 4, FALSE)="H", SUMIFS(Registros!H:H, Registros!B:B, "<=" & fecha_final, Registros!I:I, "=" & A20)-SUMIFS(Registros!G:G, Registros!B:B, "<=" & fecha_final, Registros!I:I, "=" & A20), SUMIFS(Registros!G:G, Registros!B:B, "<=" & fecha_final, Registros!I:I, "=" & A20)-SUMIFS(Registros!H:H, Registros!B:B, "<=" & fecha_final, Registros!I:I, "=" & A20)), 0) -> 215 | F20: =D20-C20 -> 0 | G20: =IFERROR(F20/C20, 0) -> 0 | H20: =IFERROR(D20/$D$8, 0) -> 0
B21: FONDO NETO DE OPERACIONES | C21: =C9-C15 -> -437.96 | D21: =D9-D15 -> 2114.41 | E21: 5155.56 | F21: 2552.37 | G21: =IFERROR(F21/C21, 0) -> -5.827860992 | H21: =IFERROR(D21/$D$8, 0) -> 0.5528591973
A22: 620000 | B22: OTROS GASTOS | C22: =SUM(C23:C23) -> 400 | D22: =SUM(D23:D23) -> 3200 | E22: 7577 | F22: 2800 | G22: 7 | H22: 0.8367106811
A23: 620100 | B23: LIQUIDACIÓN DE DIEZMOS | C23: =SUM(C24:C25) -> 400 | D23: =SUM(D24:D25) -> 3200 | E23: 7577 | F23: 2800 | G23: 7 | H23: 0.8367106811
A24: 620101 | B24: =IF(A24<>"", IFERROR(VLOOKUP(A24, plan_cuentas, 2, FALSE), "CÓDIGO INCORRECTO"), "") -> DIEZMOS PARA EL PASTOR | C24: =IF(A24<>"", IF(VLOOKUP(A24, plan_cuentas, 4, FALSE)="H", SUMIFS(Registros!H:H, Registros!B:B, ">="&init_before, Registros!B:B, "<=" & final_before, Registros!C:C, "="& '02'!A24)-SUMIFS(Registros!G:G, Registros!B:B, ">="&init_before, Registros!B:B, "<=" & final_before, Registros!C:C, "="& '02'!A24), SUMIFS(Registros!G:G, Registros!B:B, ">="&init_before, Registros!B:B, "<=" & final_before, Registros!C:C, "="& '02'!A24)-SUMIFS(Registros!H:H, Registros!B:B, ">="&init_before, Registros!B:B, "<=" & final_before, Registros!C:C, "="& '02'!A24)), 0) -> 360 | D24: =IF(A24<>"", IF(VLOOKUP(A24, plan_cuentas, 4, FALSE)="H", SUMIFS(Registros!H:H, Registros!B:B, ">="&fecha_inicial, Registros!B:B, "<=" & fecha_final, Registros!C:C, "="& A24)-SUMIFS(Registros!G:G, Registros!B:B, ">="& fecha_inicial, Registros!B:B, "<=" & fecha_final, Registros!C:C, "="& A24), SUMIFS(Registros!G:G, Registros!B:B, ">="&fecha_inicial, Registros!B:B, "<=" & fecha_final, Registros!C:C, "="& A24)-SUMIFS(Registros!H:H, Registros!B:B, ">="&fecha_inicial, Registros!B:B, "<=" & fecha_final, Registros!C:C, "="& A24)), 0) -> 2880 | E24: =IF(A24<>"", IF(VLOOKUP(A24, plan_cuentas, 4, FALSE)="H", SUMIFS(Registros!H:H, Registros!B:B, "<=" & fecha_final, Registros!C:C, "=" & A24)-SUMIFS(Registros!G:G, Registros!B:B, "<=" & fecha_final, Registros!C:C, "=" & A24), SUMIFS(Registros!G:G, Registros!B:B, "<=" & fecha_final, Registros!C:C, "=" & A24)-SUMIFS(Registros!H:H, Registros!B:B, "<=" & fecha_final, Registros!C:C, "=" & A24)), 0) -> 6819 | F24: =D24-C24 -> 2520 | G24: =IFERROR(F24/C24, 0) -> 7 | H24: =IFERROR(D24/$D$8, 0) -> 0.753039613
A25: 620102 | B25: =IF(A25<>"", IFERROR(VLOOKUP(A25, plan_cuentas, 2, FALSE), "CÓDIGO INCORRECTO"), "") -> DIEZMOS DE DIEZMOS | C25: =IF(A25<>"", IF(VLOOKUP(A25, plan_cuentas, 4, FALSE)="H", SUMIFS(Registros!H:H, Registros!B:B, ">="&init_before, Registros!B:B, "<=" & final_before, Registros!C:C, "="& A25)-SUMIFS(Registros!G:G, Registros!B:B, ">="&init_before, Registros!B:B, "<=" & final_before, Registros!C:C, "="& A25), SUMIFS(Registros!G:G, Registros!B:B, ">="&init_before, Registros!B:B, "<=" & final_before, Registros!C:C, "="& A25)-SUMIFS(Registros!H:H, Registros!B:B, ">="&init_before, Registros!B:B, "<=" & final_before, Registros!C:C, "="& A25)), 0) -> 40 | D25: =IF(A25<>"", IF(VLOOKUP(A25, plan_cuentas, 4, FALSE)="H", SUMIFS(Registros!H:H, Registros!B:B, ">="&fecha_inicial, Registros!B:B, "<=" & fecha_final, Registros!C:C, "="& A25)-SUMIFS(Registros!G:G, Registros!B:B, ">="& fecha_inicial, Registros!B:B, "<=" & fecha_final, Registros!C:C, "="& A25), SUMIFS(Registros!G:G, Registros!B:B, ">="&fecha_inicial, Registros!B:B, "<=" & fecha_final, Registros!C:C, "="& A25)-SUMIFS(Registros!H:H, Registros!B:B, ">="&fecha_inicial, Registros!B:B, "<=" & fecha_final, Registros!C:C, "="& A25)), 0) -> 320 | E25: =IF(A25<>"", IF(VLOOKUP(A25, plan_cuentas, 4, FALSE)="H", SUMIFS(Registros!H:H, Registros!B:B, "<=" & fecha_final, Registros!C:C, "=" & A25)-SUMIFS(Registros!G:G, Registros!B:B, "<=" & fecha_final, Registros!C:C, "=" & A25), SUMIFS(Registros!G:G, Registros!B:B, "<=" & fecha_final, Registros!C:C, "=" & A25)-SUMIFS(Registros!H:H, Registros!B:B, "<=" & fecha_final, Registros!C:C, "=" & A25)), 0) -> 758 | F25: =D25-C25 -> 280 | G25: =IFERROR(F25/C25, 0) -> 7 | H25: =IFERROR(D25/$D$8, 0) -> 0.08367106811
A26: 310301 | B26: FONDOS DEL PERÍODO | C26: =C21-C22 -> -837.96 | D26: =D21-D22 -> -1085.59 | E26: =E21-E22 -> -2421.44 | F26: -247.63 | G26: =IFERROR(F26/C26, 0) -> 0.2955152991 | H26: =IFERROR(D26/$D$8, 0) -> -0.2838514839
B31: ELABORADO POR: | F31: AUTORIZADO POR:
B32: =IF(B31<>"", VLOOKUP(B31, users, 3, FALSE), "") -> Berta María Mora Alvarado | F32: =IF(F31<>"", VLOOKUP(F31, users, 3, FALSE), "") -> Socorro Sandoval

Sheet 03
E1: Proteger
A2: =bussiness_name -> IGLESIA ESTRELLA DE BELÉN
A3: BALANCE GENERAL CONSOLIDADO
A4: =" AL "&TEXT(fecha_final, "DD")&" DE "&UPPER(TEXT(fecha_final, "MMMM"))&" DEL "&TEXT(fecha_final, "YYYY") -> AL 29 DE OCTUBRE DEL 2016
A5: =address & " *** Tel/Fax: " & tel & " *** " & email -> SAN MARCOS *** Tel/Fax: ***
A6: CÓDIGO CUENTA | B6: DESCRIPCIÓN DE LA CUENTA | E6: CÓDIGO CUENTA | F6: DESCRIPCIÓN DE LA CUENTA
A7: 100000 | B7: =IF(A7<>"", IFERROR(VLOOKUP(A7, plan_cuentas, 2, FALSE), "CÓDIGO INCORRECTO"), "") -> ACTIVOS | E7: 200000 | F7: =IF(E7<>"", IFERROR(VLOOKUP(E7, plan_cuentas, 2, FALSE), "CÓDIGO INCORRECTO"), "") -> PASIVOS
A8: 110000 | B8: ACTIVOS CORRIENTES | E8: 210000 | F8: PASIVOS CORRIENTES
A9: 110100 | B9: CAJA | C9: =IF(A9<>"", IF(VLOOKUP(A9, plan_cuentas, 4, FALSE)="H", SUMIFS(Registros!H:H, Registros!B:B, "<=" & fecha_final, Registros!I:I, "="& '03'!A9)-SUMIFS(Registros!G:G, Registros!B:B, "<=" & fecha_final, Registros!I:I, "="& '03'!A9), SUMIFS(Registros!G:G, Registros!B:B, "<=" & fecha_final, Registros!I:I, "="& '03'!A9)-SUMIFS(Registros!H:H, Registros!B:B, "<=" & fecha_final, Registros!I:I, "="& '03'!A9)), 0) -> 148.01 | E9: 210100 | F9: PROVEEDORES | G9: =IF(E9<>"", IF(VLOOKUP(E9, plan_cuentas, 4, FALSE)="H", SUMIFS(Registros!H:H, Registros!B:B, "<=" & fecha_final, Registros!I:I, "="& '03'!E9)-SUMIFS(Registros!G:G, Registros!B:B, "<=" & fecha_final, Registros!I:I, "="& '03'!E9), SUMIFS(Registros!G:G, Registros!B:B, "<=" & fecha_final, Registros!I:I, "="& '03'!E9)-SUMIFS(Registros!H:H, Registros!B:B, "<=" & fecha_final, Registros!I:I, "="& '03'!E9)), 0) -> 0
A10: 110400 | B10: =IF(A10<>"", IFERROR(VLOOKUP(A10, plan_cuentas, 2, FALSE), "CÓDIGO INCORRECTO"), "") -> INVENTARIOS | C10: =IF(A10<>"", IF(VLOOKUP(A10, plan_cuentas, 4, FALSE)="H", SUMIFS(Registros!H:H, Registros!B:B, "<=" & fecha_final, Registros!I:I, "="& '03'!A10)-SUMIFS(Registros!G:G, Registros!B:B, "<=" & fecha_final, Registros!I:I, "="& '03'!A10), SUMIFS(Registros!G:G, Registros!B:B, "<=" & fecha_final, Registros!I:I, "="& '03'!A10)-SUMIFS(Registros!H:H, Registros!B:B, "<=" & fecha_final, Registros!I:I, "="& '03'!A10)), 0) -> 0 | E10: 210200 | F10: DOCUMENTOS POR PAGAR | G10: =IF(E10<>"", IF(VLOOKUP(E10, plan_cuentas, 4, FALSE)="H", SUMIFS(Registros!H:H, Registros!B:B, "<=" & fecha_final, Registros!I:I, "="& '03'!E10)-SUMIFS(Registros!G:G, Registros!B:B, "<=" & fecha_final, Registros!I:I, "="& '03'!E10), SUMIFS(Registros!G:G, Registros!B:B, "<=" & fecha_final, Registros!I:I, "="& '03'!E10)-SUMIFS(Registros!H:H, Registros!B:B, "<=" & fecha_final, Registros!I:I, "="& '03'!E10)), 0) -> 0
A11: 110600 | B11: MATERIALES Y SUMINISTROS | C11: =IF(A11<>"", IF(VLOOKUP(A11, plan_cuentas, 4, FALSE)="H", SUMIFS(Registros!H:H, Registros!B:B, "<=" & fecha_final, Registros!I:I, "="& '03'!A11)-SUMIFS(Registros!G:G, Registros!B:B, "<=" & fecha_final, Registros!I:I, "="& '03'!A11), SUMIFS(Registros!G:G, Registros!B:B, "<=" & fecha_final, Registros!I:I, "="& '03'!A11)-SUMIFS(Registros!H:H, Registros!B:B, "<=" & fecha_final, Registros!I:I, "="& '03'!A11)), 0) -> 0 | E11: 210500 | F11: ACREEDORES DIVERSOS | G11: =IF(E11<>"", IF(VLOOKUP(E11, plan_cuentas, 4, FALSE)="H", SUMIFS(Registros!H:H, Registros!B:B, "<=" & fecha_final, Registros!I:I, "="& '03'!E11)-SUMIFS(Registros!G:G, Registros!B:B, "<=" & fecha_final, Registros!I:I, "="& '03'!E11), SUMIFS(Registros!G:G, Registros!B:B, "<=" & fecha_final, Registros!I:I, "="& '03'!E11)-SUMIFS(Registros!H:H, Registros!B:B, "<=" & fecha_final, Registros!I:I, "="& '03'!E11)), 0) -> 0
A12: 110700 | B12: MATERIAL DE RESPOSICIÓN PERIÓDICA | C12: =IF(A12<>"", IF(VLOOKUP(A12, plan_cuentas, 4, FALSE)="H", SUMIFS(Registros!H:H, Registros!B:B, "<=" & fecha_final, Registros!I:I, "="& '03'!A12)-SUMIFS(Registros!G:G, Registros!B:B, "<=" & fecha_final, Registros!I:I, "="& '03'!A12), SUMIFS(Registros!G:G, Registros!B:B, "<=" & fecha_final, Registros!I:I, "="& '03'!A12)-SUMIFS(Registros!H:H, Registros!B:B, "<=" & fecha_final, Registros!I:I, "="& '03'!A12)), 0) -> 0 | F12: SUB TOTAL PASIVOS CORRIENTES | G12: =SUM(G9:G11) -> 0
B13: SUB TOTAL ACTIVOS CORRIENTES | C13: =SUM(C9:C12) -> 148.01 | F13: TOTAL PASIVOS | G13: =SUM(G12) -> 0
A14: 120000 | B14: =IF(A14<>"", IFERROR(VLOOKUP(A14, plan_cuentas, 2, FALSE), "CÓDIGO INCORRECTO"), "") -> ACTIVOS NO CORRIENTES | E14: 300000 | F14: =IF(E14<>"", IFERROR(VLOOKUP(E14, plan_cuentas, 2, FALSE), "CÓDIGO INCORRECTO"), "") -> PATRIMONIO
A15: 120100 | B15: TERRENOS | C15: =IF(A15<>"", IF(VLOOKUP(A15, plan_cuentas, 4, FALSE)="H", SUMIFS(Registros!H:H, Registros!B:B, "<=" & fecha_final, Registros!I:I, "="& '03'!A15)-SUMIFS(Registros!G:G, Registros!B:B, "<=" & fecha_final, Registros!I:I, "="& '03'!A15), SUMIFS(Registros!G:G, Registros!B:B, "<=" & fecha_final, Registros!I:I, "="& '03'!A15)-SUMIFS(Registros!H:H, Registros!B:B, "<=" & fecha_final, Registros!I:I, "="& '03'!A15)), 0) -> 0 | E15: 310000 | F15: =IF(E15<>"", IFERROR(VLOOKUP(E15, plan_cuentas, 2, FALSE), "CÓDIGO INCORRECTO"), "") -> FONDO DE LA IGLESIA
A16: 120200 | B16: EDIFICIOS | C16: =IF(A16<>"", IF(VLOOKUP(A16, plan_cuentas, 4, FALSE)="H", SUMIFS(Registros!H:H, Registros!B:B, "<=" & fecha_final, Registros!I:I, "="& '03'!A16)-SUMIFS(Registros!G:G, Registros!B:B, "<=" & fecha_final, Registros!I:I, "="& '03'!A16), SUMIFS(Registros!G:G, Registros!B:B, "<=" & fecha_final, Registros!I:I, "="& '03'!A16)-SUMIFS(Registros!H:H, Registros!B:B, "<=" & fecha_final, Registros!I:I, "="& '03'!A16)), 0) -> 0 | E16: 310100 | F16: =IF(E16<>"", IFERROR(VLOOKUP(E16, plan_cuentas, 2, FALSE), "CÓDIGO INCORRECTO"), "") -> FONDO INICIAL | G16: =IF(E16<>"", IF(VLOOKUP(E16, plan_cuentas, 4, FALSE)="H", SUMIFS(Registros!H:H, Registros!B:B, "<=" & fecha_final, Registros!I:I, "="& '03'!E16)-SUMIFS(Registros!G:G, Registros!B:B, "<=" & fecha_final, Registros!I:I, "="& '03'!E16), SUMIFS(Registros!G:G, Registros!B:B, "<=" & fecha_final, Registros!I:I, "="& '03'!E16)-SUMIFS(Registros!H:H, Registros!B:B, "<=" & fecha_final, Registros!I:I, "="& '03'!E16)), 0) -> 2569.45
A17: 120300 | B17: EQUIPO | C17: =IF(A17<>"", IF(VLOOKUP(A17, plan_cuentas, 4, FALSE)="H", SUMIFS(Registros!H:H, Registros!B:B, "<=" & fecha_final, Registros!I:I, "="& '03'!A17)-SUMIFS(Registros!G:G, Registros!B:B, "<=" & fecha_final, Registros!I:I, "="& '03'!A17), SUMIFS(Registros!G:G, Registros!B:B, "<=" & fecha_final, Registros!I:I, "="& '03'!A17)-SUMIFS(Registros!H:H, Registros!B:B, "<=" & fecha_final, Registros!I:I, "="& '03'!A17)), 0) -> 0 | E17: 310200 | F17: =IF(E17<>"", IFERROR(VLOOKUP(E17, plan_cuentas, 2, FALSE), "CÓDIGO INCORRECTO"), "") -> FONDOS ACUMULADOS | G17: =IF(E17<>"", IF(VLOOKUP(E17, plan_cuentas, 4, FALSE)="H", SUMIFS(Registros!H:H, Registros!B:B, "<=" & fecha_final, Registros!I:I, "="& '03'!E17)-SUMIFS(Registros!G:G, Registros!B:B, "<=" & fecha_final, Registros!I:I, "="& '03'!E17), SUMIFS(Registros!G:G, Registros!B:B, "<=" & fecha_final, Registros!I:I, "="& '03'!E17)-SUMIFS(Registros!H:H, Registros!B:B, "<=" & fecha_final, Registros!I:I, "="& '03'!E17)), 0) -> 0
A18: 120400 | B18: MOBILIARIO | C18: =IF(A18<>"", IF(VLOOKUP(A18, plan_cuentas, 4, FALSE)="H", SUMIFS(Registros!H:H, Registros!B:B, "<=" & fecha_final, Registros!I:I, "="& '03'!A18)-SUMIFS(Registros!G:G, Registros!B:B, "<=" & fecha_final, Registros!I:I, "="& '03'!A18), SUMIFS(Registros!G:G, Registros!B:B, "<=" & fecha_final, Registros!I:I, "="& '03'!A18)-SUMIFS(Registros!H:H, Registros!B:B, "<=" & fecha_final, Registros!I:I, "="& '03'!A18)), 0) -> 0 | E18: 310300 | F18: =IF(E18<>"", IFERROR(VLOOKUP(E18, plan_cuentas, 2, FALSE), "CÓDIGO INCORRECTO"), "") -> FONDOS DEL PERÍODO | G18: ='02'!E26 -> -2421.44
A19: 120500 | B19: HERRAMIENTAS Y ENSERES | C19: =IF(A19<>"", IF(VLOOKUP(A19, plan_cuentas, 4, FALSE)="H", SUMIFS(Registros!H:H, Registros!B:B, "<=" & fecha_final, Registros!I:I, "="& '03'!A19)-SUMIFS(Registros!G:G, Registros!B:B, "<=" & fecha_final, Registros!I:I, "="& '03'!A19), SUMIFS(Registros!G:G, Registros!B:B, "<=" & fecha_final, Registros!I:I, "="& '03'!A19)-SUMIFS(Registros!H:H, Registros!B:B, "<=" & fecha_final, Registros!I:I, "="& '03'!A19)), 0) -> 0 | F19: TOTAL CAPITAL | G19: =SUM(G16:G18) -> 148.01
A20: 120600 | B20: ACCESORIOS Y REPUESTOS VARIOS | C20: =IF(A20<>"", IF(VLOOKUP(A20, plan_cuentas, 4, FALSE)="H", SUMIFS(Registros!H:H, Registros!B:B, "<=" & fecha_final, Registros!I:I, "="& '03'!A20)-SUMIFS(Registros!G:G, Registros!B:B, "<=" & fecha_final, Registros!I:I, "="& '03'!A20), SUMIFS(Registros!G:G, Registros!B:B, "<=" & fecha_final, Registros!I:I, "="& '03'!A20)-SUMIFS(Registros!H:H, Registros!B:B, "<=" & fecha_final, Registros!I:I, "="& '03'!A20)), 0) -> 0
A21: 130000 | B21: DEPRECIACIÓN ACUMULADA | C21: =IF(A21<>"", IF(VLOOKUP(A21, plan_cuentas, 4, FALSE)="H", SUMIFS(Registros!H:H, Registros!B:B, "<=" & fecha_final, Registros!I:I, "="& '03'!A21)-SUMIFS(Registros!G:G, Registros!B:B, "<=" & fecha_final, Registros!I:I, "="& '03'!A21), SUMIFS(Registros!G:G, Registros!B:B, "<=" & fecha_final, Registros!I:I, "="& '03'!A21)-SUMIFS(Registros!H:H, Registros!B:B, "<=" & fecha_final, Registros!I:I, "="& '03'!A21)), 0) -> 0
B22: SUB TOTAL ACTIVO NO CORRIENTE NETO | C22: =SUM(C15:C21) -> 0
B23: TOTAL ACTIVOS | C23: =C13+C22 -> 148.01 | F23: TOTAL PASIVO + CAPITAL | G23: =G13+G19 -> 148.01
C24: =ABS(C23-G23) -> 0
B26: ELABORADO POR: | F26: AUTORIZADO POR:
B27: =IF(B26<>"", VLOOKUP(B26, users, 3, FALSE), "") -> Berta María Mora Alvarado | F27: =IF(F26<>"", VLOOKUP(F26, users, 3, FALSE), "") -> Socorro Sandoval

Sheet 04
E1: Proteger
A2: =bussiness_name -> IGLESIA ESTRELLA DE BELÉN
A3: REPORTE DE TESORERÍA
A4: ="DEL "&TEXT(fecha_inicial, "DD")&" DE "&UPPER(TEXT(fecha_inicial, "MMMM"))&" DEL " & TEXT(fecha_inicial, "YYYY") & " AL "&TEXT(fecha_final, "DD")&" DE "&UPPER(TEXT(fecha_final, "MMMM"))&" DEL "&TEXT(fecha_final, "YYYY") -> DEL 02 DE OCTUBRE DEL 2016 AL 29 DE OCTUBRE DEL 2016
A5: =address & " *** Tel/Fax: " & tel & " *** " & email -> SAN MARCOS *** Tel/Fax: ***
A7: CÓDIGO | B7: INGRESOS TOTALES DEL MES | F7: =E8+E13 -> 824.5
A8: 410100 | B8: =IFERROR(IF(A8<>"", VLOOKUP(A8, plan_cuentas,2, FALSE), ""), "CÓDIGO INCORRECTO") -> OFRENDAS GENERALES | E8: =SUM(D9:D11) -> 774.5
A9: 410101 | B9: OFRENDAS DE MIEMBROS | D9: =IF(A9<>"", SUMIFS(Registros!H:H, Registros!B:B, ">=" & fecha_inicial, Registros!B:B, "<=" & fecha_final, Registros!C:C, "=" &A9), 0) -> 474.5
B10: REVERSION DE GASTO EN TRALADO CERAMICA | D10: 200
A11: 410102 | B11: OFRENDAS DE PARTICULARES | D11: =IF(A11<>"", SUMIFS(Registros!H:H, Registros!B:B, ">=" & fecha_inicial, Registros!B:B, "<=" & fecha_final, Registros!C:C, "=" &A11), 0) -> 100
B12: ORLANDO VELA
A13: 410200 | B13: OTROS APORTES DE MIEMBROS | E13: =SUM(D14) -> 50
A14: 410201 | B14: APORTES PARA GASTOS BASICOS | D14: =IF(A14<>"", SUMIFS(Registros!H:H, Registros!B:B, ">=" & fecha_inicial, Registros!B:B, "<=" & fecha_final, Registros!C:C, "=" &A14), 0) -> 50
B18: INMER CRUZ
B19: FONDO INICIAL EN EFECTIVO | F19: ='01'!C10 -> 1233.6
B20: FONDO DISPONIBLE TOTAL | F20: =F7+F19 -> 2058.1
B22: EGRESOS TOTALES DEL MES | F22: =SUM(E23:E31) -> 1910.09
A23: 610100 | B23: =IFERROR(IF(A23<>"", VLOOKUP(A23, plan_cuentas,2, FALSE), ""), "CÓDIGO INCORRECTO") -> GASTOS BASICOS | E23: =SUM(D24:D25) -> 100.09
A24: 610101 | B24: GASTO EN ENERGIA ELECTRICA | D24: =IF(A24<>"", SUMIFS(Registros!G:G, Registros!B:B, ">=" & fecha_inicial, Registros!B:B, "<=" & fecha_final, Registros!C:C, "=" &A24), 0) -> 70.56
A25: 610102 | B25: GASTO EN AGUA POTABLE | D25: =IF(A25<>"", SUMIFS(Registros!G:G, Registros!B:B, ">=" & fecha_inicial, Registros!B:B, "<=" & fecha_final, Registros!C:C, "=" &A25), 0) -> 29.53
A27: 610200 | B27: GASTOS DE MANTENIMIENTO | E27: =SUM(D28:D30) -> 1680
A28: 610202 | B28: MANTENIMIENTO DE EDIFICIOS | D28: =IF(A28<>"", SUMIFS(Registros!G:G, Registros!B:B, ">=" & fecha_inicial, Registros!B:B, "<=" & fecha_final, Registros!C:C, "=" &A28), 0) -> 1600
A29: 610204 | B29: MANTENIMIENTO DE INSTRUMENTOS | D29: =IF(A29<>"", SUMIFS(Registros!G:G, Registros!B:B, ">=" & fecha_inicial, Registros!B:B, "<=" & fecha_final, Registros!C:C, "=" &A29), 0) -> 0
A30: 610205 | B30: MANTENIMIENTO DE MOBILIARIO | D30: =IF(A30<>"", SUMIFS(Registros!G:G, Registros!B:B, ">=" & fecha_inicial, Registros!B:B, "<=" & fecha_final, Registros!C:C, "=" &A30), 0) -> 80
A31: 610300 | B31: GASTOS DE REPRESENTACION | E31: =SUM(D32:D38) -> 130
A32: 610301 | B32: OFRENDA MISIONERA | D32: =IF(A32<>"", SUMIFS(Registros!G:G, Registros!B:B, ">=" & fecha_inicial, Registros!B:B, "<=" & fecha_final, Registros!C:C, "=" &A32), 0) -> 50
A33: 610302 | B33: APORTE PARA LA UNIDAD PASTORAL | D33: =IF(A33<>"", SUMIFS(Registros!G:G, Registros!B:B, ">=" & fecha_inicial, Registros!B:B, "<=" & fecha_final, Registros!C:C, "=" &A33), 0) -> 20
A34: 610303 | B34: VIATICOS ALIMENTACIÓN Y TRANSPORTE | D34: =IF(A34<>"", SUMIFS(Registros!G:G, Registros!B:B, ">=" & fecha_inicial, Registros!B:B, "<=" & fecha_final, Registros!C:C, "=" &A34), 0) -> 60
A35: 610403 | B35: ACCESORIOS PARA ORNATO | D35: =IF(A35<>"", SUMIFS(Registros!G:G, Registros!B:B, ">=" & fecha_inicial, Registros!B:B, "<=" & fecha_final, Registros!C:C, "=" &A35), 0) -> 0
A36: 610503 | B36: CELEBRACIÓN FIESTA PARA NIÑOS | D36: =IF(A36<>"", SUMIFS(Registros!G:G, Registros!B:B, ">=" & fecha_inicial, Registros!B:B, "<=" & fecha_final, Registros!C:C, "=" &A36), 0) -> 0
A37: 610401 | B37: SUMINISTROS CEREMONIALES | D37: =IF(A37<>"", SUMIFS(Registros!G:G, Registros!B:B, ">=" & fecha_inicial, Registros!B:B, "<=" & fecha_final, Registros!C:C, "=" &A37), 0) -> 0
A38: 610402 | B38: =IFERROR(IF(A38<>"", VLOOKUP(A38, plan_cuentas,2, FALSE), ""), "CÓDIGO INCORRECTO") -> UTILES PARA ESCUELA DOMINCAL | D38: =IF(A38<>"", SUMIFS(Registros!G:G, Registros!B:B, ">=" & fecha_inicial, Registros!B:B, "<=" & fecha_final, Registros!C:C, "=" &A38), 0) -> 0
B39: FONDO DE EFECTIVO FINAL | F39: =F20-F22 -> 148.01
B41: DETALLE DE DIEZMOS | F41: =SUM(D42:D46) -> 3200
B42: HERMANO RONALDO | D42: 100
B43: HERMANO JEREMY MORA | D43: 180
B44: HERMANO YESLY MORA | D44: 2800
B45: HERMANA CANDA | D45: 20
B46: HERMANA BERTA MARIA MORA | D46: 100

Sheet CKS
A2: =bussiness_name -> IGLESIA ESTRELLA DE BELÉN
A3: CONTROL DE CHEQUES
A4: =address & "----TELÉFONO: ----" & tel & "----E-MAIL: ----" & email -> SAN MARCOS----TELÉFONO: --------E-MAIL: ----

Sheet CKCTRL
A2: =bussiness_name -> IGLESIA ESTRELLA DE BELÉN
A3: CONTROL DE CHEQUES
A4: =address & "----TELÉFONO: ----" & tel & "----E-MAIL: ----" & email -> SAN MARCOS----TELÉFONO: --------E-MAIL: ----
A6: No. ASIENTO | B6: FECHA | C6: No. CK | D6: CUENTA BANCARIA | E6: BENEFICIARIO | F6: VALOR

Sheet LM
A2: =bussiness_name -> IGLESIA ESTRELLA DE BELÉN
A3: ="LIBRO MAYOR DE " & B6 -> LIBRO MAYOR DE DIEZMOS DE MIEMBROS
A4: =address & "----TELÉFONO: ----" & tel & "----E-MAIL: ----" & email -> SAN MARCOS----TELÉFONO: --------E-MAIL: ----
A6: 410401 | B6: =UPPER(IF(A6<>"",VLOOKUP(A6,plan_cuentas,2,FALSE), "")) -> DIEZMOS DE MIEMBROS
A7: FECHA | B7: DESCRIPCIÓN DE LA TRANSACCIÓN | C7: DÉBITOS | D7: CRÉDITOS | E7: SALDO
A8: 2016-10-02 | B8: Saldo inicial de la cuenta | C8: 0 | D8: 0 | E8: 4377
A9: 2016-10-22 | B9: YESLY MORA | D9: 2800 | E9: 7177
A10: 2016-10-22 | B10: JEREMY MORA | D10: 150 | E10: 7327
A11: 2016-10-02 | B11: HERMANO RONALDO | D11: 100 | E11: 7427
A12: 2016-10-03 | B12: JEREMY MORA | D12: 30 | E12: 7457
A13: 2016-10-27 | B13: HERMANA CANDA | D13: 20 | E13: 7477
A14: 2016-10-27 | B14: HERMANA BERTA MARIA MORA | D14: 100 | E14: 7577
